Workbook

Sheet BasicCalcs
B2: Canoe Basic Metrics
B3: Length Overall (LOA) | C3: ='Mini-Kayak'!M2 -> 2.389632 | D3: m
B4: Beam Overall (BOA) | C4: ='Mini-Kayak'!M3 -> 0.448 | D4: m
B5: Length Water Line (LWL) | C5: ='Mini-Kayak'!M4 -> 2.238866 | D5: m
B6: Beam Water Line (BWL) | C6: ='Mini-Kayak'!M5 -> 0.284 | D6: m | E6: Actually the bottom width
B7: Depth Water Line (DWL) | C7: ='Mini-Kayak'!M6 -> 0.075 | D7: m
B8: Rocker | C8: ='Mini-Kayak'!M7 -> 0.075 | D8: m
B9: Amidships Deadrise | C9: ='Mini-Kayak'!M8 -> 7.48088618 | D9: Degrees
B10: Amidships Freeboard | C10: ='Mini-Kayak'!M9 -> 0.153 | D10: m
B11: Forward Freeboard | C11: ='Mini-Kayak'!M10 -> 0.158 | D11: m
B12: Rear Freeboard | C12: ='Mini-Kayak'!M11 -> 0.121 | D12: m
B14: Basic Calculations
B15: Mid-Section Area | C15: =C6*C7 -> 0.0213 | D15: m^2
B16: Plan Water Line Area | C16: =C6*C5*2/3 -> 0.4238919627 | D16: m^2
B17: Displacement Volume | C17: =C5*C6*(C7-C8/3)*2/3 -> 0.02119459813 | D17: m^3
B18: Displacement Weight | C18: =C17*1025 -> 21.72446309 | D18: kg
B19: Prismatic Coefficient (cp) | C19: =C17/(C5*C6*C7) -> 0.4444444444
B20: Displacement Length Ratio (DLR) | C20: =C18/(C3/3.048)^3 -> 45.08176011
B21: Hull Speed | C21: =1.34*(C5*3.28)^0.5 -> 3.631246831 | D21: kt
B22: Design G Force | C22: 3.5 | D22: g | E22: Light duty
B23: Design Pressure | C23: =C22*C18*9.81/1000/C16 -> 1.75966875 | D23: KN
B25: Bottom Plank Design
B26: Design Pressure (P) | C26: =C23 -> 1.75966875 | D26: kPa
B27: Span (L) | C27: =C6*1000 -> 284 | D27: mm | E27: BWL
B28: Allowable Stress (S) | C28: 14000 | D28: kPa | E28: F14 Plywood
B29: Plank Thickness (t) | C29: =(C26*C27*C27/C28/2)^0.5 -> 2.251411008 | D29: mm | E29: t^2=P*L^2/2/S, ~fixed sides
B30: Design Plank Thickness (t) | C30: 4 | D30: mm
B31: Modulus of Elasticity (E) | C31: =10500000*80% -> 8400000 | D31: kPa | E31: Factored 80% for wet condition
B32: Moment of Inertia (I) | C32: =1000*C30^3/12 -> 5333.333333 | D32: mm^4
B33: Deflection (d) | C33: =C26*C27^4/384/C31/C32*1000 -> 0.665418764 | D33: mm | E33: d=P*L^4/384EI (2% max)
B34: Deflection Ratio | C34: =C27/C33 -> 426.7989052
B35: Maximum Concentrated Load | C35: =C28*C30*C30/1000000 -> 0.224 | D35: kN | E35: =S*t*t
B36: Note: Hull bottom centre needs reinforcement
B38: Hull Centre Reinforcement
B39: T-Section Modulus
B40: Maximum Rib Spacing (Flange Width) | C40: =36*C42+C44 -> 224 | D40: mm | E40: Fw<36t+w
B41: Design Rib Spacing | C41: 200 | D41: mm
B42: Plank Thickness (Flange Thickness) | C42: =C30 -> 4 | D42: mm
B43: Rib Thickness (Web Height) | C43: 4 | D43: mm
B44: Rib Width (Web Thickness) | C44: 80 | D44: mm
B45: A | C45: =C40*C42+C43*C44 -> 1216 | D45: mm^2
B46: cy | C46: =(C40*C42*C42/2+C43*C44*(C42+C43/2))/(C40*C42+C43*C44) -> 3.052631579 | D46: mm | E46: From top of T
B47: cx | C47: =(C40*C42*0/2+C43*C44*0/2)/(C40*C42+C43*C44) -> 0 | D47: mm | E47: From centre line of T
B48: Ixx | C48: =C41*C42^3/12+C41*C42*(C46-C42/2)^2+C44*C43^3/12+C44*C43*(C46-C42-C43/2)^2 -> 5159.593721 | D48: mm^4
B49: Iyy | C49: =C40*C40*C40*C42/12+C44*C44*C44*C43/12 -> 3917141.333 | D49: mm^4
B50: Design Point Load | C50: 1 | D50: kN | E50: ~100kg
B51: Span | C51: =C27 -> 284 | D51: mm
B52: Allowable Stress | C52: =C28 -> 14000 | D52: kPa | E52: F14 Plywood
B53: Bending Moment | C53: =C50*C51/8 -> 35.5 | D53: Nm
B54: Section Modulus | C54: =C48/C46 -> 1690.211736 | D54: mm^3
B55: Working Stress (per rib) | C55: =C53/C54*1000000 -> 21003.28571 | D55: kN
B56: Distribute Load (over two ribs) | C56: =C55/2 -> 10501.64285 | D56: kN
B57: Safety Factor | C57: =C52/C56 -> 1.33312475
B58: Note: May be easier to either double plank thickness or reinforce with one layers of 4 oz/sq_yd fibre-glass on both sides
B60: Side Plank Design
B61: Design Pressure (P) | C61: =C23 -> 1.75966875 | D61: kPa
B62: Span (L) | C62: =(C10+C7)*1000 -> 228 | D62: mm
B63: Allowable Stress (S) | C63: =C28 -> 14000 | D63: kPa | E63: F14 Plywood
B64: Plank Thickness (t) | C64: =(C61*C62*C62/C63/2)^0.5 -> 1.807470809 | D64: mm | E64: t^2=P*L^2/2/S, ~fixed sides
B65: Design Plank Thickness (t) | C65: =C43 -> 4 | D65: mm | E65: Okay
B67: Hull Section Modulus | E67: Triangular Load & Free Ends
B68: Design Pressure | C68: =C23 -> 1.75966875 | D68: kPa
B69: Width | C69: =C6*1000 -> 284 | D69: mm | E69: BWL
B70: Length | C70: =C5*1000 -> 2238.866 | D70: mm | E70: LWL
B71: Allowable Stress | C71: =C28 -> 14000 | D71: kPa | E71: F14 Plywood
B72: Required Section Modulus | C72: =C68*C69*C70^2/12/C71 -> 14910.63647 | D72: mm^3 | E72: SM=PsL^2/12/S
B74: Channel Model
B75: Chine Width (web) | C75: =C27 -> 284 | D75: mm | E75: BWL
B76: Side Height (flange) | C76: =(C10+C7)*1000 -> 228 | D76: mm
B77: Deck Width (lip) | C77: 50 | D77: mm
B78: Thickness (t) | C78: =C30 -> 4 | D78: mm
B79: cy (from bottom) | C79: =C76*(C76+2*C77)/(C75+2*C76+2*C77) -> 89.02857143 | D79: mm
B80: I | C80: =1/12*C75*C78^3+2/3*C78*C76^3+1/6*C77*C78^3+2*C77*C78*C76^2-(C75*C78+2*C76*C78+2*C77*C78)*C76^2*(C76+2*C77)^2/(C75+2*C76+2*C77)^2 -> 25770269.26 | D80: mm^4
B81: Rg | C81: =(C80/(C75+2*C76+2*C77)/C78)^0.5 -> 87.57695469 | D81: mm | E81: Radius of gyration
B82: Slenderness Ratio | C82: =C70/C81 -> 25.56455643
B83: Z | C83: =MIN(C80/C79,C80/(C76-C79)) -> 185435.7368 | D83: mm^3
B84: Safety Factor | C84: =C83/C72 -> 12.4364736 | E84: Assumes no significant keel or stringers
B86: Plywood Fibre Glass Joins
B87: Spw | C87: =C28 -> 14000 | D87: Pa
B88: b | C88: 1 | D88: m
B89: h | C89: =C30 -> 4 | D89: mm
B90: M | C90: =C87*C88*C89^2/6 -> 37333.33333 | D90: Nm | E90: M=Spw*b*h^2/6
B91: Sfg | C91: 120000000 | D91: Pa
B92: t | C92: =1000*((C90*6*C89/C91/C88+C89*C89*C89)^(1/3)-C89)/2 -> 0.07777475328 | D92: mm | E92: t~((6*M*h/Sfg/b+h^3)^(1/3)-h)/2
B93: F/G Weight | C93: =C92*16 -> 1.244396053 | D93: oz/sq_yd | E93: Each side of plywood
B94: F/G Overlap (each side of join) | C94: =C89*3 -> 12 | D94: mm | E94: =3*h [JS = 15%*(1+L/h)]

Sheet Mini-Kayak
A1: Mini-Kayak | I1: Mini-Kayak Basic Metrics
A2: Find Offet Table at row | B2: 20 | I2: Length Overall (LOA) | M2: =(AB22-H22)/1000 -> 2.389632 | N2: m
A3: Stations | B3: 7 | I3: Beam Overall (BOA) | M3: =S23/500 -> 0.448 | N3: m
A4: Chines | B4: 4 | I4: Length Water Line (LWL) | M4: =(AB24-H24)/1000 -> 2.238866 | N4: m
A5: Forward-Aft Slice | B5: 100 | C5: mm | I5: Beam Water Line (BWL) | M5: =N24/500 -> 0.284 | N5: m | O5: Actually the bottom width
A6: First slice | B6: 0 | C6: mm | I6: Depth Water Line (DWL) | M6: =-T25/1000 -> 0.075 | N6: m
A7: Last slice | B7: 2400 | C7: mm | I7: Rocker | M7: =(J25-T25)/1000 -> 0.075 | N7: m
A8: Water Line Slice | B8: 25 | C8: mm | I8: Amidships Deadrise | M8: =DEGREES(ATAN2(S24-S25,T24-T25)) -> 7.48088618 | N8: Degrees
A9: Draft | B9: -75 | C9: mm | I9: Amidships Freeboard | M9: =T22/1000 -> 0.153 | N9: m
A10: Displacement | B10: 28.23504256 | C10: dm3 | I10: Forward Freeboard | M10: =J22/1000 -> 0.158 | N10: m
A11: Find Unfold Offsets at row | B11: 30 | I11: Rear Freeboard | M11: =Y22/1000 -> 0.121 | N11: m
A13: Export Plan Slice at | B13: 0 | C13: mm
A14: Export Cross Section at | B14: 1203 | C14: mm
A16: This design is based on work by:
A17: Bruce C. Anderson
A18: http://buckwheat-anderson.com/bcanderson/Boatz/OSKayak/OSKbuild.html
A20: Table Row | B20: Station | C20: 1 | H20: 2 | M20: 3 | R20: 4 | W20: 5 | AB20: 6 | AG20: 7
B21: Chine | C21: X | D21: Y | E21: Z | F21: Break | G21: Colour | H21: X | I21: Y | J21: Z | K21: Break | L21: Colour | M21: X | N21: Y | O21: Z | P21: Break | Q21: Colour | R21: X | S21: Y | T21: Z | U21: Break | V21: Colour | W21: X | X21: Y | Y21: Z | Z21: Break | AA21: Colour | AB21: X | AC21: Y | AD21: Z | AE21: Break | AF21: Colour | AG21: X | AH21: Y | AI21: Z | AJ21: Break | AK21: Colour
A22: Deck | B22: 4 | C22: 0 | D22: 0.254 | E22: 158 | F22: TRUE | G22: 0 | H22: 0 | I22: 0.254 | J22: 158 | K22: TRUE | L22: 4 | M22: 596 | N22: 0 | O22: 155 | P22: FALSE | Q22: 4 | R22: 1203.198 | S22: 0 | T22: 153 | U22: FALSE | V22: 4 | W22: 1791.208 | X22: 0 | Y22: 121 | Z22: FALSE | AA22: 4 | AB22: 2389.632 | AC22: 0 | AD22: 99 | AE22: TRUE | AF22: 0 | AG22: 2389.632 | AH22: 0 | AI22: 99 | AJ22: TRUE | AK22: 0
A23: Sheer | B23: 3 | C23: 0 | D23: 0.254 | E23: 158 | F23: TRUE | G23: 0 | H23: 0 | I23: 0.254 | J23: 158 | K23: TRUE | L23: 3 | M23: 596 | N23: 169 | O23: 114 | P23: FALSE | Q23: 3 | R23: 1203.198 | S23: 224 | T23: 99 | U23: FALSE | V23: 3 | W23: 1791.208 | X23: 169 | Y23: 99 | Z23: FALSE | AA23: 3 | AB23: 2389.632 | AC23: 0 | AD23: 99 | AE23: TRUE | AF23: 0 | AG23: 2389.632 | AH23: 0 | AI23: 99 | AJ23: TRUE | AK23: 0
A24: Chine | B24: 2 | C24: 0 | D24: 0.254 | E24: 158 | F24: TRUE | G24: 2 | H24: 118 | I24: 0.254 | J24: 0 | K24: TRUE | L24: 2 | M24: 596 | N24: 142 | O24: -26 | P24: FALSE | Q24: 2 | R24: 1203.198 | S24: 198 | T24: -49 | U24: FALSE | V24: 2 | W24: 1791.208 | X24: 142 | Y24: -29 | Z24: FALSE | AA24: 2 | AB24: 2356.866 | AC24: 0 | AD24: 0 | AE24: TRUE | AF24: 2 | AG24: 2389.632 | AH24: 0 | AI24: 99 | AJ24: TRUE | AK24: 0
A25: Centreline | B25: 1 | C25: 0 | D25: 0.254 | E25: 158 | F25: TRUE | G25: 1 | H25: 118 | I25: 0.254 | J25: 0 | K25: TRUE | L25: 1 | M25: 596 | N25: 0.254 | O25: -52 | P25: FALSE | Q25: 1 | R25: 1203.198 | S25: 0 | T25: -75 | U25: FALSE | V25: 1 | W25: 1791.208 | X25: 0 | Y25: -55 | Z25: FALSE | AA25: 1 | AB25: 2356.866 | AC25: 0 | AD25: 0 | AE25: TRUE | AF25: 1 | AG25: 2389.632 | AH25: 0 | AI25: 99 | AJ25: TRUE | AK25: 0
A30: Offset Row | B30: =A25&" - "&A24 -> Centreline - Chine | G30: =A24&" - "&A23 -> Chine - Sheer | L30: =A23&" - "&A22 -> Sheer - Deck
B31: X Lower | C31: Y Lower | D31: X Upper | E31: Y Upper | G31: X Lower | H31: Y Lower | I31: X Upper | J31: Y Upper | L31: X Lower | M31: Y Lower | N31: X Upper | O31: Y Upper | Q31: X Lower | R31: Y Lower | S31: X Upper | T31: Y Upper | V31: X Lower | W31: Y Lower | X31: X Upper | Y31: Y Upper
G32: 0.01018274637 | H32: -0.01325138624 | I32: 0.00999905898 | J32: 0.0001371842568 | L32: 0.00930364969 | M32: -0.003666347288 | N32: 0.00930364969 | O32: -0.003666347288
G33: 101.8274637 | H33: -132.5138624 | I33: 106.8438929 | J33: -3.48963438 | L33: 99.45683026 | M33: -39.19357371 | N33: 100.0015867 | O33: -1.808467757
B34: 197.1471201 | C34: -4.583998039 | D34: 197.1471201 | E34: -4.583998039 | G34: 120.15629 | H34: -156.3664478 | I34: 125.9485109 | J34: -4.09211101 | L34: 117.3637576 | M34: -45.87873325 | N34: 118.0008496 | O34: -2.116092206
B35: 279.8784538 | C35: -6.50763898 | D35: 279.6766855 | E35: 25.30078823 | G35: 207.9183144 | H35: -154.9323346 | I35: 212.5152564 | J35: -6.724606876 | L35: 198.957994 | M35: -74.91512492 | N35: 199.9947707 | O35: -3.458551499
B36: 380.6138017 | C36: -8.591134726 | D36: 380.2798664 | E36: 57.89566197 | G36: 313.6692719 | H36: -154.5313601 | I36: 317.1237479 | J36: -9.694173228 | L36: 298.5049925 | M36: -107.1974716 | N36: 299.9846144 | O36: -4.981834264
B37: 481.1959466 | C37: -10.40389055 | D37: 480.8252871 | E37: 86.39085737 | G37: 418.171315 | H37: -155.3564585 | I37: 420.7845254 | J37: -12.398696 | L37: 398.099219 | M37: -136.0741281 | N37: 399.9744737 | O37: -6.407751821
B38: 581.6441216 | C38: -11.96335986 | D38: 581.3036316 | E38: 110.9238526 | G38: 521.5858258 | H38: -157.1465753 | I38: 523.609889 | J38: -14.84687995 | L38: 497.7412649 | M38: -161.5792589 | N38: 499.9655769 | O38: -7.767373619
B39: 677.9657428 | C39: -13.23788808 | D39: 677.6937939 | E39: 130.8726756 | G39: 619.9894721 | H39: -159.542684 | I39: 621.6397698 | J39: -16.97243286 | L39: 593.4426787 | M39: -182.9243969 | N39: 595.9580552 | O39: -9.040318066
B40: 681.9771002 | C40: -13.28668063 | D40: 681.7085782 | E40: 131.6288478 | G40: 624.0733382 | H40: -159.6537076 | I40: 625.711461 | J40: -17.05649116 | L40: 597.4311902 | M40: -183.747507 | N40: 599.9577521 | O40: -9.093125465
B41: 782.2128841 | C41: -14.38848304 | D41: 782.0364246 | E41: 148.6387916 | G41: 725.7889164 | H41: -162.6463841 | I41: 727.1979926 | J41: -19.05624633 | L41: 697.1687317 | M41: -202.6138244 | N41: 699.9500606 | O41: -10.41847276
B42: 882.3691309 | C42: -15.28366736 | D42: 882.2871449 | E42: 162.0824831 | G42: 826.8844452 | H42: -165.9073384 | I42: 828.1782067 | J42: -20.88312519 | L42: 796.9534536 | M42: -218.2135165 | N42: 799.9414258 | O42: -11.77775923
B43: 982.4628419 | C43: -15.98526233 | D43: 982.4641037 | E43: 172.0866632 | G43: 927.5047285 | H43: -169.2337883 | I43: 928.7585894 | J43: -22.58326902 | L43: 896.7849262 | M43: -230.5820638 | N43: 899.9312615 | O43: -13.20573485
B44: 1082.510421 | C44: -16.50465806 | D44: 1082.574503 | E44: 178.7758496 | G44: 1027.787274 | H44: -172.4350749 | I44: 1029.043673 | J44: -24.2107623 | L44: 996.6628669 | M44: -239.755047 | N44: 999.9201011 | O44: -14.73705602
B45: 1182.527663 | C45: -16.85134496 | D45: 1182.629767 | E45: 182.2728541 | G45: 1127.861759 | H45: -175.3303226 | I45: 1129.135788 | J45: -25.82659063 | L45: 1096.587269 | M45: -245.7680609 | N45: 1099.910232 | O45: -16.40556825
B46: 1282.529734 | C46: -17.03263605 | D46: 1282.64603 | E46: 182.6996256 | G46: 1227.849753 | H46: -177.7461323 | I46: 1229.1348 | J46: -27.49752133 | L46: 1196.558517 | M46: -248.6566564 | N46: 1199.906343 | O46: -18.24328982
B47: 1285.727733 | C47: -17.03583547 | D47: 1285.844165 | E47: 182.6639053 | G47: 1231.047374 | H47: -177.8136594 | I47: 1232.332452 | J47: -27.55272449 | L47: 1199.75638 | M47: -248.6978982 | N47: 1203.104403 | O47: -18.30521005
B48: 1382.531207 | C48: -17.03263605 | D48: 1382.657676 | E48: 180.6213325 | G48: 1327.882406 | H48: -177.7461323 | I48: 1329.135216 | J48: -29.2488248 | L48: 1296.573992 | M48: -248.6566564 | N48: 1299.972706 | O48: -20.70027891
B49: 1482.54581 | C49: -16.86882402 | D49: 1482.701264 | E49: 175.6720079 | G49: 1428.046904 | H49: -177.2088857 | I49: 1429.228459 | J49: -31.21301901 | L49: 1396.639526 | M49: -245.5899836 | N49: 1400.069076 | O49: -23.28697392
B50: 1582.586811 | C50: -16.53942107 | D50: 1582.791836 | E50: 167.9001171 | G50: 1528.435135 | H50: -176.3556369 | I50: 1529.510579 | J50: -33.48478206 | L50: 1496.759195 | M50: -239.4486317 | N50: 1500.18853 | O50: -25.93456756
B51: 1682.66676 | C51: -16.04059953 | D51: 1682.938804 | E51: 157.3681708 | G51: 1629.129307 | H51: -175.3452833 | I51: 1630.07688 | J51: -36.15797112 | L51: 1596.937523 | M51: -230.2274898 | N51: 1600.323015 | O51: -28.59599486
B52: 1782.797535 | C52: -15.36731199 | D52: 1783.146613 | E52: 144.1368085 | G52: 1730.201802 | H52: -174.3330228 | I52: 1731.021967 | J52: -39.3252865 | L52: 1697.17932 | M52: -217.9179552 | N52: 1700.462724 | O52: -31.23249656
B53: 1874.178707 | C53: -14.59601762 | D53: 1874.597265 | E53: 129.7640351 | G53: 1822.77157 | H53: -173.535244 | I53: 1823.502141 | J53: -42.72061837 | L53: 1788.667524 | M53: -203.9888668 | N53: 1791.793759 | O53: -33.59160552
B54: 1882.990464 | C54: -14.51375086 | D54: 1883.415223 | E54: 128.2638137 | G54: 1831.715991 | H54: -173.468962 | I54: 1832.44042 | J54: -43.07596263 | L54: 1797.489912 | M54: -202.5108394 | N54: 1800.597062 | O54: -33.81735147
B55: 1983.255846 | C55: -13.47217809 | D55: 1983.740472 | E55: 109.8048924 | G55: 1933.723628 | H55: -172.8952137 | I55: 1934.423027 | J55: -47.49099359 | L55: 1897.872706 | M55: -183.9841276 | N55: 1900.716032 | O55: -36.32429662
B56: 2083.603671 | C56: -12.23511091 | D56: 2084.114519 | E56: 88.8111862 | G56: 2036.269534 | H56: -172.7467091 | I56: 2037.062402 | J56: -52.64082556 | L56: 1998.332197 | M56: -162.3218786 | N56: 2000.81089 | O56: -38.74681022
B57: 2184.043144 | C57: -10.79397499 | D57: 2184.526179 | E57: 65.33037457 | G57: 2139.389309 | H57: -173.1494867 | I57: 2140.449715 | J57: -58.57880722 | L57: 2098.871429 | M57: -137.5013457 | N57: 2100.875593 | O57: -41.0855945
B58: 2284.582806 | C58: -9.139572811 | D58: 2284.961277 | E58: 39.40600438 | G58: 2243.110732 | H58: -174.2209823 | I58: 2244.676397 | J58: -65.33434132 | L58: 2199.492301 | M58: -109.4963722 | N58: 2200.90786 | O58: -43.35215837
B59: 2385.230543 | C59: -7.262159471 | D59: 2385.402979 | E59: 11.0772418 | G59: 2347.454549 | H59: -176.0709249 | I59: 2349.835406 | J59: -72.90360473 | L59: 2300.19529 | M59: -78.27748639 | N59: 2300.910321 | O59: -45.56900181
B60: 2442.516012 | C60: -6.090732899 | D60: 2442.516012 | E60: -6.090732899 | G60: 2407.074677 | H60: -177.5125064 | I60: 2410.088726 | J60: -77.5570012 | L60: 2357.497717 | M60: -59.07986583 | N60: 2357.767714 | O60: -46.82094227
G61: 2444.950985 | H61: -80.38702386 | I61: 2444.953191 | J61: -80.35689029 | L61: 2390.516663 | M61: -47.54212198 | N61: 2390.516663 | O61: -47.54212198

Sheet Offset Table
A1: Ofset Table
A2: WL Height | B2: 0 | C2: 0.01 | D2: 100 | E2: 118 | F2: 200 | G2: 300 | H2: 400 | I2: 500 | J2: 596 | K2: 600 | L2: 700 | M2: 800 | N2: 900 | O2: 1000 | P2: 1100 | Q2: 1200 | R2: 1203.198 | S2: 1300 | T2: 1400 | U2: 1500 | V2: 1600 | W2: 1700 | X2: 1791.208 | Y2: 1800 | Z2: 1900 | AA2: 2000 | AB2: 2100 | AC2: 2200 | AD2: 2300 | AE2: 2356.866 | AF2: 2389.622 | AG2: 2389.632 | AH2: 2400
A3: 4 | B3: 158 | C3: 158 | D3: 156.0741644 | E3: 155.8134601 | F3: 154.9172886 | G3: 154.3814753 | H3: 154.3185911 | I3: 154.5805026 | J3: 155 | K3: 155.0190767 | L3: 155.4861799 | M3: 155.8336789 | N3: 155.9134404 | O3: 155.5773311 | P3: 154.6772176 | Q3: 153.0649667 | R3: 153 | S3: 148.6898622 | T3: 143.5933685 | U3: 138.0332712 | V3: 132.2024512 | W3: 126.2937893 | X3: 121 | Y3: 120.5001662 | Z3: 115.0144628 | AA3: 110.02956 | AB3: 105.7383384 | AC3: 102.3336789 | AD3: 100.0084624 | AE3: 99.24131382 | AF3: 99 | AG3: 99 | AH3: 0
A4: 3 | B4: 158 | C4: 158 | D4: 147.9774706 | E4: 146.2977387 | F4: 139.1078765 | G4: 131.3247547 | H4: 124.5605799 | I4: 118.7478266 | J4: 114 | K4: 113.8189695 | L4: 109.7064832 | M4: 106.3428424 | N4: 103.6605217 | O4: 101.5919957 | P4: 100.069739 | Q4: 99.02622633 | R4: 99 | S4: 98.40294803 | T4: 98.12200288 | U4: 98.113942 | V4: 98.30962403 | W4: 98.63990766 | X4: 99 | Y4: 99.03565153 | Z4: 99.42771432 | AA4: 99.74695468 | AB4: 99.92423129 | AC4: 99.89040282 | AD4: 99.57632791 | AE4: 99.24632708 | AF4: 99 | AG4: 99 | AH4: 0
A5: 2 | B5: 158 | C5: 157.9866102 | D5: 24.10169492 | E5: 0 | F5: -4.079614463 | G5: -9.41276208 | H5: -14.98786869 | I5: -20.64381043 | J5: -26 | K5: -26.21946344 | L5: -31.55370387 | M5: -36.48540786 | N5: -40.85345155 | O5: -44.49671109 | P5: -47.25406262 | Q5: -48.96438228 | R5: -49 | S5: -47.70844437 | T5: -45.34844611 | U5: -42.09835736 | V5: -38.11217201 | W5: -33.54388395 | X5: -29 | Y5: -28.54748706 | Z5: -23.27697522 | AA5: -17.88634234 | AB5: -12.52958228 | AC5: -7.36068895 | AD5: -2.533656222 | AE5: 0 | AF5: 98.96978575 | AG5: 99 | AH5: 0
A6: 1 | B6: 158 | C6: 157.9866102 | D6: 24.10169492 | E6: 0 | F6: -11.14330547 | G6: -23.47014693 | H6: -34.42706126 | I6: -44.03266174 | J6: -52 | K6: -52.30556163 | L6: -59.26437419 | M6: -64.9277127 | N6: -69.31419041 | O6: -72.44242059 | P6: -74.33101651 | Q6: -74.99859142 | R6: -75 | S6: -74.46586073 | T6: -72.74901844 | U6: -69.86622935 | V6: -65.83572994 | W6: -60.67575669 | X6: -55 | Y6: -54.4045461 | Z6: -47.04033464 | AA6: -38.60135882 | AB6: -29.1058551 | AC6: -18.57205999 | AD6: -7.018209974 | AE6: 0 | AF6: 98.96978575 | AG6: 99 | AH6: 0
A8: Half Width | B8: 0 | C8: 0.01 | D8: 100 | E8: 118 | F8: 200 | G8: 300 | H8: 400 | I8: 500 | J8: 596 | K8: 600 | L8: 700 | M8: 800 | N8: 900 | O8: 1000 | P8: 1100 | Q8: 1200 | R8: 1203.198 | S8: 1300 | T8: 1400 | U8: 1500 | V8: 1600 | W8: 1700 | X8: 1791.208 | Y8: 1800 | Z8: 1900 | AA8: 2000 | AB8: 2100 | AC8: 2200 | AD8: 2300 | AE8: 2356.866 | AF8: 2389.622 | AG8: 2389.632 | AH8: 2400
A9: 4 | B9: 0.254 | C9: 0.254 | D9: 0.1829994662 | E9: 0.1716344529 | F9: 0.125004732 | G9: 0.07883708529 | H9: 0.0433100228 | I9: 0.01723704139 | J9: 0 | K9: -0.0005683621415 | L9: -0.01129269096 | M9: -0.01612244824 | N9: -0.01624413718 | O9: -0.01284426095 | P9: -0.007109322726 | Q9: -0.0002258256955 | R9: 0 | S9: 0 | T9: 0 | U9: 0 | V9: 0 | W9: 0 | X9: 0 | Y9: 0 | Z9: 0 | AA9: 0 | AB9: 0 | AC9: 0 | AD9: 0 | AE9: 0 | AF9: 0 | AG9: 0 | AH9: 0
A10: 3 | B10: 0.254 | C10: 0.254 | D10: 36.68486867 | E10: 42.89195378 | F10: 69.81847127 | G10: 99.67107291 | H10: 126.2627478 | I10: 149.6135703 | J10: 169 | K10: 169.7436146 | L10: 186.6729551 | M10: 200.4216658 | N10: 211.0098213 | O10: 218.4574956 | P10: 222.784763 | Q10: 224.011698 | R10: 224 | S10: 222.3665613 | T10: 217.6298345 | U10: 209.7771749 | V10: 198.7913418 | W10: 184.6550948 | X10: 169 | Y10: 167.3511932 | Z10: 146.8623963 | AA10: 123.1714637 | AB10: 96.26115468 | AC10: 66.11422869 | AD10: 32.71344512 | AE10: 12.26189544 | AF10: 0 | AG10: 0 | AH10: 0
A11: 2 | B11: 0.254 | C11: 0.254 | D11: 0.254 | E11: 0.254 | F11: 31.29568759 | G11: 65.28073323 | H11: 95.11822607 | I11: 120.9208595 | J11: 142 | K11: 142.8013267 | L11: 160.8723212 | M11: 175.2465363 | N11: 186.0366653 | O11: 193.3554016 | P11: 197.3154384 | Q11: 198.0294693 | R11: 198 | S11: 195.8245026 | T11: 190.566586 | U11: 182.3226882 | V11: 171.1670894 | W11: 157.1740694 | X11: 142 | Y11: 140.4179083 | Z11: 120.9728862 | AA11: 98.91328296 | AB11: 74.31337872 | AC11: 47.24745345 | AD11: 17.78978718 | AE11: 0 | AF11: 0 | AG11: 0 | AH11: 0
A12: 1 | B12: 0.254 | C12: 0.254 | D12: 0.254 | E12: 0.254 | F12: 0.2808359651 | G12: 0.2961536826 | H12: 0.2948196446 | I12: 0.2794711805 | J12: 0.254 | K12: 0.25274562 | L12: 0.2172802926 | M12: 0.1757125278 | N12: 0.1306796553 | O12: 0.08481900449 | P12: 0.04076790501 | Q12: 0.001163686394 | R12: 0 | S12: -0.009988568978 | T12: -0.01464272625 | U12: -0.01472029862 | V12: -0.01141385872 | W12: -0.005915979169 | X12: 0 | Y12: 0.0005807674085 | Z12: 0.00688380839 | AA12: 0.01180057115 | AB12: 0.01413848307 | AC12: 0.01270497153 | AD12: 0.006307463898 | AE12: 0 | AF12: 0 | AG12: 0 | AH12: 0

Sheet Drawing

Sheet Unfold Offset Table
D1: Xofs | E1: -83 | I1: Xofs | J1: -33 | N1: Xofs | O1: 4 | S1: Xofs | T1: 3 | X1: Xofs | Y1: 0
A2: Offset | B2: 400 | C2: 1000 | D2: Yofs | E2: 184 | I2: Yofs | J2: 343 | N2: Yofs | O2: 346 | S2: Yofs | T2: =O2+53 -> 399 | X2: Yofs | Y2: 0
A3: Number of Lines | B3: =COUNT(A7:A61) -> 55 | D3: Mirror | E3: -1 | I3: Mirror | J3: 1 | N3: Mirror | O3: -1 | S3: Mirror | T3: -1 | X3: Mirror | Y3: 1
A4: Number of Planks | B4: ='Mini-Kayak'!B4 -> 4 | D4: Rotation | E4: 0 | I4: Rotation | J4: 1.9 | N4: Rotation | O4: -0.2 | S4: Rotation | T4: 0 | X4: Rotation | Y4: 0
B5: ='Mini-Kayak'!B30 -> Centreline - Chine | G5: ='Mini-Kayak'!G30 -> Chine - Sheer | L5: ='Mini-Kayak'!L30 -> Sheer - Deck | Q5: ='Mini-Kayak'!L30&" Overlap" -> Sheer - Deck Overlap | V5: ='Mini-Kayak'!V30 -> 0
B6: X Lower | C6: Y Lower | D6: X Upper | E6: Y Upper | G6: X Lower | H6: Y Lower | I6: X Upper | J6: Y Upper | L6: X Lower | M6: Y Lower | N6: X Upper | O6: Y Upper | Q6: X Lower | R6: Y Lower | S6: X Upper | T6: Y Upper | V6: X Lower | W6: Y Lower | X6: X Upper | Y6: Y Upper
A7: 1 | B7: =IF('Mini-Kayak'!B32<>"",'Mini-Kayak'!B32*COS(RADIANS(E$4))-'Mini-Kayak'!C32*SIN(RADIANS(E$4))+E$1,"") ->  | C7: =IF('Mini-Kayak'!C32<>"",('Mini-Kayak'!B32*SIN(RADIANS(E$4))+'Mini-Kayak'!C32*COS(RADIANS(E$4))*E$3)+E$2,"") ->  | D7: =IF('Mini-Kayak'!D32<>"",'Mini-Kayak'!D32*COS(RADIANS(E$4))-'Mini-Kayak'!E32*SIN(RADIANS(E$4))+E$1,"") ->  | E7: =IF('Mini-Kayak'!E32<>"",('Mini-Kayak'!D32*SIN(RADIANS(E$4))+'Mini-Kayak'!E32*COS(RADIANS(E$4))*E$3)+E$2,"") ->  | G7: =IF('Mini-Kayak'!G32<>"",'Mini-Kayak'!G32*COS(RADIANS(J$4))-'Mini-Kayak'!H32*SIN(RADIANS(J$4))+J$1,"") -> -32.9893835 | H7: =IF('Mini-Kayak'!H32<>"",('Mini-Kayak'!G32*SIN(RADIANS(J$4))+'Mini-Kayak'!H32*COS(RADIANS(J$4))*J$3)+J$2,"") -> 342.9870935 | I7: =IF('Mini-Kayak'!I32<>"",'Mini-Kayak'!I32*COS(RADIANS(J$4))-'Mini-Kayak'!J32*SIN(RADIANS(J$4))+J$1,"") -> -32.99001099 | J7: =IF('Mini-Kayak'!J32<>"",('Mini-Kayak'!I32*SIN(RADIANS(J$4))+'Mini-Kayak'!J32*COS(RADIANS(J$4))*J$3)+J$2,"") -> 343.0004686 | K7: =O7-J7 -> 3.00316522 | L7: =IF('Mini-Kayak'!L32<>"",'Mini-Kayak'!L32*COS(RADIANS(O$4))-'Mini-Kayak'!M32*SIN(RADIANS(O$4))+O$1,"") -> 4.009290795 | M7: =IF('Mini-Kayak'!M32<>"",('Mini-Kayak'!L32*SIN(RADIANS(O$4))+'Mini-Kayak'!M32*COS(RADIANS(O$4))*O$3)+O$2,"") -> 346.0036338 | N7: =IF('Mini-Kayak'!N32<>"",'Mini-Kayak'!N32*COS(RADIANS(O$4))-'Mini-Kayak'!O32*SIN(RADIANS(O$4))+O$1,"") -> 4.009290795 | O7: =IF('Mini-Kayak'!O32<>"",('Mini-Kayak'!N32*SIN(RADIANS(O$4))+'Mini-Kayak'!O32*COS(RADIANS(O$4))*O$3)+O$2,"") -> 346.0036338 | Q7: =IF('Mini-Kayak'!L32<>"",'Mini-Kayak'!L32*COS(RADIANS(T$4))-'Mini-Kayak'!M32*SIN(RADIANS(T$4))+T$1,"") -> 3.00930365 | R7: =IF('Mini-Kayak'!M32<>"",('Mini-Kayak'!L32*SIN(RADIANS(T$4))+'Mini-Kayak'!M32*COS(RADIANS(T$4))*T$3)+T$2,"") -> 399.0036663 | S7: =IF('Mini-Kayak'!N32<>"",'Mini-Kayak'!N32*COS(RADIANS(T$4))-'Mini-Kayak'!O32*SIN(RADIANS(T$4))+T$1,"") -> 3.00930365 | T7: =IF('Mini-Kayak'!O32<>"",MAX(('Mini-Kayak'!N32*SIN(RADIANS(T$4))+'Mini-Kayak'!O32*COS(RADIANS(T$4))*T$3)+T$2,M7+3),"") -> 399.0036663 | V7: =IF('Mini-Kayak'!V32<>"",'Mini-Kayak'!V32*COS(RADIANS(Y$4))-'Mini-Kayak'!W32*SIN(RADIANS(Y$4))+Y$1,"") ->  | W7: =IF('Mini-Kayak'!W32<>"",('Mini-Kayak'!V32*SIN(RADIANS(Y$4))+'Mini-Kayak'!W32*COS(RADIANS(Y$4))*Y$3)+Y$2,"") ->  | X7: =IF('Mini-Kayak'!X32<>"",'Mini-Kayak'!X32*COS(RADIANS(Y$4))-'Mini-Kayak'!Y32*SIN(RADIANS(Y$4))+Y$1,"") ->  | Y7: =IF('Mini-Kayak'!Y32<>"",('Mini-Kayak'!X32*SIN(RADIANS(Y$4))+'Mini-Kayak'!Y32*COS(RADIANS(Y$4))*Y$3)+Y$2,"") -> 
A8: 2 | B8: =IF('Mini-Kayak'!B33<>"",'Mini-Kayak'!B33*COS(RADIANS(E$4))-'Mini-Kayak'!C33*SIN(RADIANS(E$4))+E$1,"") ->  | C8: =IF('Mini-Kayak'!C33<>"",('Mini-Kayak'!B33*SIN(RADIANS(E$4))+'Mini-Kayak'!C33*COS(RADIANS(E$4))*E$3)+E$2,"") ->  | D8: =IF('Mini-Kayak'!D33<>"",'Mini-Kayak'!D33*COS(RADIANS(E$4))-'Mini-Kayak'!E33*SIN(RADIANS(E$4))+E$1,"") ->  | E8: =IF('Mini-Kayak'!E33<>"",('Mini-Kayak'!D33*SIN(RADIANS(E$4))+'Mini-Kayak'!E33*COS(RADIANS(E$4))*E$3)+E$2,"") ->  | G8: =IF('Mini-Kayak'!G33<>"",'Mini-Kayak'!G33*COS(RADIANS(J$4))-'Mini-Kayak'!H33*SIN(RADIANS(J$4))+J$1,"") -> 73.16500138 | H8: =IF('Mini-Kayak'!H33<>"",('Mini-Kayak'!G33*SIN(RADIANS(J$4))+'Mini-Kayak'!H33*COS(RADIANS(J$4))*J$3)+J$2,"") -> 213.9350993 | I8: =IF('Mini-Kayak'!I33<>"",'Mini-Kayak'!I33*COS(RADIANS(J$4))-'Mini-Kayak'!J33*SIN(RADIANS(J$4))+J$1,"") -> 73.90085133 | J8: =IF('Mini-Kayak'!J33<>"",('Mini-Kayak'!I33*SIN(RADIANS(J$4))+'Mini-Kayak'!J33*COS(RADIANS(J$4))*J$3)+J$2,"") -> 343.0547125 | K8: 4.404673562 | L8: =IF('Mini-Kayak'!L33<>"",'Mini-Kayak'!L33*COS(RADIANS(O$4))-'Mini-Kayak'!M33*SIN(RADIANS(O$4))+O$1,"") -> 103.3194132 | M8: =IF('Mini-Kayak'!M33<>"",('Mini-Kayak'!L33*SIN(RADIANS(O$4))+'Mini-Kayak'!M33*COS(RADIANS(O$4))*O$3)+O$2,"") -> 384.8461658 | N8: =IF('Mini-Kayak'!N33<>"",'Mini-Kayak'!N33*COS(RADIANS(O$4))-'Mini-Kayak'!O33*SIN(RADIANS(O$4))+O$1,"") -> 103.9946648 | O8: =IF('Mini-Kayak'!O33<>"",('Mini-Kayak'!N33*SIN(RADIANS(O$4))+'Mini-Kayak'!O33*COS(RADIANS(O$4))*O$3)+O$2,"") -> 347.4593861 | Q8: =IF('Mini-Kayak'!L33<>"",'Mini-Kayak'!L33*COS(RADIANS(T$4))-'Mini-Kayak'!M33*SIN(RADIANS(T$4))+T$1,"") -> 102.4568303 | R8: =IF('Mini-Kayak'!M33<>"",('Mini-Kayak'!L33*SIN(RADIANS(T$4))+'Mini-Kayak'!M33*COS(RADIANS(T$4))*T$3)+T$2,"") -> 438.1935737 | S8: =IF('Mini-Kayak'!N33<>"",'Mini-Kayak'!N33*COS(RADIANS(T$4))-'Mini-Kayak'!O33*SIN(RADIANS(T$4))+T$1,"") -> 103.0015867 | T8: =IF('Mini-Kayak'!O33<>"",MAX(('Mini-Kayak'!N33*SIN(RADIANS(T$4))+'Mini-Kayak'!O33*COS(RADIANS(T$4))*T$3)+T$2,M8+3),"") -> 400.8084678 | V8: =IF('Mini-Kayak'!V33<>"",'Mini-Kayak'!V33*COS(RADIANS(Y$4))-'Mini-Kayak'!W33*SIN(RADIANS(Y$4))+Y$1,"") ->  | W8: =IF('Mini-Kayak'!W33<>"",('Mini-Kayak'!V33*SIN(RADIANS(Y$4))+'Mini-Kayak'!W33*COS(RADIANS(Y$4))*Y$3)+Y$2,"") ->  | X8: =IF('Mini-Kayak'!X33<>"",'Mini-Kayak'!X33*COS(RADIANS(Y$4))-'Mini-Kayak'!Y33*SIN(RADIANS(Y$4))+Y$1,"") ->  | Y8: =IF('Mini-Kayak'!Y33<>"",('Mini-Kayak'!X33*SIN(RADIANS(Y$4))+'Mini-Kayak'!Y33*COS(RADIANS(Y$4))*Y$3)+Y$2,"") -> 
A9: 3 | B9: =IF('Mini-Kayak'!B34<>"",'Mini-Kayak'!B34*COS(RADIANS(E$4))-'Mini-Kayak'!C34*SIN(RADIANS(E$4))+E$1,"") -> 114.1471201 | C9: =IF('Mini-Kayak'!C34<>"",('Mini-Kayak'!B34*SIN(RADIANS(E$4))+'Mini-Kayak'!C34*COS(RADIANS(E$4))*E$3)+E$2,"") -> 188.583998 | D9: =IF('Mini-Kayak'!D34<>"",'Mini-Kayak'!D34*COS(RADIANS(E$4))-'Mini-Kayak'!E34*SIN(RADIANS(E$4))+E$1,"") -> 114.1471201 | E9: =IF('Mini-Kayak'!E34<>"",('Mini-Kayak'!D34*SIN(RADIANS(E$4))+'Mini-Kayak'!E34*COS(RADIANS(E$4))*E$3)+E$2,"") -> 188.583998 | F9: =C9-H9 -> -2.119325209 | G9: =IF('Mini-Kayak'!G34<>"",'Mini-Kayak'!G34*COS(RADIANS(J$4))-'Mini-Kayak'!H34*SIN(RADIANS(J$4))+J$1,"") -> 92.27458741 | H9: =IF('Mini-Kayak'!H34<>"",('Mini-Kayak'!G34*SIN(RADIANS(J$4))+'Mini-Kayak'!H34*COS(RADIANS(J$4))*J$3)+J$2,"") -> 190.7033232 | I9: =IF('Mini-Kayak'!I34<>"",'Mini-Kayak'!I34*COS(RADIANS(J$4))-'Mini-Kayak'!J34*SIN(RADIANS(J$4))+J$1,"") -> 93.01494107 | J9: =IF('Mini-Kayak'!J34<>"",('Mini-Kayak'!I34*SIN(RADIANS(J$4))+'Mini-Kayak'!J34*COS(RADIANS(J$4))*J$3)+J$2,"") -> 343.0859841 | K9: 4.618195368 | L9: =IF('Mini-Kayak'!L34<>"",'Mini-Kayak'!L34*COS(RADIANS(O$4))-'Mini-Kayak'!M34*SIN(RADIANS(O$4))+O$1,"") -> 121.2028959 | M9: =IF('Mini-Kayak'!M34<>"",('Mini-Kayak'!L34*SIN(RADIANS(O$4))+'Mini-Kayak'!M34*COS(RADIANS(O$4))*O$3)+O$2,"") -> 391.4687778 | N9: =IF('Mini-Kayak'!N34<>"",'Mini-Kayak'!N34*COS(RADIANS(O$4))-'Mini-Kayak'!O34*SIN(RADIANS(O$4))+O$1,"") -> 121.9927441 | O9: =IF('Mini-Kayak'!O34<>"",('Mini-Kayak'!N34*SIN(RADIANS(O$4))+'Mini-Kayak'!O34*COS(RADIANS(O$4))*O$3)+O$2,"") -> 347.7041795 | Q9: =IF('Mini-Kayak'!L34<>"",'Mini-Kayak'!L34*COS(RADIANS(T$4))-'Mini-Kayak'!M34*SIN(RADIANS(T$4))+T$1,"") -> 120.3637576 | R9: =IF('Mini-Kayak'!M34<>"",('Mini-Kayak'!L34*SIN(RADIANS(T$4))+'Mini-Kayak'!M34*COS(RADIANS(T$4))*T$3)+T$2,"") -> 444.8787332 | S9: =IF('Mini-Kayak'!N34<>"",'Mini-Kayak'!N34*COS(RADIANS(T$4))-'Mini-Kayak'!O34*SIN(RADIANS(T$4))+T$1,"") -> 121.0008496 | T9: =IF('Mini-Kayak'!O34<>"",MAX(('Mini-Kayak'!N34*SIN(RADIANS(T$4))+'Mini-Kayak'!O34*COS(RADIANS(T$4))*T$3)+T$2,M9+3),"") -> 401.1160922 | V9: =IF('Mini-Kayak'!V34<>"",'Mini-Kayak'!V34*COS(RADIANS(Y$4))-'Mini-Kayak'!W34*SIN(RADIANS(Y$4))+Y$1,"") ->  | W9: =IF('Mini-Kayak'!W34<>"",('Mini-Kayak'!V34*SIN(RADIANS(Y$4))+'Mini-Kayak'!W34*COS(RADIANS(Y$4))*Y$3)+Y$2,"") ->  | X9: =IF('Mini-Kayak'!X34<>"",'Mini-Kayak'!X34*COS(RADIANS(Y$4))-'Mini-Kayak'!Y34*SIN(RADIANS(Y$4))+Y$1,"") ->  | Y9: =IF('Mini-Kayak'!Y34<>"",('Mini-Kayak'!X34*SIN(RADIANS(Y$4))+'Mini-Kayak'!Y34*COS(RADIANS(Y$4))*Y$3)+Y$2,"") -> 
A10: 4 | B10: =IF('Mini-Kayak'!B35<>"",'Mini-Kayak'!B35*COS(RADIANS(E$4))-'Mini-Kayak'!C35*SIN(RADIANS(E$4))+E$1,"") -> 196.8784538 | C10: =IF('Mini-Kayak'!C35<>"",('Mini-Kayak'!B35*SIN(RADIANS(E$4))+'Mini-Kayak'!C35*COS(RADIANS(E$4))*E$3)+E$2,"") -> 190.507639 | D10: =IF('Mini-Kayak'!D35<>"",'Mini-Kayak'!D35*COS(RADIANS(E$4))-'Mini-Kayak'!E35*SIN(RADIANS(E$4))+E$1,"") -> 196.6766855 | E10: =IF('Mini-Kayak'!E35<>"",('Mini-Kayak'!D35*SIN(RADIANS(E$4))+'Mini-Kayak'!E35*COS(RADIANS(E$4))*E$3)+E$2,"") -> 158.6992118 | F10: =C10-H10 -> -4.538774581 | G10: =IF('Mini-Kayak'!G35<>"",'Mini-Kayak'!G35*COS(RADIANS(J$4))-'Mini-Kayak'!H35*SIN(RADIANS(J$4))+J$1,"") -> 179.9408135 | H10: =IF('Mini-Kayak'!H35<>"",('Mini-Kayak'!G35*SIN(RADIANS(J$4))+'Mini-Kayak'!H35*COS(RADIANS(J$4))*J$3)+J$2,"") -> 195.0464136 | I10: =IF('Mini-Kayak'!I35<>"",'Mini-Kayak'!I35*COS(RADIANS(J$4))-'Mini-Kayak'!J35*SIN(RADIANS(J$4))+J$1,"") -> 179.6213744 | J10: =IF('Mini-Kayak'!J35<>"",('Mini-Kayak'!I35*SIN(RADIANS(J$4))+'Mini-Kayak'!J35*COS(RADIANS(J$4))*J$3)+J$2,"") -> 343.3250714 | K10: 5.435346957 | L10: =IF('Mini-Kayak'!L35<>"",'Mini-Kayak'!L35*COS(RADIANS(O$4))-'Mini-Kayak'!M35*SIN(RADIANS(O$4))+O$1,"") -> 202.6952793 | M10: =IF('Mini-Kayak'!M35<>"",('Mini-Kayak'!L35*SIN(RADIANS(O$4))+'Mini-Kayak'!M35*COS(RADIANS(O$4))*O$3)+O$2,"") -> 420.2201755 | N10: =IF('Mini-Kayak'!N35<>"",'Mini-Kayak'!N35*COS(RADIANS(O$4))-'Mini-Kayak'!O35*SIN(RADIANS(O$4))+O$1,"") -> 203.9814797 | O10: =IF('Mini-Kayak'!O35<>"",('Mini-Kayak'!N35*SIN(RADIANS(O$4))+'Mini-Kayak'!O35*COS(RADIANS(O$4))*O$3)+O$2,"") -> 348.7604184 | Q10: =IF('Mini-Kayak'!L35<>"",'Mini-Kayak'!L35*COS(RADIANS(T$4))-'Mini-Kayak'!M35*SIN(RADIANS(T$4))+T$1,"") -> 201.957994 | R10: =IF('Mini-Kayak'!M35<>"",('Mini-Kayak'!L35*SIN(RADIANS(T$4))+'Mini-Kayak'!M35*COS(RADIANS(T$4))*T$3)+T$2,"") -> 473.9151249 | S10: =IF('Mini-Kayak'!N35<>"",'Mini-Kayak'!N35*COS(RADIANS(T$4))-'Mini-Kayak'!O35*SIN(RADIANS(T$4))+T$1,"") -> 202.9947707 | T10: =IF('Mini-Kayak'!O35<>"",MAX(('Mini-Kayak'!N35*SIN(RADIANS(T$4))+'Mini-Kayak'!O35*COS(RADIANS(T$4))*T$3)+T$2,M10+3),"") -> 423.2201755 | V10: =IF('Mini-Kayak'!V35<>"",'Mini-Kayak'!V35*COS(RADIANS(Y$4))-'Mini-Kayak'!W35*SIN(RADIANS(Y$4))+Y$1,"") ->  | W10: =IF('Mini-Kayak'!W35<>"",('Mini-Kayak'!V35*SIN(RADIANS(Y$4))+'Mini-Kayak'!W35*COS(RADIANS(Y$4))*Y$3)+Y$2,"") ->  | X10: =IF('Mini-Kayak'!X35<>"",'Mini-Kayak'!X35*COS(RADIANS(Y$4))-'Mini-Kayak'!Y35*SIN(RADIANS(Y$4))+Y$1,"") ->  | Y10: =IF('Mini-Kayak'!Y35<>"",('Mini-Kayak'!X35*SIN(RADIANS(Y$4))+'Mini-Kayak'!Y35*COS(RADIANS(Y$4))*Y$3)+Y$2,"") -> 
A11: 5 | B11: =IF('Mini-Kayak'!B36<>"",'Mini-Kayak'!B36*COS(RADIANS(E$4))-'Mini-Kayak'!C36*SIN(RADIANS(E$4))+E$1,"") -> 297.6138017 | C11: =IF('Mini-Kayak'!C36<>"",('Mini-Kayak'!B36*SIN(RADIANS(E$4))+'Mini-Kayak'!C36*COS(RADIANS(E$4))*E$3)+E$2,"") -> 192.5911347 | D11: =IF('Mini-Kayak'!D36<>"",'Mini-Kayak'!D36*COS(RADIANS(E$4))-'Mini-Kayak'!E36*SIN(RADIANS(E$4))+E$1,"") -> 297.2798664 | E11: =IF('Mini-Kayak'!E36<>"",('Mini-Kayak'!D36*SIN(RADIANS(E$4))+'Mini-Kayak'!E36*COS(RADIANS(E$4))*E$3)+E$2,"") -> 126.104338 | F11: -6.362224762 | G11: =IF('Mini-Kayak'!G36<>"",'Mini-Kayak'!G36*COS(RADIANS(J$4))-'Mini-Kayak'!H36*SIN(RADIANS(J$4))+J$1,"") -> 285.6203364 | H11: =IF('Mini-Kayak'!H36<>"",('Mini-Kayak'!G36*SIN(RADIANS(J$4))+'Mini-Kayak'!H36*COS(RADIANS(J$4))*J$3)+J$2,"") -> 198.9533595 | I11: =IF('Mini-Kayak'!I36<>"",'Mini-Kayak'!I36*COS(RADIANS(J$4))-'Mini-Kayak'!J36*SIN(RADIANS(J$4))+J$1,"") -> 284.2708103 | J11: =IF('Mini-Kayak'!J36<>"",('Mini-Kayak'!I36*SIN(RADIANS(J$4))+'Mini-Kayak'!J36*COS(RADIANS(J$4))*J$3)+J$2,"") -> 343.8254509 | K11: 6.109211289 | L11: =IF('Mini-Kayak'!L36<>"",'Mini-Kayak'!L36*COS(RADIANS(O$4))-'Mini-Kayak'!M36*SIN(RADIANS(O$4))+O$1,"") -> 302.1289849 | M11: =IF('Mini-Kayak'!M36<>"",('Mini-Kayak'!L36*SIN(RADIANS(O$4))+'Mini-Kayak'!M36*COS(RADIANS(O$4))*O$3)+O$2,"") -> 452.1548417 | N11: =IF('Mini-Kayak'!N36<>"",'Mini-Kayak'!N36*COS(RADIANS(O$4))-'Mini-Kayak'!O36*SIN(RADIANS(O$4))+O$1,"") -> 303.9653969 | O11: =IF('Mini-Kayak'!O36<>"",('Mini-Kayak'!N36*SIN(RADIANS(O$4))+'Mini-Kayak'!O36*COS(RADIANS(O$4))*O$3)+O$2,"") -> 349.9346622 | Q11: =IF('Mini-Kayak'!L36<>"",'Mini-Kayak'!L36*COS(RADIANS(T$4))-'Mini-Kayak'!M36*SIN(RADIANS(T$4))+T$1,"") -> 301.5049925 | R11: =IF('Mini-Kayak'!M36<>"",('Mini-Kayak'!L36*SIN(RADIANS(T$4))+'Mini-Kayak'!M36*COS(RADIANS(T$4))*T$3)+T$2,"") -> 506.1974716 | S11: =IF('Mini-Kayak'!N36<>"",'Mini-Kayak'!N36*COS(RADIANS(T$4))-'Mini-Kayak'!O36*SIN(RADIANS(T$4))+T$1,"") -> 302.9846144 | T11: =IF('Mini-Kayak'!O36<>"",MAX(('Mini-Kayak'!N36*SIN(RADIANS(T$4))+'Mini-Kayak'!O36*COS(RADIANS(T$4))*T$3)+T$2,M11+3),"") -> 455.1548417 | V11: =IF('Mini-Kayak'!V36<>"",'Mini-Kayak'!V36*COS(RADIANS(Y$4))-'Mini-Kayak'!W36*SIN(RADIANS(Y$4))+Y$1,"") ->  | W11: =IF('Mini-Kayak'!W36<>"",('Mini-Kayak'!V36*SIN(RADIANS(Y$4))+'Mini-Kayak'!W36*COS(RADIANS(Y$4))*Y$3)+Y$2,"") ->  | X11: =IF('Mini-Kayak'!X36<>"",'Mini-Kayak'!X36*COS(RADIANS(Y$4))-'Mini-Kayak'!Y36*SIN(RADIANS(Y$4))+Y$1,"") ->  | Y11: =IF('Mini-Kayak'!Y36<>"",('Mini-Kayak'!X36*SIN(RADIANS(Y$4))+'Mini-Kayak'!Y36*COS(RADIANS(Y$4))*Y$3)+Y$2,"") -> 
A12: 6 | B12: =IF('Mini-Kayak'!B37<>"",'Mini-Kayak'!B37*COS(RADIANS(E$4))-'Mini-Kayak'!C37*SIN(RADIANS(E$4))+E$1,"") -> 398.1959466 | C12: =IF('Mini-Kayak'!C37<>"",('Mini-Kayak'!B37*SIN(RADIANS(E$4))+'Mini-Kayak'!C37*COS(RADIANS(E$4))*E$3)+E$2,"") -> 194.4038905 | D12: =IF('Mini-Kayak'!D37<>"",'Mini-Kayak'!D37*COS(RADIANS(E$4))-'Mini-Kayak'!E37*SIN(RADIANS(E$4))+E$1,"") -> 397.8252871 | E12: =IF('Mini-Kayak'!E37<>"",('Mini-Kayak'!D37*SIN(RADIANS(E$4))+'Mini-Kayak'!E37*COS(RADIANS(E$4))*E$3)+E$2,"") -> 97.60914263 | F12: -7.189608004 | G12: =IF('Mini-Kayak'!G37<>"",'Mini-Kayak'!G37*COS(RADIANS(J$4))-'Mini-Kayak'!H37*SIN(RADIANS(J$4))+J$1,"") -> 390.0922822 | H12: =IF('Mini-Kayak'!H37<>"",('Mini-Kayak'!G37*SIN(RADIANS(J$4))+'Mini-Kayak'!H37*COS(RADIANS(J$4))*J$3)+J$2,"") -> 201.5934985 | I12: =IF('Mini-Kayak'!I37<>"",'Mini-Kayak'!I37*COS(RADIANS(J$4))-'Mini-Kayak'!J37*SIN(RADIANS(J$4))+J$1,"") -> 387.9642657 | J12: =IF('Mini-Kayak'!J37<>"",('Mini-Kayak'!I37*SIN(RADIANS(J$4))+'Mini-Kayak'!J37*COS(RADIANS(J$4))*J$3)+J$2,"") -> 344.5593066 | K12: 6.452234717 | L12: =IF('Mini-Kayak'!L37<>"",'Mini-Kayak'!L37*COS(RADIANS(O$4))-'Mini-Kayak'!M37*SIN(RADIANS(O$4))+O$1,"") -> 401.6218063 | M12: =IF('Mini-Kayak'!M37<>"",('Mini-Kayak'!L37*SIN(RADIANS(O$4))+'Mini-Kayak'!M37*COS(RADIANS(O$4))*O$3)+O$2,"") -> 480.6836735 | N12: =IF('Mini-Kayak'!N37<>"",'Mini-Kayak'!N37*COS(RADIANS(O$4))-'Mini-Kayak'!O37*SIN(RADIANS(O$4))+O$1,"") -> 403.9496697 | O12: =IF('Mini-Kayak'!O37<>"",('Mini-Kayak'!N37*SIN(RADIANS(O$4))+'Mini-Kayak'!O37*COS(RADIANS(O$4))*O$3)+O$2,"") -> 351.0115413 | Q12: =IF('Mini-Kayak'!L37<>"",'Mini-Kayak'!L37*COS(RADIANS(T$4))-'Mini-Kayak'!M37*SIN(RADIANS(T$4))+T$1,"") -> 401.099219 | R12: =IF('Mini-Kayak'!M37<>"",('Mini-Kayak'!L37*SIN(RADIANS(T$4))+'Mini-Kayak'!M37*COS(RADIANS(T$4))*T$3)+T$2,"") -> 535.0741281 | S12: =IF('Mini-Kayak'!N37<>"",'Mini-Kayak'!N37*COS(RADIANS(T$4))-'Mini-Kayak'!O37*SIN(RADIANS(T$4))+T$1,"") -> 402.9744737 | T12: =IF('Mini-Kayak'!O37<>"",MAX(('Mini-Kayak'!N37*SIN(RADIANS(T$4))+'Mini-Kayak'!O37*COS(RADIANS(T$4))*T$3)+T$2,M12+3),"") -> 483.6836735 | V12: =IF('Mini-Kayak'!V37<>"",'Mini-Kayak'!V37*COS(RADIANS(Y$4))-'Mini-Kayak'!W37*SIN(RADIANS(Y$4))+Y$1,"") ->  | W12: =IF('Mini-Kayak'!W37<>"",('Mini-Kayak'!V37*SIN(RADIANS(Y$4))+'Mini-Kayak'!W37*COS(RADIANS(Y$4))*Y$3)+Y$2,"") ->  | X12: =IF('Mini-Kayak'!X37<>"",'Mini-Kayak'!X37*COS(RADIANS(Y$4))-'Mini-Kayak'!Y37*SIN(RADIANS(Y$4))+Y$1,"") ->  | Y12: =IF('Mini-Kayak'!Y37<>"",('Mini-Kayak'!X37*SIN(RADIANS(Y$4))+'Mini-Kayak'!Y37*COS(RADIANS(Y$4))*Y$3)+Y$2,"") -> 
A13: 7 | B13: =IF('Mini-Kayak'!B38<>"",'Mini-Kayak'!B38*COS(RADIANS(E$4))-'Mini-Kayak'!C38*SIN(RADIANS(E$4))+E$1,"") -> 498.6441216 | C13: =IF('Mini-Kayak'!C38<>"",('Mini-Kayak'!B38*SIN(RADIANS(E$4))+'Mini-Kayak'!C38*COS(RADIANS(E$4))*E$3)+E$2,"") -> 195.9633599 | D13: =IF('Mini-Kayak'!D38<>"",'Mini-Kayak'!D38*COS(RADIANS(E$4))-'Mini-Kayak'!E38*SIN(RADIANS(E$4))+E$1,"") -> 498.3036316 | E13: =IF('Mini-Kayak'!E38<>"",('Mini-Kayak'!D38*SIN(RADIANS(E$4))+'Mini-Kayak'!E38*COS(RADIANS(E$4))*E$3)+E$2,"") -> 73.07614736 | F13: -7.269732646 | G13: =IF('Mini-Kayak'!G38<>"",'Mini-Kayak'!G38*COS(RADIANS(J$4))-'Mini-Kayak'!H38*SIN(RADIANS(J$4))+J$1,"") -> 493.509289 | H13: =IF('Mini-Kayak'!H38<>"",('Mini-Kayak'!G38*SIN(RADIANS(J$4))+'Mini-Kayak'!H38*COS(RADIANS(J$4))*J$3)+J$2,"") -> 203.2330925 | I13: =IF('Mini-Kayak'!I38<>"",'Mini-Kayak'!I38*COS(RADIANS(J$4))-'Mini-Kayak'!J38*SIN(RADIANS(J$4))+J$1,"") -> 490.8142676 | J13: =IF('Mini-Kayak'!J38<>"",('Mini-Kayak'!I38*SIN(RADIANS(J$4))+'Mini-Kayak'!J38*COS(RADIANS(J$4))*J$3)+J$2,"") -> 345.5216619 | K13: 6.500458844 | L13: =IF('Mini-Kayak'!L38<>"",'Mini-Kayak'!L38*COS(RADIANS(O$4))-'Mini-Kayak'!M38*SIN(RADIANS(O$4))+O$1,"") -> 501.1742156 | M13: =IF('Mini-Kayak'!M38<>"",('Mini-Kayak'!L38*SIN(RADIANS(O$4))+'Mini-Kayak'!M38*COS(RADIANS(O$4))*O$3)+O$2,"") -> 505.8408332 | N13: =IF('Mini-Kayak'!N38<>"",'Mini-Kayak'!N38*COS(RADIANS(O$4))-'Mini-Kayak'!O38*SIN(RADIANS(O$4))+O$1,"") -> 503.9354177 | O13: =IF('Mini-Kayak'!O38<>"",('Mini-Kayak'!N38*SIN(RADIANS(O$4))+'Mini-Kayak'!O38*COS(RADIANS(O$4))*O$3)+O$2,"") -> 352.0221207 | Q13: =IF('Mini-Kayak'!L38<>"",'Mini-Kayak'!L38*COS(RADIANS(T$4))-'Mini-Kayak'!M38*SIN(RADIANS(T$4))+T$1,"") -> 500.7412649 | R13: =IF('Mini-Kayak'!M38<>"",('Mini-Kayak'!L38*SIN(RADIANS(T$4))+'Mini-Kayak'!M38*COS(RADIANS(T$4))*T$3)+T$2,"") -> 560.5792589 | S13: =IF('Mini-Kayak'!N38<>"",'Mini-Kayak'!N38*COS(RADIANS(T$4))-'Mini-Kayak'!O38*SIN(RADIANS(T$4))+T$1,"") -> 502.9655769 | T13: =IF('Mini-Kayak'!O38<>"",MAX(('Mini-Kayak'!N38*SIN(RADIANS(T$4))+'Mini-Kayak'!O38*COS(RADIANS(T$4))*T$3)+T$2,M13+3),"") -> 508.8408332 | V13: =IF('Mini-Kayak'!V38<>"",'Mini-Kayak'!V38*COS(RADIANS(Y$4))-'Mini-Kayak'!W38*SIN(RADIANS(Y$4))+Y$1,"") ->  | W13: =IF('Mini-Kayak'!W38<>"",('Mini-Kayak'!V38*SIN(RADIANS(Y$4))+'Mini-Kayak'!W38*COS(RADIANS(Y$4))*Y$3)+Y$2,"") ->  | X13: =IF('Mini-Kayak'!X38<>"",'Mini-Kayak'!X38*COS(RADIANS(Y$4))-'Mini-Kayak'!Y38*SIN(RADIANS(Y$4))+Y$1,"") ->  | Y13: =IF('Mini-Kayak'!Y38<>"",('Mini-Kayak'!X38*SIN(RADIANS(Y$4))+'Mini-Kayak'!Y38*COS(RADIANS(Y$4))*Y$3)+Y$2,"") -> 
A14: 8 | B14: =IF('Mini-Kayak'!B39<>"",'Mini-Kayak'!B39*COS(RADIANS(E$4))-'Mini-Kayak'!C39*SIN(RADIANS(E$4))+E$1,"") -> 594.9657428 | C14: =IF('Mini-Kayak'!C39<>"",('Mini-Kayak'!B39*SIN(RADIANS(E$4))+'Mini-Kayak'!C39*COS(RADIANS(E$4))*E$3)+E$2,"") -> 197.2378881 | D14: =IF('Mini-Kayak'!D39<>"",'Mini-Kayak'!D39*COS(RADIANS(E$4))-'Mini-Kayak'!E39*SIN(RADIANS(E$4))+E$1,"") -> 594.6937939 | E14: =IF('Mini-Kayak'!E39<>"",('Mini-Kayak'!D39*SIN(RADIANS(E$4))+'Mini-Kayak'!E39*COS(RADIANS(E$4))*E$3)+E$2,"") -> 53.12732442 | F14: -6.863003462 | G14: =IF('Mini-Kayak'!G39<>"",'Mini-Kayak'!G39*COS(RADIANS(J$4))-'Mini-Kayak'!H39*SIN(RADIANS(J$4))+J$1,"") -> 591.9382779 | H14: =IF('Mini-Kayak'!H39<>"",('Mini-Kayak'!G39*SIN(RADIANS(J$4))+'Mini-Kayak'!H39*COS(RADIANS(J$4))*J$3)+J$2,"") -> 204.1008915 | I14: =IF('Mini-Kayak'!I39<>"",'Mini-Kayak'!I39*COS(RADIANS(J$4))-'Mini-Kayak'!J39*SIN(RADIANS(J$4))+J$1,"") -> 588.8607262 | J14: =IF('Mini-Kayak'!J39<>"",('Mini-Kayak'!I39*SIN(RADIANS(J$4))+'Mini-Kayak'!J39*COS(RADIANS(J$4))*J$3)+J$2,"") -> 346.6474758 | K14: 6.312505385 | L14: =IF('Mini-Kayak'!L39<>"",'Mini-Kayak'!L39*COS(RADIANS(O$4))-'Mini-Kayak'!M39*SIN(RADIANS(O$4))+O$1,"") -> 596.8005379 | M14: =IF('Mini-Kayak'!M39<>"",('Mini-Kayak'!L39*SIN(RADIANS(O$4))+'Mini-Kayak'!M39*COS(RADIANS(O$4))*O$3)+O$2,"") -> 526.851781 | N14: =IF('Mini-Kayak'!N39<>"",'Mini-Kayak'!N39*COS(RADIANS(O$4))-'Mini-Kayak'!O39*SIN(RADIANS(O$4))+O$1,"") -> 599.9228678 | O14: =IF('Mini-Kayak'!O39<>"",('Mini-Kayak'!N39*SIN(RADIANS(O$4))+'Mini-Kayak'!O39*COS(RADIANS(O$4))*O$3)+O$2,"") -> 352.9599812 | Q14: =IF('Mini-Kayak'!L39<>"",'Mini-Kayak'!L39*COS(RADIANS(T$4))-'Mini-Kayak'!M39*SIN(RADIANS(T$4))+T$1,"") -> 596.4426787 | R14: =IF('Mini-Kayak'!M39<>"",('Mini-Kayak'!L39*SIN(RADIANS(T$4))+'Mini-Kayak'!M39*COS(RADIANS(T$4))*T$3)+T$2,"") -> 581.9243969 | S14: =IF('Mini-Kayak'!N39<>"",'Mini-Kayak'!N39*COS(RADIANS(T$4))-'Mini-Kayak'!O39*SIN(RADIANS(T$4))+T$1,"") -> 598.9580552 | T14: =IF('Mini-Kayak'!O39<>"",MAX(('Mini-Kayak'!N39*SIN(RADIANS(T$4))+'Mini-Kayak'!O39*COS(RADIANS(T$4))*T$3)+T$2,M14+3),"") -> 529.851781 | V14: =IF('Mini-Kayak'!V39<>"",'Mini-Kayak'!V39*COS(RADIANS(Y$4))-'Mini-Kayak'!W39*SIN(RADIANS(Y$4))+Y$1,"") ->  | W14: =IF('Mini-Kayak'!W39<>"",('Mini-Kayak'!V39*SIN(RADIANS(Y$4))+'Mini-Kayak'!W39*COS(RADIANS(Y$4))*Y$3)+Y$2,"") ->  | X14: =IF('Mini-Kayak'!X39<>"",'Mini-Kayak'!X39*COS(RADIANS(Y$4))-'Mini-Kayak'!Y39*SIN(RADIANS(Y$4))+Y$1,"") ->  | Y14: =IF('Mini-Kayak'!Y39<>"",('Mini-Kayak'!X39*SIN(RADIANS(Y$4))+'Mini-Kayak'!Y39*COS(RADIANS(Y$4))*Y$3)+Y$2,"") -> 
A15: 9 | B15: =IF('Mini-Kayak'!B40<>"",'Mini-Kayak'!B40*COS(RADIANS(E$4))-'Mini-Kayak'!C40*SIN(RADIANS(E$4))+E$1,"") -> 598.9771002 | C15: =IF('Mini-Kayak'!C40<>"",('Mini-Kayak'!B40*SIN(RADIANS(E$4))+'Mini-Kayak'!C40*COS(RADIANS(E$4))*E$3)+E$2,"") -> 197.2866806 | D15: =IF('Mini-Kayak'!D40<>"",'Mini-Kayak'!D40*COS(RADIANS(E$4))-'Mini-Kayak'!E40*SIN(RADIANS(E$4))+E$1,"") -> 598.7085782 | E15: =IF('Mini-Kayak'!E40<>"",('Mini-Kayak'!D40*SIN(RADIANS(E$4))+'Mini-Kayak'!E40*COS(RADIANS(E$4))*E$3)+E$2,"") -> 52.37115217 | F15: -6.838649715 | G15: =IF('Mini-Kayak'!G40<>"",'Mini-Kayak'!G40*COS(RADIANS(J$4))-'Mini-Kayak'!H40*SIN(RADIANS(J$4))+J$1,"") -> 596.0235798 | H15: =IF('Mini-Kayak'!H40<>"",('Mini-Kayak'!G40*SIN(RADIANS(J$4))+'Mini-Kayak'!H40*COS(RADIANS(J$4))*J$3)+J$2,"") -> 204.1253303 | I15: =IF('Mini-Kayak'!I40<>"",'Mini-Kayak'!I40*COS(RADIANS(J$4))-'Mini-Kayak'!J40*SIN(RADIANS(J$4))+J$1,"") -> 592.9329658 | J15: =IF('Mini-Kayak'!J40<>"",('Mini-Kayak'!I40*SIN(RADIANS(J$4))+'Mini-Kayak'!J40*COS(RADIANS(J$4))*J$3)+J$2,"") -> 346.6984613 | K15: 6.300365357 | L15: =IF('Mini-Kayak'!L40<>"",'Mini-Kayak'!L40*COS(RADIANS(O$4))-'Mini-Kayak'!M40*SIN(RADIANS(O$4))+O$1,"") -> 600.786152 | M15: =IF('Mini-Kayak'!M40<>"",('Mini-Kayak'!L40*SIN(RADIANS(O$4))+'Mini-Kayak'!M40*COS(RADIANS(O$4))*O$3)+O$2,"") -> 527.6609635 | N15: =IF('Mini-Kayak'!N40<>"",'Mini-Kayak'!N40*COS(RADIANS(O$4))-'Mini-Kayak'!O40*SIN(RADIANS(O$4))+O$1,"") -> 603.922356 | O15: =IF('Mini-Kayak'!O40<>"",('Mini-Kayak'!N40*SIN(RADIANS(O$4))+'Mini-Kayak'!O40*COS(RADIANS(O$4))*O$3)+O$2,"") -> 352.9988267 | Q15: =IF('Mini-Kayak'!L40<>"",'Mini-Kayak'!L40*COS(RADIANS(T$4))-'Mini-Kayak'!M40*SIN(RADIANS(T$4))+T$1,"") -> 600.4311902 | R15: =IF('Mini-Kayak'!M40<>"",('Mini-Kayak'!L40*SIN(RADIANS(T$4))+'Mini-Kayak'!M40*COS(RADIANS(T$4))*T$3)+T$2,"") -> 582.747507 | S15: =IF('Mini-Kayak'!N40<>"",'Mini-Kayak'!N40*COS(RADIANS(T$4))-'Mini-Kayak'!O40*SIN(RADIANS(T$4))+T$1,"") -> 602.9577521 | T15: =IF('Mini-Kayak'!O40<>"",MAX(('Mini-Kayak'!N40*SIN(RADIANS(T$4))+'Mini-Kayak'!O40*COS(RADIANS(T$4))*T$3)+T$2,M15+3),"") -> 530.6609635 | V15: =IF('Mini-Kayak'!V40<>"",'Mini-Kayak'!V40*COS(RADIANS(Y$4))-'Mini-Kayak'!W40*SIN(RADIANS(Y$4))+Y$1,"") ->  | W15: =IF('Mini-Kayak'!W40<>"",('Mini-Kayak'!V40*SIN(RADIANS(Y$4))+'Mini-Kayak'!W40*COS(RADIANS(Y$4))*Y$3)+Y$2,"") ->  | X15: =IF('Mini-Kayak'!X40<>"",'Mini-Kayak'!X40*COS(RADIANS(Y$4))-'Mini-Kayak'!Y40*SIN(RADIANS(Y$4))+Y$1,"") ->  | Y15: =IF('Mini-Kayak'!Y40<>"",('Mini-Kayak'!X40*SIN(RADIANS(Y$4))+'Mini-Kayak'!Y40*COS(RADIANS(Y$4))*Y$3)+Y$2,"") -> 
A16: 10 | B16: =IF('Mini-Kayak'!B41<>"",'Mini-Kayak'!B41*COS(RADIANS(E$4))-'Mini-Kayak'!C41*SIN(RADIANS(E$4))+E$1,"") -> 699.2128841 | C16: =IF('Mini-Kayak'!C41<>"",('Mini-Kayak'!B41*SIN(RADIANS(E$4))+'Mini-Kayak'!C41*COS(RADIANS(E$4))*E$3)+E$2,"") -> 198.388483 | D16: =IF('Mini-Kayak'!D41<>"",'Mini-Kayak'!D41*COS(RADIANS(E$4))-'Mini-Kayak'!E41*SIN(RADIANS(E$4))+E$1,"") -> 699.0364246 | E16: =IF('Mini-Kayak'!E41<>"",('Mini-Kayak'!D41*SIN(RADIANS(E$4))+'Mini-Kayak'!E41*COS(RADIANS(E$4))*E$3)+E$2,"") -> 35.36120835 | F16: -6.118214239 | G16: =IF('Mini-Kayak'!G41<>"",'Mini-Kayak'!G41*COS(RADIANS(J$4))-'Mini-Kayak'!H41*SIN(RADIANS(J$4))+J$1,"") -> 697.7824591 | H16: =IF('Mini-Kayak'!H41<>"",('Mini-Kayak'!G41*SIN(RADIANS(J$4))+'Mini-Kayak'!H41*COS(RADIANS(J$4))*J$3)+J$2,"") -> 204.5066973 | I16: =IF('Mini-Kayak'!I41<>"",'Mini-Kayak'!I41*COS(RADIANS(J$4))-'Mini-Kayak'!J41*SIN(RADIANS(J$4))+J$1,"") -> 694.430004 | J16: =IF('Mini-Kayak'!J41<>"",('Mini-Kayak'!I41*SIN(RADIANS(J$4))+'Mini-Kayak'!J41*COS(RADIANS(J$4))*J$3)+J$2,"") -> 348.0646097 | K16: 5.910517956 | L16: =IF('Mini-Kayak'!L41<>"",'Mini-Kayak'!L41*COS(RADIANS(O$4))-'Mini-Kayak'!M41*SIN(RADIANS(O$4))+O$1,"") -> 700.4572301 | M16: =IF('Mini-Kayak'!M41<>"",('Mini-Kayak'!L41*SIN(RADIANS(O$4))+'Mini-Kayak'!M41*COS(RADIANS(O$4))*O$3)+O$2,"") -> 546.179017 | N16: =IF('Mini-Kayak'!N41<>"",'Mini-Kayak'!N41*COS(RADIANS(O$4))-'Mini-Kayak'!O41*SIN(RADIANS(O$4))+O$1,"") -> 703.909429 | O16: =IF('Mini-Kayak'!O41<>"",('Mini-Kayak'!N41*SIN(RADIANS(O$4))+'Mini-Kayak'!O41*COS(RADIANS(O$4))*O$3)+O$2,"") -> 353.9751276 | Q16: =IF('Mini-Kayak'!L41<>"",'Mini-Kayak'!L41*COS(RADIANS(T$4))-'Mini-Kayak'!M41*SIN(RADIANS(T$4))+T$1,"") -> 700.1687317 | R16: =IF('Mini-Kayak'!M41<>"",('Mini-Kayak'!L41*SIN(RADIANS(T$4))+'Mini-Kayak'!M41*COS(RADIANS(T$4))*T$3)+T$2,"") -> 601.6138244 | S16: =IF('Mini-Kayak'!N41<>"",'Mini-Kayak'!N41*COS(RADIANS(T$4))-'Mini-Kayak'!O41*SIN(RADIANS(T$4))+T$1,"") -> 702.9500606 | T16: =IF('Mini-Kayak'!O41<>"",MAX(('Mini-Kayak'!N41*SIN(RADIANS(T$4))+'Mini-Kayak'!O41*COS(RADIANS(T$4))*T$3)+T$2,M16+3),"") -> 549.179017 | V16: =IF('Mini-Kayak'!V41<>"",'Mini-Kayak'!V41*COS(RADIANS(Y$4))-'Mini-Kayak'!W41*SIN(RADIANS(Y$4))+Y$1,"") ->  | W16: =IF('Mini-Kayak'!W41<>"",('Mini-Kayak'!V41*SIN(RADIANS(Y$4))+'Mini-Kayak'!W41*COS(RADIANS(Y$4))*Y$3)+Y$2,"") ->  | X16: =IF('Mini-Kayak'!X41<>"",'Mini-Kayak'!X41*COS(RADIANS(Y$4))-'Mini-Kayak'!Y41*SIN(RADIANS(Y$4))+Y$1,"") ->  | Y16: =IF('Mini-Kayak'!Y41<>"",('Mini-Kayak'!X41*SIN(RADIANS(Y$4))+'Mini-Kayak'!Y41*COS(RADIANS(Y$4))*Y$3)+Y$2,"") -> 
A17: 11 | B17: =IF('Mini-Kayak'!B42<>"",'Mini-Kayak'!B42*COS(RADIANS(E$4))-'Mini-Kayak'!C42*SIN(RADIANS(E$4))+E$1,"") -> 799.3691309 | C17: =IF('Mini-Kayak'!C42<>"",('Mini-Kayak'!B42*SIN(RADIANS(E$4))+'Mini-Kayak'!C42*COS(RADIANS(E$4))*E$3)+E$2,"") -> 199.2836674 | D17: =IF('Mini-Kayak'!D42<>"",'Mini-Kayak'!D42*COS(RADIANS(E$4))-'Mini-Kayak'!E42*SIN(RADIANS(E$4))+E$1,"") -> 799.2871449 | E17: =IF('Mini-Kayak'!E42<>"",('Mini-Kayak'!D42*SIN(RADIANS(E$4))+'Mini-Kayak'!E42*COS(RADIANS(E$4))*E$3)+E$2,"") -> 21.91751691 | F17: -5.315708789 | G17: =IF('Mini-Kayak'!G42<>"",'Mini-Kayak'!G42*COS(RADIANS(J$4))-'Mini-Kayak'!H42*SIN(RADIANS(J$4))+J$1,"") -> 798.9305247 | H17: =IF('Mini-Kayak'!H42<>"",('Mini-Kayak'!G42*SIN(RADIANS(J$4))+'Mini-Kayak'!H42*COS(RADIANS(J$4))*J$3)+J$2,"") -> 204.5993761 | I17: =IF('Mini-Kayak'!I42<>"",'Mini-Kayak'!I42*COS(RADIANS(J$4))-'Mini-Kayak'!J42*SIN(RADIANS(J$4))+J$1,"") -> 795.4152712 | J17: =IF('Mini-Kayak'!J42<>"",('Mini-Kayak'!I42*SIN(RADIANS(J$4))+'Mini-Kayak'!J42*COS(RADIANS(J$4))*J$3)+J$2,"") -> 349.5867522 | K17: 5.398618606 | L17: =IF('Mini-Kayak'!L42<>"",'Mini-Kayak'!L42*COS(RADIANS(O$4))-'Mini-Kayak'!M42*SIN(RADIANS(O$4))+O$1,"") -> 800.186891 | M17: =IF('Mini-Kayak'!M42<>"",('Mini-Kayak'!L42*SIN(RADIANS(O$4))+'Mini-Kayak'!M42*COS(RADIANS(O$4))*O$3)+O$2,"") -> 561.4303004 | N17: =IF('Mini-Kayak'!N42<>"",'Mini-Kayak'!N42*COS(RADIANS(O$4))-'Mini-Kayak'!O42*SIN(RADIANS(O$4))+O$1,"") -> 803.8954402 | O17: =IF('Mini-Kayak'!O42<>"",('Mini-Kayak'!N42*SIN(RADIANS(O$4))+'Mini-Kayak'!O42*COS(RADIANS(O$4))*O$3)+O$2,"") -> 354.9853708 | Q17: =IF('Mini-Kayak'!L42<>"",'Mini-Kayak'!L42*COS(RADIANS(T$4))-'Mini-Kayak'!M42*SIN(RADIANS(T$4))+T$1,"") -> 799.9534536 | R17: =IF('Mini-Kayak'!M42<>"",('Mini-Kayak'!L42*SIN(RADIANS(T$4))+'Mini-Kayak'!M42*COS(RADIANS(T$4))*T$3)+T$2,"") -> 617.2135165 | S17: =IF('Mini-Kayak'!N42<>"",'Mini-Kayak'!N42*COS(RADIANS(T$4))-'Mini-Kayak'!O42*SIN(RADIANS(T$4))+T$1,"") -> 802.9414258 | T17: =IF('Mini-Kayak'!O42<>"",MAX(('Mini-Kayak'!N42*SIN(RADIANS(T$4))+'Mini-Kayak'!O42*COS(RADIANS(T$4))*T$3)+T$2,M17+3),"") -> 564.4303004 | V17: =IF('Mini-Kayak'!V42<>"",'Mini-Kayak'!V42*COS(RADIANS(Y$4))-'Mini-Kayak'!W42*SIN(RADIANS(Y$4))+Y$1,"") ->  | W17: =IF('Mini-Kayak'!W42<>"",('Mini-Kayak'!V42*SIN(RADIANS(Y$4))+'Mini-Kayak'!W42*COS(RADIANS(Y$4))*Y$3)+Y$2,"") ->  | X17: =IF('Mini-Kayak'!X42<>"",'Mini-Kayak'!X42*COS(RADIANS(Y$4))-'Mini-Kayak'!Y42*SIN(RADIANS(Y$4))+Y$1,"") ->  | Y17: =IF('Mini-Kayak'!Y42<>"",('Mini-Kayak'!X42*SIN(RADIANS(Y$4))+'Mini-Kayak'!Y42*COS(RADIANS(Y$4))*Y$3)+Y$2,"") -> 
A18: 12 | B18: =IF('Mini-Kayak'!B43<>"",'Mini-Kayak'!B43*COS(RADIANS(E$4))-'Mini-Kayak'!C43*SIN(RADIANS(E$4))+E$1,"") -> 899.4628419 | C18: =IF('Mini-Kayak'!C43<>"",('Mini-Kayak'!B43*SIN(RADIANS(E$4))+'Mini-Kayak'!C43*COS(RADIANS(E$4))*E$3)+E$2,"") -> 199.9852623 | D18: =IF('Mini-Kayak'!D43<>"",'Mini-Kayak'!D43*COS(RADIANS(E$4))-'Mini-Kayak'!E43*SIN(RADIANS(E$4))+E$1,"") -> 899.4641037 | E18: =IF('Mini-Kayak'!E43<>"",('Mini-Kayak'!D43*SIN(RADIANS(E$4))+'Mini-Kayak'!E43*COS(RADIANS(E$4))*E$3)+E$2,"") -> 11.91333683 | F18: -4.625576113 | G18: =IF('Mini-Kayak'!G43<>"",'Mini-Kayak'!G43*COS(RADIANS(J$4))-'Mini-Kayak'!H43*SIN(RADIANS(J$4))+J$1,"") -> 899.6057777 | H18: =IF('Mini-Kayak'!H43<>"",('Mini-Kayak'!G43*SIN(RADIANS(J$4))+'Mini-Kayak'!H43*COS(RADIANS(J$4))*J$3)+J$2,"") -> 204.6108384 | I18: =IF('Mini-Kayak'!I43<>"",'Mini-Kayak'!I43*COS(RADIANS(J$4))-'Mini-Kayak'!J43*SIN(RADIANS(J$4))+J$1,"") -> 895.9967251 | J18: =IF('Mini-Kayak'!J43<>"",('Mini-Kayak'!I43*SIN(RADIANS(J$4))+'Mini-Kayak'!J43*COS(RADIANS(J$4))*J$3)+J$2,"") -> 351.2223036 | K18: 4.842004455 | L18: =IF('Mini-Kayak'!L43<>"",'Mini-Kayak'!L43*COS(RADIANS(O$4))-'Mini-Kayak'!M43*SIN(RADIANS(O$4))+O$1,"") -> 899.9745811 | M18: =IF('Mini-Kayak'!M43<>"",('Mini-Kayak'!L43*SIN(RADIANS(O$4))+'Mini-Kayak'!M43*COS(RADIANS(O$4))*O$3)+O$2,"") -> 573.4502954 | N18: =IF('Mini-Kayak'!N43<>"",'Mini-Kayak'!N43*COS(RADIANS(O$4))-'Mini-Kayak'!O43*SIN(RADIANS(O$4))+O$1,"") -> 903.8796822 | O18: =IF('Mini-Kayak'!O43<>"",('Mini-Kayak'!N43*SIN(RADIANS(O$4))+'Mini-Kayak'!O43*COS(RADIANS(O$4))*O$3)+O$2,"") -> 356.0643081 | Q18: =IF('Mini-Kayak'!L43<>"",'Mini-Kayak'!L43*COS(RADIANS(T$4))-'Mini-Kayak'!M43*SIN(RADIANS(T$4))+T$1,"") -> 899.7849262 | R18: =IF('Mini-Kayak'!M43<>"",('Mini-Kayak'!L43*SIN(RADIANS(T$4))+'Mini-Kayak'!M43*COS(RADIANS(T$4))*T$3)+T$2,"") -> 629.5820638 | S18: =IF('Mini-Kayak'!N43<>"",'Mini-Kayak'!N43*COS(RADIANS(T$4))-'Mini-Kayak'!O43*SIN(RADIANS(T$4))+T$1,"") -> 902.9312615 | T18: =IF('Mini-Kayak'!O43<>"",MAX(('Mini-Kayak'!N43*SIN(RADIANS(T$4))+'Mini-Kayak'!O43*COS(RADIANS(T$4))*T$3)+T$2,M18+3),"") -> 576.4502954 | V18: =IF('Mini-Kayak'!V43<>"",'Mini-Kayak'!V43*COS(RADIANS(Y$4))-'Mini-Kayak'!W43*SIN(RADIANS(Y$4))+Y$1,"") ->  | W18: =IF('Mini-Kayak'!W43<>"",('Mini-Kayak'!V43*SIN(RADIANS(Y$4))+'Mini-Kayak'!W43*COS(RADIANS(Y$4))*Y$3)+Y$2,"") ->  | X18: =IF('Mini-Kayak'!X43<>"",'Mini-Kayak'!X43*COS(RADIANS(Y$4))-'Mini-Kayak'!Y43*SIN(RADIANS(Y$4))+Y$1,"") ->  | Y18: =IF('Mini-Kayak'!Y43<>"",('Mini-Kayak'!X43*SIN(RADIANS(Y$4))+'Mini-Kayak'!Y43*COS(RADIANS(Y$4))*Y$3)+Y$2,"") -> 
A19: 13 | B19: =IF('Mini-Kayak'!B44<>"",'Mini-Kayak'!B44*COS(RADIANS(E$4))-'Mini-Kayak'!C44*SIN(RADIANS(E$4))+E$1,"") -> 999.5104213 | C19: =IF('Mini-Kayak'!C44<>"",('Mini-Kayak'!B44*SIN(RADIANS(E$4))+'Mini-Kayak'!C44*COS(RADIANS(E$4))*E$3)+E$2,"") -> 200.5046581 | D19: =IF('Mini-Kayak'!D44<>"",'Mini-Kayak'!D44*COS(RADIANS(E$4))-'Mini-Kayak'!E44*SIN(RADIANS(E$4))+E$1,"") -> 999.5745029 | E19: =IF('Mini-Kayak'!E44<>"",('Mini-Kayak'!D44*SIN(RADIANS(E$4))+'Mini-Kayak'!E44*COS(RADIANS(E$4))*E$3)+E$2,"") -> 5.224150423 | F19: -4.231539575 | G19: =IF('Mini-Kayak'!G44<>"",'Mini-Kayak'!G44*COS(RADIANS(J$4))-'Mini-Kayak'!H44*SIN(RADIANS(J$4))+J$1,"") -> 999.939329 | H19: =IF('Mini-Kayak'!H44<>"",('Mini-Kayak'!G44*SIN(RADIANS(J$4))+'Mini-Kayak'!H44*COS(RADIANS(J$4))*J$3)+J$2,"") -> 204.7361976 | I19: =IF('Mini-Kayak'!I44<>"",'Mini-Kayak'!I44*COS(RADIANS(J$4))-'Mini-Kayak'!J44*SIN(RADIANS(J$4))+J$1,"") -> 996.280633 | J19: =IF('Mini-Kayak'!J44<>"",('Mini-Kayak'!I44*SIN(RADIANS(J$4))+'Mini-Kayak'!J44*COS(RADIANS(J$4))*J$3)+J$2,"") -> 352.9206749 | K19: 4.32591879 | L19: =IF('Mini-Kayak'!L44<>"",'Mini-Kayak'!L44*COS(RADIANS(O$4))-'Mini-Kayak'!M44*SIN(RADIANS(O$4))+O$1,"") -> 999.8198936 | M19: =IF('Mini-Kayak'!M44<>"",('Mini-Kayak'!L44*SIN(RADIANS(O$4))+'Mini-Kayak'!M44*COS(RADIANS(O$4))*O$3)+O$2,"") -> 582.2745837 | N19: =IF('Mini-Kayak'!N44<>"",'Mini-Kayak'!N44*COS(RADIANS(O$4))-'Mini-Kayak'!O44*SIN(RADIANS(O$4))+O$1,"") -> 1003.862567 | O19: =IF('Mini-Kayak'!O44<>"",('Mini-Kayak'!N44*SIN(RADIANS(O$4))+'Mini-Kayak'!O44*COS(RADIANS(O$4))*O$3)+O$2,"") -> 357.2465937 | Q19: =IF('Mini-Kayak'!L44<>"",'Mini-Kayak'!L44*COS(RADIANS(T$4))-'Mini-Kayak'!M44*SIN(RADIANS(T$4))+T$1,"") -> 999.6628669 | R19: =IF('Mini-Kayak'!M44<>"",('Mini-Kayak'!L44*SIN(RADIANS(T$4))+'Mini-Kayak'!M44*COS(RADIANS(T$4))*T$3)+T$2,"") -> 638.755047 | S19: =IF('Mini-Kayak'!N44<>"",'Mini-Kayak'!N44*COS(RADIANS(T$4))-'Mini-Kayak'!O44*SIN(RADIANS(T$4))+T$1,"") -> 1002.920101 | T19: =IF('Mini-Kayak'!O44<>"",MAX(('Mini-Kayak'!N44*SIN(RADIANS(T$4))+'Mini-Kayak'!O44*COS(RADIANS(T$4))*T$3)+T$2,M19+3),"") -> 585.2745837 | V19: =IF('Mini-Kayak'!V44<>"",'Mini-Kayak'!V44*COS(RADIANS(Y$4))-'Mini-Kayak'!W44*SIN(RADIANS(Y$4))+Y$1,"") ->  | W19: =IF('Mini-Kayak'!W44<>"",('Mini-Kayak'!V44*SIN(RADIANS(Y$4))+'Mini-Kayak'!W44*COS(RADIANS(Y$4))*Y$3)+Y$2,"") ->  | X19: =IF('Mini-Kayak'!X44<>"",'Mini-Kayak'!X44*COS(RADIANS(Y$4))-'Mini-Kayak'!Y44*SIN(RADIANS(Y$4))+Y$1,"") ->  | Y19: =IF('Mini-Kayak'!Y44<>"",('Mini-Kayak'!X44*SIN(RADIANS(Y$4))+'Mini-Kayak'!Y44*COS(RADIANS(Y$4))*Y$3)+Y$2,"") -> 
A20: 14 | B20: =IF('Mini-Kayak'!B45<>"",'Mini-Kayak'!B45*COS(RADIANS(E$4))-'Mini-Kayak'!C45*SIN(RADIANS(E$4))+E$1,"") -> 1099.527663 | C20: =IF('Mini-Kayak'!C45<>"",('Mini-Kayak'!B45*SIN(RADIANS(E$4))+'Mini-Kayak'!C45*COS(RADIANS(E$4))*E$3)+E$2,"") -> 200.851345 | D20: =IF('Mini-Kayak'!D45<>"",'Mini-Kayak'!D45*COS(RADIANS(E$4))-'Mini-Kayak'!E45*SIN(RADIANS(E$4))+E$1,"") -> 1099.629767 | E20: =IF('Mini-Kayak'!E45<>"",('Mini-Kayak'!D45*SIN(RADIANS(E$4))+'Mini-Kayak'!E45*COS(RADIANS(E$4))*E$3)+E$2,"") -> 1.727145926 | F20: -4.309184057 | G20: =IF('Mini-Kayak'!G45<>"",'Mini-Kayak'!G45*COS(RADIANS(J$4))-'Mini-Kayak'!H45*SIN(RADIANS(J$4))+J$1,"") -> 1100.054786 | H20: =IF('Mini-Kayak'!H45<>"",('Mini-Kayak'!G45*SIN(RADIANS(J$4))+'Mini-Kayak'!H45*COS(RADIANS(J$4))*J$3)+J$2,"") -> 205.160529 | I20: =IF('Mini-Kayak'!I45<>"",'Mini-Kayak'!I45*COS(RADIANS(J$4))-'Mini-Kayak'!J45*SIN(RADIANS(J$4))+J$1,"") -> 1096.371293 | J20: =IF('Mini-Kayak'!J45<>"",('Mini-Kayak'!I45*SIN(RADIANS(J$4))+'Mini-Kayak'!J45*COS(RADIANS(J$4))*J$3)+J$2,"") -> 354.6243069 | K20: 3.941758195 | L20: =IF('Mini-Kayak'!L45<>"",'Mini-Kayak'!L45*COS(RADIANS(O$4))-'Mini-Kayak'!M45*SIN(RADIANS(O$4))+O$1,"") -> 1099.722698 | M20: =IF('Mini-Kayak'!M45<>"",('Mini-Kayak'!L45*SIN(RADIANS(O$4))+'Mini-Kayak'!M45*COS(RADIANS(O$4))*O$3)+O$2,"") -> 587.9387597 | N20: =IF('Mini-Kayak'!N45<>"",'Mini-Kayak'!N45*COS(RADIANS(O$4))-'Mini-Kayak'!O45*SIN(RADIANS(O$4))+O$1,"") -> 1103.846265 | O20: =IF('Mini-Kayak'!O45<>"",('Mini-Kayak'!N45*SIN(RADIANS(O$4))+'Mini-Kayak'!O45*COS(RADIANS(O$4))*O$3)+O$2,"") -> 358.5660651 | Q20: =IF('Mini-Kayak'!L45<>"",'Mini-Kayak'!L45*COS(RADIANS(T$4))-'Mini-Kayak'!M45*SIN(RADIANS(T$4))+T$1,"") -> 1099.587269 | R20: =IF('Mini-Kayak'!M45<>"",('Mini-Kayak'!L45*SIN(RADIANS(T$4))+'Mini-Kayak'!M45*COS(RADIANS(T$4))*T$3)+T$2,"") -> 644.7680609 | S20: =IF('Mini-Kayak'!N45<>"",'Mini-Kayak'!N45*COS(RADIANS(T$4))-'Mini-Kayak'!O45*SIN(RADIANS(T$4))+T$1,"") -> 1102.910232 | T20: =IF('Mini-Kayak'!O45<>"",MAX(('Mini-Kayak'!N45*SIN(RADIANS(T$4))+'Mini-Kayak'!O45*COS(RADIANS(T$4))*T$3)+T$2,M20+3),"") -> 590.9387597 | V20: =IF('Mini-Kayak'!V45<>"",'Mini-Kayak'!V45*COS(RADIANS(Y$4))-'Mini-Kayak'!W45*SIN(RADIANS(Y$4))+Y$1,"") ->  | W20: =IF('Mini-Kayak'!W45<>"",('Mini-Kayak'!V45*SIN(RADIANS(Y$4))+'Mini-Kayak'!W45*COS(RADIANS(Y$4))*Y$3)+Y$2,"") ->  | X20: =IF('Mini-Kayak'!X45<>"",'Mini-Kayak'!X45*COS(RADIANS(Y$4))-'Mini-Kayak'!Y45*SIN(RADIANS(Y$4))+Y$1,"") ->  | Y20: =IF('Mini-Kayak'!Y45<>"",('Mini-Kayak'!X45*SIN(RADIANS(Y$4))+'Mini-Kayak'!Y45*COS(RADIANS(Y$4))*Y$3)+Y$2,"") -> 
A21: 15 | B21: =IF('Mini-Kayak'!B46<>"",'Mini-Kayak'!B46*COS(RADIANS(E$4))-'Mini-Kayak'!C46*SIN(RADIANS(E$4))+E$1,"") -> 1199.529734 | C21: =IF('Mini-Kayak'!C46<>"",('Mini-Kayak'!B46*SIN(RADIANS(E$4))+'Mini-Kayak'!C46*COS(RADIANS(E$4))*E$3)+E$2,"") -> 201.032636 | D21: =IF('Mini-Kayak'!D46<>"",'Mini-Kayak'!D46*COS(RADIANS(E$4))-'Mini-Kayak'!E46*SIN(RADIANS(E$4))+E$1,"") -> 1199.64603 | E21: =IF('Mini-Kayak'!E46<>"",('Mini-Kayak'!D46*SIN(RADIANS(E$4))+'Mini-Kayak'!E46*COS(RADIANS(E$4))*E$3)+E$2,"") -> 1.300374435 | F21: -5.028531224 | G21: =IF('Mini-Kayak'!G46<>"",'Mini-Kayak'!G46*COS(RADIANS(J$4))-'Mini-Kayak'!H46*SIN(RADIANS(J$4))+J$1,"") -> 1200.067905 | H21: =IF('Mini-Kayak'!H46<>"",('Mini-Kayak'!G46*SIN(RADIANS(J$4))+'Mini-Kayak'!H46*COS(RADIANS(J$4))*J$3)+J$2,"") -> 206.0611673 | I21: =IF('Mini-Kayak'!I46<>"",'Mini-Kayak'!I46*COS(RADIANS(J$4))-'Mini-Kayak'!J46*SIN(RADIANS(J$4))+J$1,"") -> 1196.370726 | J21: =IF('Mini-Kayak'!J46<>"",('Mini-Kayak'!I46*SIN(RADIANS(J$4))+'Mini-Kayak'!J46*COS(RADIANS(J$4))*J$3)+J$2,"") -> 356.2697799 | K21: 3.784943986 | L21: =IF('Mini-Kayak'!L46<>"",'Mini-Kayak'!L46*COS(RADIANS(O$4))-'Mini-Kayak'!M46*SIN(RADIANS(O$4))+O$1,"") -> 1199.683253 | M21: =IF('Mini-Kayak'!M46<>"",('Mini-Kayak'!L46*SIN(RADIANS(O$4))+'Mini-Kayak'!M46*COS(RADIANS(O$4))*O$3)+O$2,"") -> 590.4783729 | N21: =IF('Mini-Kayak'!N46<>"",'Mini-Kayak'!N46*COS(RADIANS(O$4))-'Mini-Kayak'!O46*SIN(RADIANS(O$4))+O$1,"") -> 1203.835352 | O21: =IF('Mini-Kayak'!O46<>"",('Mini-Kayak'!N46*SIN(RADIANS(O$4))+'Mini-Kayak'!O46*COS(RADIANS(O$4))*O$3)+O$2,"") -> 360.0547239 | Q21: =IF('Mini-Kayak'!L46<>"",'Mini-Kayak'!L46*COS(RADIANS(T$4))-'Mini-Kayak'!M46*SIN(RADIANS(T$4))+T$1,"") -> 1199.558517 | R21: =IF('Mini-Kayak'!M46<>"",('Mini-Kayak'!L46*SIN(RADIANS(T$4))+'Mini-Kayak'!M46*COS(RADIANS(T$4))*T$3)+T$2,"") -> 647.6566564 | S21: =IF('Mini-Kayak'!N46<>"",'Mini-Kayak'!N46*COS(RADIANS(T$4))-'Mini-Kayak'!O46*SIN(RADIANS(T$4))+T$1,"") -> 1202.906343 | T21: =IF('Mini-Kayak'!O46<>"",MAX(('Mini-Kayak'!N46*SIN(RADIANS(T$4))+'Mini-Kayak'!O46*COS(RADIANS(T$4))*T$3)+T$2,M21+3),"") -> 593.4783729 | V21: =IF('Mini-Kayak'!V46<>"",'Mini-Kayak'!V46*COS(RADIANS(Y$4))-'Mini-Kayak'!W46*SIN(RADIANS(Y$4))+Y$1,"") ->  | W21: =IF('Mini-Kayak'!W46<>"",('Mini-Kayak'!V46*SIN(RADIANS(Y$4))+'Mini-Kayak'!W46*COS(RADIANS(Y$4))*Y$3)+Y$2,"") ->  | X21: =IF('Mini-Kayak'!X46<>"",'Mini-Kayak'!X46*COS(RADIANS(Y$4))-'Mini-Kayak'!Y46*SIN(RADIANS(Y$4))+Y$1,"") ->  | Y21: =IF('Mini-Kayak'!Y46<>"",('Mini-Kayak'!X46*SIN(RADIANS(Y$4))+'Mini-Kayak'!Y46*COS(RADIANS(Y$4))*Y$3)+Y$2,"") -> 
A22: 16 | B22: =IF('Mini-Kayak'!B47<>"",'Mini-Kayak'!B47*COS(RADIANS(E$4))-'Mini-Kayak'!C47*SIN(RADIANS(E$4))+E$1,"") -> 1202.727733 | C22: =IF('Mini-Kayak'!C47<>"",('Mini-Kayak'!B47*SIN(RADIANS(E$4))+'Mini-Kayak'!C47*COS(RADIANS(E$4))*E$3)+E$2,"") -> 201.0358355 | D22: =IF('Mini-Kayak'!D47<>"",'Mini-Kayak'!D47*COS(RADIANS(E$4))-'Mini-Kayak'!E47*SIN(RADIANS(E$4))+E$1,"") -> 1202.844165 | E22: =IF('Mini-Kayak'!E47<>"",('Mini-Kayak'!D47*SIN(RADIANS(E$4))+'Mini-Kayak'!E47*COS(RADIANS(E$4))*E$3)+E$2,"") -> 1.336094746 | F22: -5.063859488 | G22: =IF('Mini-Kayak'!G47<>"",'Mini-Kayak'!G47*COS(RADIANS(J$4))-'Mini-Kayak'!H47*SIN(RADIANS(J$4))+J$1,"") -> 1203.266007 | H22: =IF('Mini-Kayak'!H47<>"",('Mini-Kayak'!G47*SIN(RADIANS(J$4))+'Mini-Kayak'!H47*COS(RADIANS(J$4))*J$3)+J$2,"") -> 206.099695 | I22: =IF('Mini-Kayak'!I47<>"",'Mini-Kayak'!I47*COS(RADIANS(J$4))-'Mini-Kayak'!J47*SIN(RADIANS(J$4))+J$1,"") -> 1199.568451 | J22: =IF('Mini-Kayak'!J47<>"",('Mini-Kayak'!I47*SIN(RADIANS(J$4))+'Mini-Kayak'!J47*COS(RADIANS(J$4))*J$3)+J$2,"") -> 356.3206258 | K22: =O22-J22 -> 3.784854591 | L22: =IF('Mini-Kayak'!L47<>"",'Mini-Kayak'!L47*COS(RADIANS(O$4))-'Mini-Kayak'!M47*SIN(RADIANS(O$4))+O$1,"") -> 1202.880953 | M22: =IF('Mini-Kayak'!M47<>"",('Mini-Kayak'!L47*SIN(RADIANS(O$4))+'Mini-Kayak'!M47*COS(RADIANS(O$4))*O$3)+O$2,"") -> 590.5084517 | N22: =IF('Mini-Kayak'!N47<>"",'Mini-Kayak'!N47*COS(RADIANS(O$4))-'Mini-Kayak'!O47*SIN(RADIANS(O$4))+O$1,"") -> 1207.033177 | O22: =IF('Mini-Kayak'!O47<>"",('Mini-Kayak'!N47*SIN(RADIANS(O$4))+'Mini-Kayak'!O47*COS(RADIANS(O$4))*O$3)+O$2,"") -> 360.1054804 | Q22: =IF('Mini-Kayak'!L47<>"",'Mini-Kayak'!L47*COS(RADIANS(T$4))-'Mini-Kayak'!M47*SIN(RADIANS(T$4))+T$1,"") -> 1202.75638 | R22: =IF('Mini-Kayak'!M47<>"",('Mini-Kayak'!L47*SIN(RADIANS(T$4))+'Mini-Kayak'!M47*COS(RADIANS(T$4))*T$3)+T$2,"") -> 647.6978982 | S22: =IF('Mini-Kayak'!N47<>"",'Mini-Kayak'!N47*COS(RADIANS(T$4))-'Mini-Kayak'!O47*SIN(RADIANS(T$4))+T$1,"") -> 1206.104403 | T22: =IF('Mini-Kayak'!O47<>"",MAX(('Mini-Kayak'!N47*SIN(RADIANS(T$4))+'Mini-Kayak'!O47*COS(RADIANS(T$4))*T$3)+T$2,M22+3),"") -> 593.5084517 | V22: =IF('Mini-Kayak'!V47<>"",'Mini-Kayak'!V47*COS(RADIANS(Y$4))-'Mini-Kayak'!W47*SIN(RADIANS(Y$4))+Y$1,"") ->  | W22: =IF('Mini-Kayak'!W47<>"",('Mini-Kayak'!V47*SIN(RADIANS(Y$4))+'Mini-Kayak'!W47*COS(RADIANS(Y$4))*Y$3)+Y$2,"") ->  | X22: =IF('Mini-Kayak'!X47<>"",'Mini-Kayak'!X47*COS(RADIANS(Y$4))-'Mini-Kayak'!Y47*SIN(RADIANS(Y$4))+Y$1,"") ->  | Y22: =IF('Mini-Kayak'!Y47<>"",('Mini-Kayak'!X47*SIN(RADIANS(Y$4))+'Mini-Kayak'!Y47*COS(RADIANS(Y$4))*Y$3)+Y$2,"") -> 
A23: 17 | B23: =IF('Mini-Kayak'!B48<>"",'Mini-Kayak'!B48*COS(RADIANS(E$4))-'Mini-Kayak'!C48*SIN(RADIANS(E$4))+E$1,"") -> 1299.531207 | C23: =IF('Mini-Kayak'!C48<>"",('Mini-Kayak'!B48*SIN(RADIANS(E$4))+'Mini-Kayak'!C48*COS(RADIANS(E$4))*E$3)+E$2,"") -> 201.032636 | D23: =IF('Mini-Kayak'!D48<>"",'Mini-Kayak'!D48*COS(RADIANS(E$4))-'Mini-Kayak'!E48*SIN(RADIANS(E$4))+E$1,"") -> 1299.657676 | E23: =IF('Mini-Kayak'!E48<>"",('Mini-Kayak'!D48*SIN(RADIANS(E$4))+'Mini-Kayak'!E48*COS(RADIANS(E$4))*E$3)+E$2,"") -> 3.378667516 | F23: -8.345131706 | G23: =IF('Mini-Kayak'!G48<>"",'Mini-Kayak'!G48*COS(RADIANS(J$4))-'Mini-Kayak'!H48*SIN(RADIANS(J$4))+J$1,"") -> 1300.045562 | H23: =IF('Mini-Kayak'!H48<>"",('Mini-Kayak'!G48*SIN(RADIANS(J$4))+'Mini-Kayak'!H48*COS(RADIANS(J$4))*J$3)+J$2,"") -> 209.3777678 | I23: =IF('Mini-Kayak'!I48<>"",'Mini-Kayak'!I48*COS(RADIANS(J$4))-'Mini-Kayak'!J48*SIN(RADIANS(J$4))+J$1,"") -> 1296.374228 | J23: =IF('Mini-Kayak'!J48<>"",('Mini-Kayak'!I48*SIN(RADIANS(J$4))+'Mini-Kayak'!J48*COS(RADIANS(J$4))*J$3)+J$2,"") -> 357.8349709 | K23: 4.327430316 | L23: =IF('Mini-Kayak'!L48<>"",'Mini-Kayak'!L48*COS(RADIANS(O$4))-'Mini-Kayak'!M48*SIN(RADIANS(O$4))+O$1,"") -> 1299.698119 | M23: =IF('Mini-Kayak'!M48<>"",('Mini-Kayak'!L48*SIN(RADIANS(O$4))+'Mini-Kayak'!M48*COS(RADIANS(O$4))*O$3)+O$2,"") -> 590.1292537 | N23: =IF('Mini-Kayak'!N48<>"",'Mini-Kayak'!N48*COS(RADIANS(O$4))-'Mini-Kayak'!O48*SIN(RADIANS(O$4))+O$1,"") -> 1303.892529 | O23: =IF('Mini-Kayak'!O48<>"",('Mini-Kayak'!N48*SIN(RADIANS(O$4))+'Mini-Kayak'!O48*COS(RADIANS(O$4))*O$3)+O$2,"") -> 362.1624012 | Q23: =IF('Mini-Kayak'!L48<>"",'Mini-Kayak'!L48*COS(RADIANS(T$4))-'Mini-Kayak'!M48*SIN(RADIANS(T$4))+T$1,"") -> 1299.573992 | R23: =IF('Mini-Kayak'!M48<>"",('Mini-Kayak'!L48*SIN(RADIANS(T$4))+'Mini-Kayak'!M48*COS(RADIANS(T$4))*T$3)+T$2,"") -> 647.6566564 | S23: =IF('Mini-Kayak'!N48<>"",'Mini-Kayak'!N48*COS(RADIANS(T$4))-'Mini-Kayak'!O48*SIN(RADIANS(T$4))+T$1,"") -> 1302.972706 | T23: =IF('Mini-Kayak'!O48<>"",MAX(('Mini-Kayak'!N48*SIN(RADIANS(T$4))+'Mini-Kayak'!O48*COS(RADIANS(T$4))*T$3)+T$2,M23+3),"") -> 593.1292537 | V23: =IF('Mini-Kayak'!V48<>"",'Mini-Kayak'!V48*COS(RADIANS(Y$4))-'Mini-Kayak'!W48*SIN(RADIANS(Y$4))+Y$1,"") ->  | W23: =IF('Mini-Kayak'!W48<>"",('Mini-Kayak'!V48*SIN(RADIANS(Y$4))+'Mini-Kayak'!W48*COS(RADIANS(Y$4))*Y$3)+Y$2,"") ->  | X23: =IF('Mini-Kayak'!X48<>"",'Mini-Kayak'!X48*COS(RADIANS(Y$4))-'Mini-Kayak'!Y48*SIN(RADIANS(Y$4))+Y$1,"") ->  | Y23: =IF('Mini-Kayak'!Y48<>"",('Mini-Kayak'!X48*SIN(RADIANS(Y$4))+'Mini-Kayak'!Y48*COS(RADIANS(Y$4))*Y$3)+Y$2,"") -> 
A24: 18 | B24: =IF('Mini-Kayak'!B49<>"",'Mini-Kayak'!B49*COS(RADIANS(E$4))-'Mini-Kayak'!C49*SIN(RADIANS(E$4))+E$1,"") -> 1399.54581 | C24: =IF('Mini-Kayak'!C49<>"",('Mini-Kayak'!B49*SIN(RADIANS(E$4))+'Mini-Kayak'!C49*COS(RADIANS(E$4))*E$3)+E$2,"") -> 200.868824 | D24: =IF('Mini-Kayak'!D49<>"",'Mini-Kayak'!D49*COS(RADIANS(E$4))-'Mini-Kayak'!E49*SIN(RADIANS(E$4))+E$1,"") -> 1399.701264 | E24: =IF('Mini-Kayak'!E49<>"",('Mini-Kayak'!D49*SIN(RADIANS(E$4))+'Mini-Kayak'!E49*COS(RADIANS(E$4))*E$3)+E$2,"") -> 8.327992141 | F24: -12.3668668 | G24: =IF('Mini-Kayak'!G49<>"",'Mini-Kayak'!G49*COS(RADIANS(J$4))-'Mini-Kayak'!H49*SIN(RADIANS(J$4))+J$1,"") -> 1400.137179 | H24: =IF('Mini-Kayak'!H49<>"",('Mini-Kayak'!G49*SIN(RADIANS(J$4))+'Mini-Kayak'!H49*COS(RADIANS(J$4))*J$3)+J$2,"") -> 213.2356908 | I24: =IF('Mini-Kayak'!I49<>"",'Mini-Kayak'!I49*COS(RADIANS(J$4))-'Mini-Kayak'!J49*SIN(RADIANS(J$4))+J$1,"") -> 1396.477566 | J24: =IF('Mini-Kayak'!J49<>"",('Mini-Kayak'!I49*SIN(RADIANS(J$4))+'Mini-Kayak'!J49*COS(RADIANS(J$4))*J$3)+J$2,"") -> 359.1904659 | K24: 5.209213 | L24: =IF('Mini-Kayak'!L49<>"",'Mini-Kayak'!L49*COS(RADIANS(O$4))-'Mini-Kayak'!M49*SIN(RADIANS(O$4))+O$1,"") -> 1399.773748 | M24: =IF('Mini-Kayak'!M49<>"",('Mini-Kayak'!L49*SIN(RADIANS(O$4))+'Mini-Kayak'!M49*COS(RADIANS(O$4))*O$3)+O$2,"") -> 586.7133057 | N24: =IF('Mini-Kayak'!N49<>"",'Mini-Kayak'!N49*COS(RADIANS(O$4))-'Mini-Kayak'!O49*SIN(RADIANS(O$4))+O$1,"") -> 1403.97926 | O24: =IF('Mini-Kayak'!O49<>"",('Mini-Kayak'!N49*SIN(RADIANS(O$4))+'Mini-Kayak'!O49*COS(RADIANS(O$4))*O$3)+O$2,"") -> 364.3996789 | Q24: =IF('Mini-Kayak'!L49<>"",'Mini-Kayak'!L49*COS(RADIANS(T$4))-'Mini-Kayak'!M49*SIN(RADIANS(T$4))+T$1,"") -> 1399.639526 | R24: =IF('Mini-Kayak'!M49<>"",('Mini-Kayak'!L49*SIN(RADIANS(T$4))+'Mini-Kayak'!M49*COS(RADIANS(T$4))*T$3)+T$2,"") -> 644.5899836 | S24: =IF('Mini-Kayak'!N49<>"",'Mini-Kayak'!N49*COS(RADIANS(T$4))-'Mini-Kayak'!O49*SIN(RADIANS(T$4))+T$1,"") -> 1403.069076 | T24: =IF('Mini-Kayak'!O49<>"",MAX(('Mini-Kayak'!N49*SIN(RADIANS(T$4))+'Mini-Kayak'!O49*COS(RADIANS(T$4))*T$3)+T$2,M24+3),"") -> 589.7133057 | V24: =IF('Mini-Kayak'!V49<>"",'Mini-Kayak'!V49*COS(RADIANS(Y$4))-'Mini-Kayak'!W49*SIN(RADIANS(Y$4))+Y$1,"") ->  | W24: =IF('Mini-Kayak'!W49<>"",('Mini-Kayak'!V49*SIN(RADIANS(Y$4))+'Mini-Kayak'!W49*COS(RADIANS(Y$4))*Y$3)+Y$2,"") ->  | X24: =IF('Mini-Kayak'!X49<>"",'Mini-Kayak'!X49*COS(RADIANS(Y$4))-'Mini-Kayak'!Y49*SIN(RADIANS(Y$4))+Y$1,"") ->  | Y24: =IF('Mini-Kayak'!Y49<>"",('Mini-Kayak'!X49*SIN(RADIANS(Y$4))+'Mini-Kayak'!Y49*COS(RADIANS(Y$4))*Y$3)+Y$2,"") -> 
A25: 19 | B25: =IF('Mini-Kayak'!B50<>"",'Mini-Kayak'!B50*COS(RADIANS(E$4))-'Mini-Kayak'!C50*SIN(RADIANS(E$4))+E$1,"") -> 1499.586811 | C25: =IF('Mini-Kayak'!C50<>"",('Mini-Kayak'!B50*SIN(RADIANS(E$4))+'Mini-Kayak'!C50*COS(RADIANS(E$4))*E$3)+E$2,"") -> 200.5394211 | D25: =IF('Mini-Kayak'!D50<>"",'Mini-Kayak'!D50*COS(RADIANS(E$4))-'Mini-Kayak'!E50*SIN(RADIANS(E$4))+E$1,"") -> 1499.791836 | E25: =IF('Mini-Kayak'!E50<>"",('Mini-Kayak'!D50*SIN(RADIANS(E$4))+'Mini-Kayak'!E50*COS(RADIANS(E$4))*E$3)+E$2,"") -> 16.09988293 | F25: -16.87743915 | G25: =IF('Mini-Kayak'!G50<>"",'Mini-Kayak'!G50*COS(RADIANS(J$4))-'Mini-Kayak'!H50*SIN(RADIANS(J$4))+J$1,"") -> 1500.441928 | H25: =IF('Mini-Kayak'!H50<>"",('Mini-Kayak'!G50*SIN(RADIANS(J$4))+'Mini-Kayak'!H50*COS(RADIANS(J$4))*J$3)+J$2,"") -> 217.4168602 | I25: =IF('Mini-Kayak'!I50<>"",'Mini-Kayak'!I50*COS(RADIANS(J$4))-'Mini-Kayak'!J50*SIN(RADIANS(J$4))+J$1,"") -> 1496.779872 | J25: =IF('Mini-Kayak'!J50<>"",('Mini-Kayak'!I50*SIN(RADIANS(J$4))+'Mini-Kayak'!J50*COS(RADIANS(J$4))*J$3)+J$2,"") -> 360.2448234 | K25: 6.452950921 | L25: =IF('Mini-Kayak'!L50<>"",'Mini-Kayak'!L50*COS(RADIANS(O$4))-'Mini-Kayak'!M50*SIN(RADIANS(O$4))+O$1,"") -> 1499.914244 | M25: =IF('Mini-Kayak'!M50<>"",('Mini-Kayak'!L50*SIN(RADIANS(O$4))+'Mini-Kayak'!M50*COS(RADIANS(O$4))*O$3)+O$2,"") -> 580.2225083 | N25: =IF('Mini-Kayak'!N50<>"",'Mini-Kayak'!N50*COS(RADIANS(O$4))-'Mini-Kayak'!O50*SIN(RADIANS(O$4))+O$1,"") -> 1504.088861 | O25: =IF('Mini-Kayak'!O50<>"",('Mini-Kayak'!N50*SIN(RADIANS(O$4))+'Mini-Kayak'!O50*COS(RADIANS(O$4))*O$3)+O$2,"") -> 366.6977743 | Q25: =IF('Mini-Kayak'!L50<>"",'Mini-Kayak'!L50*COS(RADIANS(T$4))-'Mini-Kayak'!M50*SIN(RADIANS(T$4))+T$1,"") -> 1499.759195 | R25: =IF('Mini-Kayak'!M50<>"",('Mini-Kayak'!L50*SIN(RADIANS(T$4))+'Mini-Kayak'!M50*COS(RADIANS(T$4))*T$3)+T$2,"") -> 638.4486317 | S25: =IF('Mini-Kayak'!N50<>"",'Mini-Kayak'!N50*COS(RADIANS(T$4))-'Mini-Kayak'!O50*SIN(RADIANS(T$4))+T$1,"") -> 1503.18853 | T25: =IF('Mini-Kayak'!O50<>"",MAX(('Mini-Kayak'!N50*SIN(RADIANS(T$4))+'Mini-Kayak'!O50*COS(RADIANS(T$4))*T$3)+T$2,M25+3),"") -> 583.2225083 | V25: =IF('Mini-Kayak'!V50<>"",'Mini-Kayak'!V50*COS(RADIANS(Y$4))-'Mini-Kayak'!W50*SIN(RADIANS(Y$4))+Y$1,"") ->  | W25: =IF('Mini-Kayak'!W50<>"",('Mini-Kayak'!V50*SIN(RADIANS(Y$4))+'Mini-Kayak'!W50*COS(RADIANS(Y$4))*Y$3)+Y$2,"") ->  | X25: =IF('Mini-Kayak'!X50<>"",'Mini-Kayak'!X50*COS(RADIANS(Y$4))-'Mini-Kayak'!Y50*SIN(RADIANS(Y$4))+Y$1,"") ->  | Y25: =IF('Mini-Kayak'!Y50<>"",('Mini-Kayak'!X50*SIN(RADIANS(Y$4))+'Mini-Kayak'!Y50*COS(RADIANS(Y$4))*Y$3)+Y$2,"") -> 
A26: 20 | B26: =IF('Mini-Kayak'!B51<>"",'Mini-Kayak'!B51*COS(RADIANS(E$4))-'Mini-Kayak'!C51*SIN(RADIANS(E$4))+E$1,"") -> 1599.66676 | C26: =IF('Mini-Kayak'!C51<>"",('Mini-Kayak'!B51*SIN(RADIANS(E$4))+'Mini-Kayak'!C51*COS(RADIANS(E$4))*E$3)+E$2,"") -> 200.0405995 | D26: =IF('Mini-Kayak'!D51<>"",'Mini-Kayak'!D51*COS(RADIANS(E$4))-'Mini-Kayak'!E51*SIN(RADIANS(E$4))+E$1,"") -> 1599.938804 | E26: =IF('Mini-Kayak'!E51<>"",('Mini-Kayak'!D51*SIN(RADIANS(E$4))+'Mini-Kayak'!E51*COS(RADIANS(E$4))*E$3)+E$2,"") -> 26.63182922 | F26: -21.72459202 | G26: =IF('Mini-Kayak'!G51<>"",'Mini-Kayak'!G51*COS(RADIANS(J$4))-'Mini-Kayak'!H51*SIN(RADIANS(J$4))+J$1,"") -> 1601.047242 | H26: =IF('Mini-Kayak'!H51<>"",('Mini-Kayak'!G51*SIN(RADIANS(J$4))+'Mini-Kayak'!H51*COS(RADIANS(J$4))*J$3)+J$2,"") -> 221.7651916 | I26: =IF('Mini-Kayak'!I51<>"",'Mini-Kayak'!I51*COS(RADIANS(J$4))-'Mini-Kayak'!J51*SIN(RADIANS(J$4))+J$1,"") -> 1597.379513 | J26: =IF('Mini-Kayak'!J51<>"",('Mini-Kayak'!I51*SIN(RADIANS(J$4))+'Mini-Kayak'!J51*COS(RADIANS(J$4))*J$3)+J$2,"") -> 360.9073977 | K26: 8.102253157 | L26: =IF('Mini-Kayak'!L51<>"",'Mini-Kayak'!L51*COS(RADIANS(O$4))-'Mini-Kayak'!M51*SIN(RADIANS(O$4))+O$1,"") -> 1600.12415 | M26: =IF('Mini-Kayak'!M51<>"",('Mini-Kayak'!L51*SIN(RADIANS(O$4))+'Mini-Kayak'!M51*COS(RADIANS(O$4))*O$3)+O$2,"") -> 570.651735 | N26: =IF('Mini-Kayak'!N51<>"",'Mini-Kayak'!N51*COS(RADIANS(O$4))-'Mini-Kayak'!O51*SIN(RADIANS(O$4))+O$1,"") -> 1604.213447 | O26: =IF('Mini-Kayak'!O51<>"",('Mini-Kayak'!N51*SIN(RADIANS(O$4))+'Mini-Kayak'!O51*COS(RADIANS(O$4))*O$3)+O$2,"") -> 369.0096508 | Q26: =IF('Mini-Kayak'!L51<>"",'Mini-Kayak'!L51*COS(RADIANS(T$4))-'Mini-Kayak'!M51*SIN(RADIANS(T$4))+T$1,"") -> 1599.937523 | R26: =IF('Mini-Kayak'!M51<>"",('Mini-Kayak'!L51*SIN(RADIANS(T$4))+'Mini-Kayak'!M51*COS(RADIANS(T$4))*T$3)+T$2,"") -> 629.2274898 | S26: =IF('Mini-Kayak'!N51<>"",'Mini-Kayak'!N51*COS(RADIANS(T$4))-'Mini-Kayak'!O51*SIN(RADIANS(T$4))+T$1,"") -> 1603.323015 | T26: =IF('Mini-Kayak'!O51<>"",MAX(('Mini-Kayak'!N51*SIN(RADIANS(T$4))+'Mini-Kayak'!O51*COS(RADIANS(T$4))*T$3)+T$2,M26+3),"") -> 573.651735 | V26: =IF('Mini-Kayak'!V51<>"",'Mini-Kayak'!V51*COS(RADIANS(Y$4))-'Mini-Kayak'!W51*SIN(RADIANS(Y$4))+Y$1,"") ->  | W26: =IF('Mini-Kayak'!W51<>"",('Mini-Kayak'!V51*SIN(RADIANS(Y$4))+'Mini-Kayak'!W51*COS(RADIANS(Y$4))*Y$3)+Y$2,"") ->  | X26: =IF('Mini-Kayak'!X51<>"",'Mini-Kayak'!X51*COS(RADIANS(Y$4))-'Mini-Kayak'!Y51*SIN(RADIANS(Y$4))+Y$1,"") ->  | Y26: =IF('Mini-Kayak'!Y51<>"",('Mini-Kayak'!X51*SIN(RADIANS(Y$4))+'Mini-Kayak'!Y51*COS(RADIANS(Y$4))*Y$3)+Y$2,"") -> 
A27: 21 | B27: =IF('Mini-Kayak'!B52<>"",'Mini-Kayak'!B52*COS(RADIANS(E$4))-'Mini-Kayak'!C52*SIN(RADIANS(E$4))+E$1,"") -> 1699.797535 | C27: =IF('Mini-Kayak'!C52<>"",('Mini-Kayak'!B52*SIN(RADIANS(E$4))+'Mini-Kayak'!C52*COS(RADIANS(E$4))*E$3)+E$2,"") -> 199.367312 | D27: =IF('Mini-Kayak'!D52<>"",'Mini-Kayak'!D52*COS(RADIANS(E$4))-'Mini-Kayak'!E52*SIN(RADIANS(E$4))+E$1,"") -> 1700.146613 | E27: =IF('Mini-Kayak'!E52<>"",('Mini-Kayak'!D52*SIN(RADIANS(E$4))+'Mini-Kayak'!E52*COS(RADIANS(E$4))*E$3)+E$2,"") -> 39.86319149 | F27: -26.76066015 | G27: =IF('Mini-Kayak'!G52<>"",'Mini-Kayak'!G52*COS(RADIANS(J$4))-'Mini-Kayak'!H52*SIN(RADIANS(J$4))+J$1,"") -> 1702.030607 | H27: =IF('Mini-Kayak'!H52<>"",('Mini-Kayak'!G52*SIN(RADIANS(J$4))+'Mini-Kayak'!H52*COS(RADIANS(J$4))*J$3)+J$2,"") -> 226.1279721 | I27: =IF('Mini-Kayak'!I52<>"",'Mini-Kayak'!I52*COS(RADIANS(J$4))-'Mini-Kayak'!J52*SIN(RADIANS(J$4))+J$1,"") -> 1698.374116 | J27: =IF('Mini-Kayak'!J52<>"",('Mini-Kayak'!I52*SIN(RADIANS(J$4))+'Mini-Kayak'!J52*COS(RADIANS(J$4))*J$3)+J$2,"") -> 361.088676 | K27: 10.20790765 | L27: =IF('Mini-Kayak'!L52<>"",'Mini-Kayak'!L52*COS(RADIANS(O$4))-'Mini-Kayak'!M52*SIN(RADIANS(O$4))+O$1,"") -> 1700.408304 | M27: =IF('Mini-Kayak'!M52<>"",('Mini-Kayak'!L52*SIN(RADIANS(O$4))+'Mini-Kayak'!M52*COS(RADIANS(O$4))*O$3)+O$2,"") -> 557.9923662 | N27: =IF('Mini-Kayak'!N52<>"",'Mini-Kayak'!N52*COS(RADIANS(O$4))-'Mini-Kayak'!O52*SIN(RADIANS(O$4))+O$1,"") -> 1704.343342 | O27: =IF('Mini-Kayak'!O52<>"",('Mini-Kayak'!N52*SIN(RADIANS(O$4))+'Mini-Kayak'!O52*COS(RADIANS(O$4))*O$3)+O$2,"") -> 371.2965837 | Q27: =IF('Mini-Kayak'!L52<>"",'Mini-Kayak'!L52*COS(RADIANS(T$4))-'Mini-Kayak'!M52*SIN(RADIANS(T$4))+T$1,"") -> 1700.17932 | R27: =IF('Mini-Kayak'!M52<>"",('Mini-Kayak'!L52*SIN(RADIANS(T$4))+'Mini-Kayak'!M52*COS(RADIANS(T$4))*T$3)+T$2,"") -> 616.9179552 | S27: =IF('Mini-Kayak'!N52<>"",'Mini-Kayak'!N52*COS(RADIANS(T$4))-'Mini-Kayak'!O52*SIN(RADIANS(T$4))+T$1,"") -> 1703.462724 | T27: =IF('Mini-Kayak'!O52<>"",MAX(('Mini-Kayak'!N52*SIN(RADIANS(T$4))+'Mini-Kayak'!O52*COS(RADIANS(T$4))*T$3)+T$2,M27+3),"") -> 560.9923662 | V27: =IF('Mini-Kayak'!V52<>"",'Mini-Kayak'!V52*COS(RADIANS(Y$4))-'Mini-Kayak'!W52*SIN(RADIANS(Y$4))+Y$1,"") ->  | W27: =IF('Mini-Kayak'!W52<>"",('Mini-Kayak'!V52*SIN(RADIANS(Y$4))+'Mini-Kayak'!W52*COS(RADIANS(Y$4))*Y$3)+Y$2,"") ->  | X27: =IF('Mini-Kayak'!X52<>"",'Mini-Kayak'!X52*COS(RADIANS(Y$4))-'Mini-Kayak'!Y52*SIN(RADIANS(Y$4))+Y$1,"") ->  | Y27: =IF('Mini-Kayak'!Y52<>"",('Mini-Kayak'!X52*SIN(RADIANS(Y$4))+'Mini-Kayak'!Y52*COS(RADIANS(Y$4))*Y$3)+Y$2,"") -> 
A28: 22 | B28: =IF('Mini-Kayak'!B53<>"",'Mini-Kayak'!B53*COS(RADIANS(E$4))-'Mini-Kayak'!C53*SIN(RADIANS(E$4))+E$1,"") -> 1791.178707 | C28: =IF('Mini-Kayak'!C53<>"",('Mini-Kayak'!B53*SIN(RADIANS(E$4))+'Mini-Kayak'!C53*COS(RADIANS(E$4))*E$3)+E$2,"") -> 198.5960176 | D28: =IF('Mini-Kayak'!D53<>"",'Mini-Kayak'!D53*COS(RADIANS(E$4))-'Mini-Kayak'!E53*SIN(RADIANS(E$4))+E$1,"") -> 1791.597265 | E28: =IF('Mini-Kayak'!E53<>"",('Mini-Kayak'!D53*SIN(RADIANS(E$4))+'Mini-Kayak'!E53*COS(RADIANS(E$4))*E$3)+E$2,"") -> 54.23596494 | F28: -31.39846192 | G28: =IF('Mini-Kayak'!G53<>"",'Mini-Kayak'!G53*COS(RADIANS(J$4))-'Mini-Kayak'!H53*SIN(RADIANS(J$4))+J$1,"") -> 1794.523032 | H28: =IF('Mini-Kayak'!H53<>"",('Mini-Kayak'!G53*SIN(RADIANS(J$4))+'Mini-Kayak'!H53*COS(RADIANS(J$4))*J$3)+J$2,"") -> 229.9944795 | I28: =IF('Mini-Kayak'!I53<>"",'Mini-Kayak'!I53*COS(RADIANS(J$4))-'Mini-Kayak'!J53*SIN(RADIANS(J$4))+J$1,"") -> 1790.916019 | J28: =IF('Mini-Kayak'!J53<>"",('Mini-Kayak'!I53*SIN(RADIANS(J$4))+'Mini-Kayak'!J53*COS(RADIANS(J$4))*J$3)+J$2,"") -> 360.7614075 | K28: 12.57546591 | L28: =IF('Mini-Kayak'!L53<>"",'Mini-Kayak'!L53*COS(RADIANS(O$4))-'Mini-Kayak'!M53*SIN(RADIANS(O$4))+O$1,"") -> 1791.944572 | M28: =IF('Mini-Kayak'!M53<>"",('Mini-Kayak'!L53*SIN(RADIANS(O$4))+'Mini-Kayak'!M53*COS(RADIANS(O$4))*O$3)+O$2,"") -> 543.7440092 | N28: =IF('Mini-Kayak'!N53<>"",'Mini-Kayak'!N53*COS(RADIANS(O$4))-'Mini-Kayak'!O53*SIN(RADIANS(O$4))+O$1,"") -> 1795.665586 | O28: =IF('Mini-Kayak'!O53<>"",('Mini-Kayak'!N53*SIN(RADIANS(O$4))+'Mini-Kayak'!O53*COS(RADIANS(O$4))*O$3)+O$2,"") -> 373.3368734 | Q28: =IF('Mini-Kayak'!L53<>"",'Mini-Kayak'!L53*COS(RADIANS(T$4))-'Mini-Kayak'!M53*SIN(RADIANS(T$4))+T$1,"") -> 1791.667524 | R28: =IF('Mini-Kayak'!M53<>"",('Mini-Kayak'!L53*SIN(RADIANS(T$4))+'Mini-Kayak'!M53*COS(RADIANS(T$4))*T$3)+T$2,"") -> 602.9888668 | S28: =IF('Mini-Kayak'!N53<>"",'Mini-Kayak'!N53*COS(RADIANS(T$4))-'Mini-Kayak'!O53*SIN(RADIANS(T$4))+T$1,"") -> 1794.793759 | T28: =IF('Mini-Kayak'!O53<>"",MAX(('Mini-Kayak'!N53*SIN(RADIANS(T$4))+'Mini-Kayak'!O53*COS(RADIANS(T$4))*T$3)+T$2,M28+3),"") -> 546.7440092 | V28: =IF('Mini-Kayak'!V53<>"",'Mini-Kayak'!V53*COS(RADIANS(Y$4))-'Mini-Kayak'!W53*SIN(RADIANS(Y$4))+Y$1,"") ->  | W28: =IF('Mini-Kayak'!W53<>"",('Mini-Kayak'!V53*SIN(RADIANS(Y$4))+'Mini-Kayak'!W53*COS(RADIANS(Y$4))*Y$3)+Y$2,"") ->  | X28: =IF('Mini-Kayak'!X53<>"",'Mini-Kayak'!X53*COS(RADIANS(Y$4))-'Mini-Kayak'!Y53*SIN(RADIANS(Y$4))+Y$1,"") ->  | Y28: =IF('Mini-Kayak'!Y53<>"",('Mini-Kayak'!X53*SIN(RADIANS(Y$4))+'Mini-Kayak'!Y53*COS(RADIANS(Y$4))*Y$3)+Y$2,"") -> 
A29: 23 | B29: =IF('Mini-Kayak'!B54<>"",'Mini-Kayak'!B54*COS(RADIANS(E$4))-'Mini-Kayak'!C54*SIN(RADIANS(E$4))+E$1,"") -> 1799.990464 | C29: =IF('Mini-Kayak'!C54<>"",('Mini-Kayak'!B54*SIN(RADIANS(E$4))+'Mini-Kayak'!C54*COS(RADIANS(E$4))*E$3)+E$2,"") -> 198.5137509 | D29: =IF('Mini-Kayak'!D54<>"",'Mini-Kayak'!D54*COS(RADIANS(E$4))-'Mini-Kayak'!E54*SIN(RADIANS(E$4))+E$1,"") -> 1800.415223 | E29: =IF('Mini-Kayak'!E54<>"",('Mini-Kayak'!D54*SIN(RADIANS(E$4))+'Mini-Kayak'!E54*COS(RADIANS(E$4))*E$3)+E$2,"") -> 55.73618626 | F29: -31.84352803 | G29: =IF('Mini-Kayak'!G54<>"",'Mini-Kayak'!G54*COS(RADIANS(J$4))-'Mini-Kayak'!H54*SIN(RADIANS(J$4))+J$1,"") -> 1803.460337 | H29: =IF('Mini-Kayak'!H54<>"",('Mini-Kayak'!G54*SIN(RADIANS(J$4))+'Mini-Kayak'!H54*COS(RADIANS(J$4))*J$3)+J$2,"") -> 230.3572789 | I29: =IF('Mini-Kayak'!I54<>"",'Mini-Kayak'!I54*COS(RADIANS(J$4))-'Mini-Kayak'!J54*SIN(RADIANS(J$4))+J$1,"") -> 1799.861165 | J29: =IF('Mini-Kayak'!J54<>"",('Mini-Kayak'!I54*SIN(RADIANS(J$4))+'Mini-Kayak'!J54*COS(RADIANS(J$4))*J$3)+J$2,"") -> 360.7026089 | K29: 12.8292799 | L29: =IF('Mini-Kayak'!L54<>"",'Mini-Kayak'!L54*COS(RADIANS(O$4))-'Mini-Kayak'!M54*SIN(RADIANS(O$4))+O$1,"") -> 1800.772066 | M29: =IF('Mini-Kayak'!M54<>"",('Mini-Kayak'!L54*SIN(RADIANS(O$4))+'Mini-Kayak'!M54*COS(RADIANS(O$4))*O$3)+O$2,"") -> 542.2351949 | N29: =IF('Mini-Kayak'!N54<>"",'Mini-Kayak'!N54*COS(RADIANS(O$4))-'Mini-Kayak'!O54*SIN(RADIANS(O$4))+O$1,"") -> 1804.468047 | O29: =IF('Mini-Kayak'!O54<>"",('Mini-Kayak'!N54*SIN(RADIANS(O$4))+'Mini-Kayak'!O54*COS(RADIANS(O$4))*O$3)+O$2,"") -> 373.5318888 | Q29: =IF('Mini-Kayak'!L54<>"",'Mini-Kayak'!L54*COS(RADIANS(T$4))-'Mini-Kayak'!M54*SIN(RADIANS(T$4))+T$1,"") -> 1800.489912 | R29: =IF('Mini-Kayak'!M54<>"",('Mini-Kayak'!L54*SIN(RADIANS(T$4))+'Mini-Kayak'!M54*COS(RADIANS(T$4))*T$3)+T$2,"") -> 601.5108394 | S29: =IF('Mini-Kayak'!N54<>"",'Mini-Kayak'!N54*COS(RADIANS(T$4))-'Mini-Kayak'!O54*SIN(RADIANS(T$4))+T$1,"") -> 1803.597062 | T29: =IF('Mini-Kayak'!O54<>"",MAX(('Mini-Kayak'!N54*SIN(RADIANS(T$4))+'Mini-Kayak'!O54*COS(RADIANS(T$4))*T$3)+T$2,M29+3),"") -> 545.2351949 | V29: =IF('Mini-Kayak'!V54<>"",'Mini-Kayak'!V54*COS(RADIANS(Y$4))-'Mini-Kayak'!W54*SIN(RADIANS(Y$4))+Y$1,"") ->  | W29: =IF('Mini-Kayak'!W54<>"",('Mini-Kayak'!V54*SIN(RADIANS(Y$4))+'Mini-Kayak'!W54*COS(RADIANS(Y$4))*Y$3)+Y$2,"") ->  | X29: =IF('Mini-Kayak'!X54<>"",'Mini-Kayak'!X54*COS(RADIANS(Y$4))-'Mini-Kayak'!Y54*SIN(RADIANS(Y$4))+Y$1,"") ->  | Y29: =IF('Mini-Kayak'!Y54<>"",('Mini-Kayak'!X54*SIN(RADIANS(Y$4))+'Mini-Kayak'!Y54*COS(RADIANS(Y$4))*Y$3)+Y$2,"") -> 
A30: 24 | B30: =IF('Mini-Kayak'!B55<>"",'Mini-Kayak'!B55*COS(RADIANS(E$4))-'Mini-Kayak'!C55*SIN(RADIANS(E$4))+E$1,"") -> 1900.255846 | C30: =IF('Mini-Kayak'!C55<>"",('Mini-Kayak'!B55*SIN(RADIANS(E$4))+'Mini-Kayak'!C55*COS(RADIANS(E$4))*E$3)+E$2,"") -> 197.4721781 | D30: =IF('Mini-Kayak'!D55<>"",'Mini-Kayak'!D55*COS(RADIANS(E$4))-'Mini-Kayak'!E55*SIN(RADIANS(E$4))+E$1,"") -> 1900.740472 | E30: =IF('Mini-Kayak'!E55<>"",('Mini-Kayak'!D55*SIN(RADIANS(E$4))+'Mini-Kayak'!E55*COS(RADIANS(E$4))*E$3)+E$2,"") -> 74.19510758 | F30: -36.84061511 | G30: =IF('Mini-Kayak'!G55<>"",'Mini-Kayak'!G55*COS(RADIANS(J$4))-'Mini-Kayak'!H55*SIN(RADIANS(J$4))+J$1,"") -> 1905.392869 | H30: =IF('Mini-Kayak'!H55<>"",('Mini-Kayak'!G55*SIN(RADIANS(J$4))+'Mini-Kayak'!H55*COS(RADIANS(J$4))*J$3)+J$2,"") -> 234.3127932 | I30: =IF('Mini-Kayak'!I55<>"",'Mini-Kayak'!I55*COS(RADIANS(J$4))-'Mini-Kayak'!J55*SIN(RADIANS(J$4))+J$1,"") -> 1901.934084 | J30: =IF('Mini-Kayak'!J55<>"",('Mini-Kayak'!I55*SIN(RADIANS(J$4))+'Mini-Kayak'!J55*COS(RADIANS(J$4))*J$3)+J$2,"") -> 359.6712567 | K30: 16.01808148 | L30: =IF('Mini-Kayak'!L55<>"",'Mini-Kayak'!L55*COS(RADIANS(O$4))-'Mini-Kayak'!M55*SIN(RADIANS(O$4))+O$1,"") -> 1901.21892 | M30: =IF('Mini-Kayak'!M55<>"",('Mini-Kayak'!L55*SIN(RADIANS(O$4))+'Mini-Kayak'!M55*COS(RADIANS(O$4))*O$3)+O$2,"") -> 523.3581946 | N30: =IF('Mini-Kayak'!N55<>"",'Mini-Kayak'!N55*COS(RADIANS(O$4))-'Mini-Kayak'!O55*SIN(RADIANS(O$4))+O$1,"") -> 1904.577657 | O30: =IF('Mini-Kayak'!O55<>"",('Mini-Kayak'!N55*SIN(RADIANS(O$4))+'Mini-Kayak'!O55*COS(RADIANS(O$4))*O$3)+O$2,"") -> 375.6893382 | Q30: =IF('Mini-Kayak'!L55<>"",'Mini-Kayak'!L55*COS(RADIANS(T$4))-'Mini-Kayak'!M55*SIN(RADIANS(T$4))+T$1,"") -> 1900.872706 | R30: =IF('Mini-Kayak'!M55<>"",('Mini-Kayak'!L55*SIN(RADIANS(T$4))+'Mini-Kayak'!M55*COS(RADIANS(T$4))*T$3)+T$2,"") -> 582.9841276 | S30: =IF('Mini-Kayak'!N55<>"",'Mini-Kayak'!N55*COS(RADIANS(T$4))-'Mini-Kayak'!O55*SIN(RADIANS(T$4))+T$1,"") -> 1903.716032 | T30: =IF('Mini-Kayak'!O55<>"",MAX(('Mini-Kayak'!N55*SIN(RADIANS(T$4))+'Mini-Kayak'!O55*COS(RADIANS(T$4))*T$3)+T$2,M30+3),"") -> 526.3581946 | V30: =IF('Mini-Kayak'!V55<>"",'Mini-Kayak'!V55*COS(RADIANS(Y$4))-'Mini-Kayak'!W55*SIN(RADIANS(Y$4))+Y$1,"") ->  | W30: =IF('Mini-Kayak'!W55<>"",('Mini-Kayak'!V55*SIN(RADIANS(Y$4))+'Mini-Kayak'!W55*COS(RADIANS(Y$4))*Y$3)+Y$2,"") ->  | X30: =IF('Mini-Kayak'!X55<>"",'Mini-Kayak'!X55*COS(RADIANS(Y$4))-'Mini-Kayak'!Y55*SIN(RADIANS(Y$4))+Y$1,"") ->  | Y30: =IF('Mini-Kayak'!Y55<>"",('Mini-Kayak'!X55*SIN(RADIANS(Y$4))+'Mini-Kayak'!Y55*COS(RADIANS(Y$4))*Y$3)+Y$2,"") -> 
A31: 25 | B31: =IF('Mini-Kayak'!B56<>"",'Mini-Kayak'!B56*COS(RADIANS(E$4))-'Mini-Kayak'!C56*SIN(RADIANS(E$4))+E$1,"") -> 2000.603671 | C31: =IF('Mini-Kayak'!C56<>"",('Mini-Kayak'!B56*SIN(RADIANS(E$4))+'Mini-Kayak'!C56*COS(RADIANS(E$4))*E$3)+E$2,"") -> 196.2351109 | D31: =IF('Mini-Kayak'!D56<>"",'Mini-Kayak'!D56*COS(RADIANS(E$4))-'Mini-Kayak'!E56*SIN(RADIANS(E$4))+E$1,"") -> 2001.114519 | E31: =IF('Mini-Kayak'!E56<>"",('Mini-Kayak'!D56*SIN(RADIANS(E$4))+'Mini-Kayak'!E56*COS(RADIANS(E$4))*E$3)+E$2,"") -> 95.1888138 | F31: -41.62603303 | G31: =IF('Mini-Kayak'!G56<>"",'Mini-Kayak'!G56*COS(RADIANS(J$4))-'Mini-Kayak'!H56*SIN(RADIANS(J$4))+J$1,"") -> 2007.877474 | H31: =IF('Mini-Kayak'!H56<>"",('Mini-Kayak'!G56*SIN(RADIANS(J$4))+'Mini-Kayak'!H56*COS(RADIANS(J$4))*J$3)+J$2,"") -> 237.8611439 | I31: =IF('Mini-Kayak'!I56<>"",'Mini-Kayak'!I56*COS(RADIANS(J$4))-'Mini-Kayak'!J56*SIN(RADIANS(J$4))+J$1,"") -> 2004.687774 | J31: =IF('Mini-Kayak'!J56<>"",('Mini-Kayak'!I56*SIN(RADIANS(J$4))+'Mini-Kayak'!J56*COS(RADIANS(J$4))*J$3)+J$2,"") -> 357.9272829 | K31: 19.83515793 | L31: =IF('Mini-Kayak'!L56<>"",'Mini-Kayak'!L56*COS(RADIANS(O$4))-'Mini-Kayak'!M56*SIN(RADIANS(O$4))+O$1,"") -> 2001.753413 | M31: =IF('Mini-Kayak'!M56<>"",('Mini-Kayak'!L56*SIN(RADIANS(O$4))+'Mini-Kayak'!M56*COS(RADIANS(O$4))*O$3)+O$2,"") -> 501.3454085 | N31: =IF('Mini-Kayak'!N56<>"",'Mini-Kayak'!N56*COS(RADIANS(O$4))-'Mini-Kayak'!O56*SIN(RADIANS(O$4))+O$1,"") -> 2004.663449 | O31: =IF('Mini-Kayak'!O56<>"",('Mini-Kayak'!N56*SIN(RADIANS(O$4))+'Mini-Kayak'!O56*COS(RADIANS(O$4))*O$3)+O$2,"") -> 377.7624408 | Q31: =IF('Mini-Kayak'!L56<>"",'Mini-Kayak'!L56*COS(RADIANS(T$4))-'Mini-Kayak'!M56*SIN(RADIANS(T$4))+T$1,"") -> 2001.332197 | R31: =IF('Mini-Kayak'!M56<>"",('Mini-Kayak'!L56*SIN(RADIANS(T$4))+'Mini-Kayak'!M56*COS(RADIANS(T$4))*T$3)+T$2,"") -> 561.3218786 | S31: =IF('Mini-Kayak'!N56<>"",'Mini-Kayak'!N56*COS(RADIANS(T$4))-'Mini-Kayak'!O56*SIN(RADIANS(T$4))+T$1,"") -> 2003.81089 | T31: =IF('Mini-Kayak'!O56<>"",MAX(('Mini-Kayak'!N56*SIN(RADIANS(T$4))+'Mini-Kayak'!O56*COS(RADIANS(T$4))*T$3)+T$2,M31+3),"") -> 504.3454085 | V31: =IF('Mini-Kayak'!V56<>"",'Mini-Kayak'!V56*COS(RADIANS(Y$4))-'Mini-Kayak'!W56*SIN(RADIANS(Y$4))+Y$1,"") ->  | W31: =IF('Mini-Kayak'!W56<>"",('Mini-Kayak'!V56*SIN(RADIANS(Y$4))+'Mini-Kayak'!W56*COS(RADIANS(Y$4))*Y$3)+Y$2,"") ->  | X31: =IF('Mini-Kayak'!X56<>"",'Mini-Kayak'!X56*COS(RADIANS(Y$4))-'Mini-Kayak'!Y56*SIN(RADIANS(Y$4))+Y$1,"") ->  | Y31: =IF('Mini-Kayak'!Y56<>"",('Mini-Kayak'!X56*SIN(RADIANS(Y$4))+'Mini-Kayak'!Y56*COS(RADIANS(Y$4))*Y$3)+Y$2,"") -> 
A32: 26 | B32: =IF('Mini-Kayak'!B57<>"",'Mini-Kayak'!B57*COS(RADIANS(E$4))-'Mini-Kayak'!C57*SIN(RADIANS(E$4))+E$1,"") -> 2101.043144 | C32: =IF('Mini-Kayak'!C57<>"",('Mini-Kayak'!B57*SIN(RADIANS(E$4))+'Mini-Kayak'!C57*COS(RADIANS(E$4))*E$3)+E$2,"") -> 194.793975 | D32: =IF('Mini-Kayak'!D57<>"",'Mini-Kayak'!D57*COS(RADIANS(E$4))-'Mini-Kayak'!E57*SIN(RADIANS(E$4))+E$1,"") -> 2101.526179 | E32: =IF('Mini-Kayak'!E57<>"",('Mini-Kayak'!D57*SIN(RADIANS(E$4))+'Mini-Kayak'!E57*COS(RADIANS(E$4))*E$3)+E$2,"") -> 118.6696254 | F32: -46.08356732 | G32: =IF('Mini-Kayak'!G57<>"",'Mini-Kayak'!G57*COS(RADIANS(J$4))-'Mini-Kayak'!H57*SIN(RADIANS(J$4))+J$1,"") -> 2110.953909 | H32: =IF('Mini-Kayak'!H57<>"",('Mini-Kayak'!G57*SIN(RADIANS(J$4))+'Mini-Kayak'!H57*COS(RADIANS(J$4))*J$3)+J$2,"") -> 240.8775423 | I32: =IF('Mini-Kayak'!I57<>"",'Mini-Kayak'!I57*COS(RADIANS(J$4))-'Mini-Kayak'!J57*SIN(RADIANS(J$4))+J$1,"") -> 2108.215121 | J32: =IF('Mini-Kayak'!J57<>"",('Mini-Kayak'!I57*SIN(RADIANS(J$4))+'Mini-Kayak'!J57*COS(RADIANS(J$4))*J$3)+J$2,"") -> 355.4203906 | K32: 24.33152921 | L32: =IF('Mini-Kayak'!L57<>"",'Mini-Kayak'!L57*COS(RADIANS(O$4))-'Mini-Kayak'!M57*SIN(RADIANS(O$4))+O$1,"") -> 2102.378673 | M32: =IF('Mini-Kayak'!M57<>"",('Mini-Kayak'!L57*SIN(RADIANS(O$4))+'Mini-Kayak'!M57*COS(RADIANS(O$4))*O$3)+O$2,"") -> 476.1740794 | N32: =IF('Mini-Kayak'!N57<>"",'Mini-Kayak'!N57*COS(RADIANS(O$4))-'Mini-Kayak'!O57*SIN(RADIANS(O$4))+O$1,"") -> 2104.719378 | O32: =IF('Mini-Kayak'!O57<>"",('Mini-Kayak'!N57*SIN(RADIANS(O$4))+'Mini-Kayak'!O57*COS(RADIANS(O$4))*O$3)+O$2,"") -> 379.7519198 | Q32: =IF('Mini-Kayak'!L57<>"",'Mini-Kayak'!L57*COS(RADIANS(T$4))-'Mini-Kayak'!M57*SIN(RADIANS(T$4))+T$1,"") -> 2101.871429 | R32: =IF('Mini-Kayak'!M57<>"",('Mini-Kayak'!L57*SIN(RADIANS(T$4))+'Mini-Kayak'!M57*COS(RADIANS(T$4))*T$3)+T$2,"") -> 536.5013457 | S32: =IF('Mini-Kayak'!N57<>"",'Mini-Kayak'!N57*COS(RADIANS(T$4))-'Mini-Kayak'!O57*SIN(RADIANS(T$4))+T$1,"") -> 2103.875593 | T32: =IF('Mini-Kayak'!O57<>"",MAX(('Mini-Kayak'!N57*SIN(RADIANS(T$4))+'Mini-Kayak'!O57*COS(RADIANS(T$4))*T$3)+T$2,M32+3),"") -> 479.1740794 | V32: =IF('Mini-Kayak'!V57<>"",'Mini-Kayak'!V57*COS(RADIANS(Y$4))-'Mini-Kayak'!W57*SIN(RADIANS(Y$4))+Y$1,"") ->  | W32: =IF('Mini-Kayak'!W57<>"",('Mini-Kayak'!V57*SIN(RADIANS(Y$4))+'Mini-Kayak'!W57*COS(RADIANS(Y$4))*Y$3)+Y$2,"") ->  | X32: =IF('Mini-Kayak'!X57<>"",'Mini-Kayak'!X57*COS(RADIANS(Y$4))-'Mini-Kayak'!Y57*SIN(RADIANS(Y$4))+Y$1,"") ->  | Y32: =IF('Mini-Kayak'!Y57<>"",('Mini-Kayak'!X57*SIN(RADIANS(Y$4))+'Mini-Kayak'!Y57*COS(RADIANS(Y$4))*Y$3)+Y$2,"") -> 
A33: 27 | B33: =IF('Mini-Kayak'!B58<>"",'Mini-Kayak'!B58*COS(RADIANS(E$4))-'Mini-Kayak'!C58*SIN(RADIANS(E$4))+E$1,"") -> 2201.582806 | C33: =IF('Mini-Kayak'!C58<>"",('Mini-Kayak'!B58*SIN(RADIANS(E$4))+'Mini-Kayak'!C58*COS(RADIANS(E$4))*E$3)+E$2,"") -> 193.1395728 | D33: =IF('Mini-Kayak'!D58<>"",'Mini-Kayak'!D58*COS(RADIANS(E$4))-'Mini-Kayak'!E58*SIN(RADIANS(E$4))+E$1,"") -> 2201.961277 | E33: =IF('Mini-Kayak'!E58<>"",('Mini-Kayak'!D58*SIN(RADIANS(E$4))+'Mini-Kayak'!E58*COS(RADIANS(E$4))*E$3)+E$2,"") -> 144.5939956 | F33: -50.10596527 | G33: =IF('Mini-Kayak'!G58<>"",'Mini-Kayak'!G58*COS(RADIANS(J$4))-'Mini-Kayak'!H58*SIN(RADIANS(J$4))+J$1,"") -> 2214.653833 | H33: =IF('Mini-Kayak'!H58<>"",('Mini-Kayak'!G58*SIN(RADIANS(J$4))+'Mini-Kayak'!H58*COS(RADIANS(J$4))*J$3)+J$2,"") -> 243.2455381 | I33: =IF('Mini-Kayak'!I58<>"",'Mini-Kayak'!I58*COS(RADIANS(J$4))-'Mini-Kayak'!J58*SIN(RADIANS(J$4))+J$1,"") -> 2212.608481 | J33: =IF('Mini-Kayak'!J58<>"",('Mini-Kayak'!I58*SIN(RADIANS(J$4))+'Mini-Kayak'!J58*COS(RADIANS(J$4))*J$3)+J$2,"") -> 352.1242248 | K33: 29.54506731 | L33: =IF('Mini-Kayak'!L58<>"",'Mini-Kayak'!L58*COS(RADIANS(O$4))-'Mini-Kayak'!M58*SIN(RADIANS(O$4))+O$1,"") -> 2203.096687 | M33: =IF('Mini-Kayak'!M58<>"",('Mini-Kayak'!L58*SIN(RADIANS(O$4))+'Mini-Kayak'!M58*COS(RADIANS(O$4))*O$3)+O$2,"") -> 447.8180442 | N33: =IF('Mini-Kayak'!N58<>"",'Mini-Kayak'!N58*COS(RADIANS(O$4))-'Mini-Kayak'!O58*SIN(RADIANS(O$4))+O$1,"") -> 2204.743124 | O33: =IF('Mini-Kayak'!O58<>"",('Mini-Kayak'!N58*SIN(RADIANS(O$4))+'Mini-Kayak'!O58*COS(RADIANS(O$4))*O$3)+O$2,"") -> 381.6692921 | Q33: =IF('Mini-Kayak'!L58<>"",'Mini-Kayak'!L58*COS(RADIANS(T$4))-'Mini-Kayak'!M58*SIN(RADIANS(T$4))+T$1,"") -> 2202.492301 | R33: =IF('Mini-Kayak'!M58<>"",('Mini-Kayak'!L58*SIN(RADIANS(T$4))+'Mini-Kayak'!M58*COS(RADIANS(T$4))*T$3)+T$2,"") -> 508.4963722 | S33: =IF('Mini-Kayak'!N58<>"",'Mini-Kayak'!N58*COS(RADIANS(T$4))-'Mini-Kayak'!O58*SIN(RADIANS(T$4))+T$1,"") -> 2203.90786 | T33: =IF('Mini-Kayak'!O58<>"",MAX(('Mini-Kayak'!N58*SIN(RADIANS(T$4))+'Mini-Kayak'!O58*COS(RADIANS(T$4))*T$3)+T$2,M33+3),"") -> 450.8180442 | V33: =IF('Mini-Kayak'!V58<>"",'Mini-Kayak'!V58*COS(RADIANS(Y$4))-'Mini-Kayak'!W58*SIN(RADIANS(Y$4))+Y$1,"") ->  | W33: =IF('Mini-Kayak'!W58<>"",('Mini-Kayak'!V58*SIN(RADIANS(Y$4))+'Mini-Kayak'!W58*COS(RADIANS(Y$4))*Y$3)+Y$2,"") ->  | X33: =IF('Mini-Kayak'!X58<>"",'Mini-Kayak'!X58*COS(RADIANS(Y$4))-'Mini-Kayak'!Y58*SIN(RADIANS(Y$4))+Y$1,"") ->  | Y33: =IF('Mini-Kayak'!Y58<>"",('Mini-Kayak'!X58*SIN(RADIANS(Y$4))+'Mini-Kayak'!Y58*COS(RADIANS(Y$4))*Y$3)+Y$2,"") -> 
A34: 28 | B34: =IF('Mini-Kayak'!B59<>"",'Mini-Kayak'!B59*COS(RADIANS(E$4))-'Mini-Kayak'!C59*SIN(RADIANS(E$4))+E$1,"") -> 2302.230543 | C34: =IF('Mini-Kayak'!C59<>"",('Mini-Kayak'!B59*SIN(RADIANS(E$4))+'Mini-Kayak'!C59*COS(RADIANS(E$4))*E$3)+E$2,"") -> 191.2621595 | D34: =IF('Mini-Kayak'!D59<>"",'Mini-Kayak'!D59*COS(RADIANS(E$4))-'Mini-Kayak'!E59*SIN(RADIANS(E$4))+E$1,"") -> 2302.402979 | E34: =IF('Mini-Kayak'!E59<>"",('Mini-Kayak'!D59*SIN(RADIANS(E$4))+'Mini-Kayak'!E59*COS(RADIANS(E$4))*E$3)+E$2,"") -> 172.9227582 | F34: -53.59399097 | G34: =IF('Mini-Kayak'!G59<>"",'Mini-Kayak'!G59*COS(RADIANS(J$4))-'Mini-Kayak'!H59*SIN(RADIANS(J$4))+J$1,"") -> 2319.001619 | H34: =IF('Mini-Kayak'!H59<>"",('Mini-Kayak'!G59*SIN(RADIANS(J$4))+'Mini-Kayak'!H59*COS(RADIANS(J$4))*J$3)+J$2,"") -> 244.8561504 | I34: =IF('Mini-Kayak'!I59<>"",'Mini-Kayak'!I59*COS(RADIANS(J$4))-'Mini-Kayak'!J59*SIN(RADIANS(J$4))+J$1,"") -> 2317.960636 | J34: =IF('Mini-Kayak'!J59<>"",('Mini-Kayak'!I59*SIN(RADIANS(J$4))+'Mini-Kayak'!J59*COS(RADIANS(J$4))*J$3)+J$2,"") -> 348.0456886 | K34: 35.49135974 | L34: =IF('Mini-Kayak'!L59<>"",'Mini-Kayak'!L59*COS(RADIANS(O$4))-'Mini-Kayak'!M59*SIN(RADIANS(O$4))+O$1,"") -> 2303.908037 | M34: =IF('Mini-Kayak'!M59<>"",('Mini-Kayak'!L59*SIN(RADIANS(O$4))+'Mini-Kayak'!M59*COS(RADIANS(O$4))*O$3)+O$2,"") -> 416.2478296 | N34: =IF('Mini-Kayak'!N59<>"",'Mini-Kayak'!N59*COS(RADIANS(O$4))-'Mini-Kayak'!O59*SIN(RADIANS(O$4))+O$1,"") -> 2304.737237 | O34: =IF('Mini-Kayak'!O59<>"",('Mini-Kayak'!N59*SIN(RADIANS(O$4))+'Mini-Kayak'!O59*COS(RADIANS(O$4))*O$3)+O$2,"") -> 383.5370483 | Q34: =IF('Mini-Kayak'!L59<>"",'Mini-Kayak'!L59*COS(RADIANS(T$4))-'Mini-Kayak'!M59*SIN(RADIANS(T$4))+T$1,"") -> 2303.19529 | R34: =IF('Mini-Kayak'!M59<>"",('Mini-Kayak'!L59*SIN(RADIANS(T$4))+'Mini-Kayak'!M59*COS(RADIANS(T$4))*T$3)+T$2,"") -> 477.2774864 | S34: =IF('Mini-Kayak'!N59<>"",'Mini-Kayak'!N59*COS(RADIANS(T$4))-'Mini-Kayak'!O59*SIN(RADIANS(T$4))+T$1,"") -> 2303.910321 | T34: =IF('Mini-Kayak'!O59<>"",MAX(('Mini-Kayak'!N59*SIN(RADIANS(T$4))+'Mini-Kayak'!O59*COS(RADIANS(T$4))*T$3)+T$2,M34+3),"") -> 444.5690018 | V34: =IF('Mini-Kayak'!V59<>"",'Mini-Kayak'!V59*COS(RADIANS(Y$4))-'Mini-Kayak'!W59*SIN(RADIANS(Y$4))+Y$1,"") ->  | W34: =IF('Mini-Kayak'!W59<>"",('Mini-Kayak'!V59*SIN(RADIANS(Y$4))+'Mini-Kayak'!W59*COS(RADIANS(Y$4))*Y$3)+Y$2,"") ->  | X34: =IF('Mini-Kayak'!X59<>"",'Mini-Kayak'!X59*COS(RADIANS(Y$4))-'Mini-Kayak'!Y59*SIN(RADIANS(Y$4))+Y$1,"") ->  | Y34: =IF('Mini-Kayak'!Y59<>"",('Mini-Kayak'!X59*SIN(RADIANS(Y$4))+'Mini-Kayak'!Y59*COS(RADIANS(Y$4))*Y$3)+Y$2,"") -> 
A35: 29 | B35: =IF('Mini-Kayak'!B60<>"",'Mini-Kayak'!B60*COS(RADIANS(E$4))-'Mini-Kayak'!C60*SIN(RADIANS(E$4))+E$1,"") -> 2359.516012 | C35: =IF('Mini-Kayak'!C60<>"",('Mini-Kayak'!B60*SIN(RADIANS(E$4))+'Mini-Kayak'!C60*COS(RADIANS(E$4))*E$3)+E$2,"") -> 190.0907329 | D35: =IF('Mini-Kayak'!D60<>"",'Mini-Kayak'!D60*COS(RADIANS(E$4))-'Mini-Kayak'!E60*SIN(RADIANS(E$4))+E$1,"") -> 2359.516012 | E35: =IF('Mini-Kayak'!E60<>"",('Mini-Kayak'!D60*SIN(RADIANS(E$4))+'Mini-Kayak'!E60*COS(RADIANS(E$4))*E$3)+E$2,"") -> 190.0907329 | F35: -55.30134454 | G35: =IF('Mini-Kayak'!G60<>"",'Mini-Kayak'!G60*COS(RADIANS(J$4))-'Mini-Kayak'!H60*SIN(RADIANS(J$4))+J$1,"") -> 2378.636765 | H35: =IF('Mini-Kayak'!H60<>"",('Mini-Kayak'!G60*SIN(RADIANS(J$4))+'Mini-Kayak'!H60*COS(RADIANS(J$4))*J$3)+J$2,"") -> 245.3920774 | I35: =IF('Mini-Kayak'!I60<>"",'Mini-Kayak'!I60*COS(RADIANS(J$4))-'Mini-Kayak'!J60*SIN(RADIANS(J$4))+J$1,"") -> 2378.335114 | J35: =IF('Mini-Kayak'!J60<>"",('Mini-Kayak'!I60*SIN(RADIANS(J$4))+'Mini-Kayak'!J60*COS(RADIANS(J$4))*J$3)+J$2,"") -> 345.3925601 | K35: 39.19795175 | L35: =IF('Mini-Kayak'!L60<>"",'Mini-Kayak'!L60*COS(RADIANS(O$4))-'Mini-Kayak'!M60*SIN(RADIANS(O$4))+O$1,"") -> 2361.277127 | M35: =IF('Mini-Kayak'!M60<>"",('Mini-Kayak'!L60*SIN(RADIANS(O$4))+'Mini-Kayak'!M60*COS(RADIANS(O$4))*O$3)+O$2,"") -> 396.8503032 | N35: =IF('Mini-Kayak'!N60<>"",'Mini-Kayak'!N60*COS(RADIANS(O$4))-'Mini-Kayak'!O60*SIN(RADIANS(O$4))+O$1,"") -> 2361.589914 | O35: =IF('Mini-Kayak'!O60<>"",('Mini-Kayak'!N60*SIN(RADIANS(O$4))+'Mini-Kayak'!O60*COS(RADIANS(O$4))*O$3)+O$2,"") -> 384.5905118 | Q35: =IF('Mini-Kayak'!L60<>"",'Mini-Kayak'!L60*COS(RADIANS(T$4))-'Mini-Kayak'!M60*SIN(RADIANS(T$4))+T$1,"") -> 2360.497717 | R35: =IF('Mini-Kayak'!M60<>"",('Mini-Kayak'!L60*SIN(RADIANS(T$4))+'Mini-Kayak'!M60*COS(RADIANS(T$4))*T$3)+T$2,"") -> 458.0798658 | S35: =IF('Mini-Kayak'!N60<>"",'Mini-Kayak'!N60*COS(RADIANS(T$4))-'Mini-Kayak'!O60*SIN(RADIANS(T$4))+T$1,"") -> 2360.767714 | T35: =IF('Mini-Kayak'!O60<>"",MAX(('Mini-Kayak'!N60*SIN(RADIANS(T$4))+'Mini-Kayak'!O60*COS(RADIANS(T$4))*T$3)+T$2,M35+3),"") -> 445.8209423 | V35: =IF('Mini-Kayak'!V60<>"",'Mini-Kayak'!V60*COS(RADIANS(Y$4))-'Mini-Kayak'!W60*SIN(RADIANS(Y$4))+Y$1,"") ->  | W35: =IF('Mini-Kayak'!W60<>"",('Mini-Kayak'!V60*SIN(RADIANS(Y$4))+'Mini-Kayak'!W60*COS(RADIANS(Y$4))*Y$3)+Y$2,"") ->  | X35: =IF('Mini-Kayak'!X60<>"",'Mini-Kayak'!X60*COS(RADIANS(Y$4))-'Mini-Kayak'!Y60*SIN(RADIANS(Y$4))+Y$1,"") ->  | Y35: =IF('Mini-Kayak'!Y60<>"",('Mini-Kayak'!X60*SIN(RADIANS(Y$4))+'Mini-Kayak'!Y60*COS(RADIANS(Y$4))*Y$3)+Y$2,"") -> 
A36: 30 | B36: =IF('Mini-Kayak'!B61<>"",'Mini-Kayak'!B61*COS(RADIANS(E$4))-'Mini-Kayak'!C61*SIN(RADIANS(E$4))+E$1,"") ->  | C36: =IF('Mini-Kayak'!C61<>"",('Mini-Kayak'!B61*SIN(RADIANS(E$4))+'Mini-Kayak'!C61*COS(RADIANS(E$4))*E$3)+E$2,"") ->  | D36: =IF('Mini-Kayak'!D61<>"",'Mini-Kayak'!D61*COS(RADIANS(E$4))-'Mini-Kayak'!E61*SIN(RADIANS(E$4))+E$1,"") ->  | E36: =IF('Mini-Kayak'!E61<>"",('Mini-Kayak'!D61*SIN(RADIANS(E$4))+'Mini-Kayak'!E61*COS(RADIANS(E$4))*E$3)+E$2,"") ->  | G36: =IF('Mini-Kayak'!G61<>"",'Mini-Kayak'!G61*COS(RADIANS(J$4))-'Mini-Kayak'!H61*SIN(RADIANS(J$4))+J$1,"") -> 2413.272036 | H36: =IF('Mini-Kayak'!H61<>"",('Mini-Kayak'!G61*SIN(RADIANS(J$4))+'Mini-Kayak'!H61*COS(RADIANS(J$4))*J$3)+J$2,"") -> 343.7199577 | I36: =IF('Mini-Kayak'!I61<>"",'Mini-Kayak'!I61*COS(RADIANS(J$4))-'Mini-Kayak'!J61*SIN(RADIANS(J$4))+J$1,"") -> 2413.273242 | J36: =IF('Mini-Kayak'!J61<>"",('Mini-Kayak'!I61*SIN(RADIANS(J$4))+'Mini-Kayak'!J61*COS(RADIANS(J$4))*J$3)+J$2,"") -> 343.7501479 | K36: 41.4472241 | L36: =IF('Mini-Kayak'!L61<>"",'Mini-Kayak'!L61*COS(RADIANS(O$4))-'Mini-Kayak'!M61*SIN(RADIANS(O$4))+O$1,"") -> 2394.336146 | M36: =IF('Mini-Kayak'!M61<>"",('Mini-Kayak'!L61*SIN(RADIANS(O$4))+'Mini-Kayak'!M61*COS(RADIANS(O$4))*O$3)+O$2,"") -> 385.197372 | N36: =IF('Mini-Kayak'!N61<>"",'Mini-Kayak'!N61*COS(RADIANS(O$4))-'Mini-Kayak'!O61*SIN(RADIANS(O$4))+O$1,"") -> 2394.336146 | O36: =IF('Mini-Kayak'!O61<>"",('Mini-Kayak'!N61*SIN(RADIANS(O$4))+'Mini-Kayak'!O61*COS(RADIANS(O$4))*O$3)+O$2,"") -> 385.197372 | Q36: =IF('Mini-Kayak'!L61<>"",'Mini-Kayak'!L61*COS(RADIANS(T$4))-'Mini-Kayak'!M61*SIN(RADIANS(T$4))+T$1,"") -> 2393.516663 | R36: =IF('Mini-Kayak'!M61<>"",('Mini-Kayak'!L61*SIN(RADIANS(T$4))+'Mini-Kayak'!M61*COS(RADIANS(T$4))*T$3)+T$2,"") -> 446.542122 | S36: =IF('Mini-Kayak'!N61<>"",'Mini-Kayak'!N61*COS(RADIANS(T$4))-'Mini-Kayak'!O61*SIN(RADIANS(T$4))+T$1,"") -> 2393.516663 | T36: =IF('Mini-Kayak'!O61<>"",MAX(('Mini-Kayak'!N61*SIN(RADIANS(T$4))+'Mini-Kayak'!O61*COS(RADIANS(T$4))*T$3)+T$2,M36+3),"") -> 446.542122 | V36: =IF('Mini-Kayak'!V61<>"",'Mini-Kayak'!V61*COS(RADIANS(Y$4))-'Mini-Kayak'!W61*SIN(RADIANS(Y$4))+Y$1,"") ->  | W36: =IF('Mini-Kayak'!W61<>"",('Mini-Kayak'!V61*SIN(RADIANS(Y$4))+'Mini-Kayak'!W61*COS(RADIANS(Y$4))*Y$3)+Y$2,"") ->  | X36: =IF('Mini-Kayak'!X61<>"",'Mini-Kayak'!X61*COS(RADIANS(Y$4))-'Mini-Kayak'!Y61*SIN(RADIANS(Y$4))+Y$1,"") ->  | Y36: =IF('Mini-Kayak'!Y61<>"",('Mini-Kayak'!X61*SIN(RADIANS(Y$4))+'Mini-Kayak'!Y61*COS(RADIANS(Y$4))*Y$3)+Y$2,"") -> 
A37: 31 | B37: =IF('Mini-Kayak'!B62<>"",'Mini-Kayak'!B62*COS(RADIANS(E$4))-'Mini-Kayak'!C62*SIN(RADIANS(E$4))+E$1,"") ->  | C37: =IF('Mini-Kayak'!C62<>"",('Mini-Kayak'!B62*SIN(RADIANS(E$4))+'Mini-Kayak'!C62*COS(RADIANS(E$4))*E$3)+E$2,"") ->  | D37: =IF('Mini-Kayak'!D62<>"",'Mini-Kayak'!D62*COS(RADIANS(E$4))-'Mini-Kayak'!E62*SIN(RADIANS(E$4))+E$1,"") ->  | E37: =IF('Mini-Kayak'!E62<>"",('Mini-Kayak'!D62*SIN(RADIANS(E$4))+'Mini-Kayak'!E62*COS(RADIANS(E$4))*E$3)+E$2,"") ->  | G37: =IF('Mini-Kayak'!G62<>"",'Mini-Kayak'!G62*COS(RADIANS(J$4))-'Mini-Kayak'!H62*SIN(RADIANS(J$4))+J$1,"") ->  | H37: =IF('Mini-Kayak'!H62<>"",('Mini-Kayak'!G62*SIN(RADIANS(J$4))+'Mini-Kayak'!H62*COS(RADIANS(J$4))*J$3)+J$2,"") ->  | I37: =IF('Mini-Kayak'!I62<>"",'Mini-Kayak'!I62*COS(RADIANS(J$4))-'Mini-Kayak'!J62*SIN(RADIANS(J$4))+J$1,"") ->  | J37: =IF('Mini-Kayak'!J62<>"",('Mini-Kayak'!I62*SIN(RADIANS(J$4))+'Mini-Kayak'!J62*COS(RADIANS(J$4))*J$3)+J$2,"") ->  | L37: =IF('Mini-Kayak'!L62<>"",'Mini-Kayak'!L62*COS(RADIANS(O$4))-'Mini-Kayak'!M62*SIN(RADIANS(O$4))+O$1,"") ->  | M37: =IF('Mini-Kayak'!M62<>"",('Mini-Kayak'!L62*SIN(RADIANS(O$4))+'Mini-Kayak'!M62*COS(RADIANS(O$4))*O$3)+O$2,"") ->  | N37: =IF('Mini-Kayak'!N62<>"",'Mini-Kayak'!N62*COS(RADIANS(O$4))-'Mini-Kayak'!O62*SIN(RADIANS(O$4))+O$1,"") ->  | O37: =IF('Mini-Kayak'!O62<>"",('Mini-Kayak'!N62*SIN(RADIANS(O$4))+'Mini-Kayak'!O62*COS(RADIANS(O$4))*O$3)+O$2,"") ->  | Q37: =IF('Mini-Kayak'!L62<>"",'Mini-Kayak'!L62*COS(RADIANS(T$4))-'Mini-Kayak'!M62*SIN(RADIANS(T$4))+T$1,"") ->  | R37: =IF('Mini-Kayak'!M62<>"",('Mini-Kayak'!L62*SIN(RADIANS(T$4))+'Mini-Kayak'!M62*COS(RADIANS(T$4))*T$3)+T$2,"") ->  | S37: =IF('Mini-Kayak'!N62<>"",'Mini-Kayak'!N62*COS(RADIANS(T$4))-'Mini-Kayak'!O62*SIN(RADIANS(T$4))+T$1,"") ->  | T37: =IF('Mini-Kayak'!O62<>"",MAX(('Mini-Kayak'!N62*SIN(RADIANS(T$4))+'Mini-Kayak'!O62*COS(RADIANS(T$4))*T$3)+T$2,M37+3),"") ->  | V37: =IF('Mini-Kayak'!V62<>"",'Mini-Kayak'!V62*COS(RADIANS(Y$4))-'Mini-Kayak'!W62*SIN(RADIANS(Y$4))+Y$1,"") ->  | W37: =IF('Mini-Kayak'!W62<>"",('Mini-Kayak'!V62*SIN(RADIANS(Y$4))+'Mini-Kayak'!W62*COS(RADIANS(Y$4))*Y$3)+Y$2,"") ->  | X37: =IF('Mini-Kayak'!X62<>"",'Mini-Kayak'!X62*COS(RADIANS(Y$4))-'Mini-Kayak'!Y62*SIN(RADIANS(Y$4))+Y$1,"") ->  | Y37: =IF('Mini-Kayak'!Y62<>"",('Mini-Kayak'!X62*SIN(RADIANS(Y$4))+'Mini-Kayak'!Y62*COS(RADIANS(Y$4))*Y$3)+Y$2,"") -> 
A38: 32 | B38: =IF('Mini-Kayak'!B63<>"",'Mini-Kayak'!B63*COS(RADIANS(E$4))-'Mini-Kayak'!C63*SIN(RADIANS(E$4))+E$1,"") ->  | C38: =IF('Mini-Kayak'!C63<>"",('Mini-Kayak'!B63*SIN(RADIANS(E$4))+'Mini-Kayak'!C63*COS(RADIANS(E$4))*E$3)+E$2,"") ->  | D38: =IF('Mini-Kayak'!D63<>"",'Mini-Kayak'!D63*COS(RADIANS(E$4))-'Mini-Kayak'!E63*SIN(RADIANS(E$4))+E$1,"") ->  | E38: =IF('Mini-Kayak'!E63<>"",('Mini-Kayak'!D63*SIN(RADIANS(E$4))+'Mini-Kayak'!E63*COS(RADIANS(E$4))*E$3)+E$2,"") ->  | G38: =IF('Mini-Kayak'!G63<>"",'Mini-Kayak'!G63*COS(RADIANS(J$4))-'Mini-Kayak'!H63*SIN(RADIANS(J$4))+J$1,"") ->  | H38: =IF('Mini-Kayak'!H63<>"",('Mini-Kayak'!G63*SIN(RADIANS(J$4))+'Mini-Kayak'!H63*COS(RADIANS(J$4))*J$3)+J$2,"") ->  | I38: =IF('Mini-Kayak'!I63<>"",'Mini-Kayak'!I63*COS(RADIANS(J$4))-'Mini-Kayak'!J63*SIN(RADIANS(J$4))+J$1,"") ->  | J38: =IF('Mini-Kayak'!J63<>"",('Mini-Kayak'!I63*SIN(RADIANS(J$4))+'Mini-Kayak'!J63*COS(RADIANS(J$4))*J$3)+J$2,"") ->  | L38: =IF('Mini-Kayak'!L63<>"",'Mini-Kayak'!L63*COS(RADIANS(O$4))-'Mini-Kayak'!M63*SIN(RADIANS(O$4))+O$1,"") ->  | M38: =IF('Mini-Kayak'!M63<>"",('Mini-Kayak'!L63*SIN(RADIANS(O$4))+'Mini-Kayak'!M63*COS(RADIANS(O$4))*O$3)+O$2,"") ->  | N38: =IF('Mini-Kayak'!N63<>"",'Mini-Kayak'!N63*COS(RADIANS(O$4))-'Mini-Kayak'!O63*SIN(RADIANS(O$4))+O$1,"") ->  | O38: =IF('Mini-Kayak'!O63<>"",('Mini-Kayak'!N63*SIN(RADIANS(O$4))+'Mini-Kayak'!O63*COS(RADIANS(O$4))*O$3)+O$2,"") ->  | Q38: =IF('Mini-Kayak'!L63<>"",'Mini-Kayak'!L63*COS(RADIANS(T$4))-'Mini-Kayak'!M63*SIN(RADIANS(T$4))+T$1,"") ->  | R38: =IF('Mini-Kayak'!M63<>"",('Mini-Kayak'!L63*SIN(RADIANS(T$4))+'Mini-Kayak'!M63*COS(RADIANS(T$4))*T$3)+T$2,"") ->  | S38: =IF('Mini-Kayak'!N63<>"",'Mini-Kayak'!N63*COS(RADIANS(T$4))-'Mini-Kayak'!O63*SIN(RADIANS(T$4))+T$1,"") ->  | T38: =IF('Mini-Kayak'!O63<>"",MAX(('Mini-Kayak'!N63*SIN(RADIANS(T$4))+'Mini-Kayak'!O63*COS(RADIANS(T$4))*T$3)+T$2,M38+3),"") ->  | V38: =IF('Mini-Kayak'!V63<>"",'Mini-Kayak'!V63*COS(RADIANS(Y$4))-'Mini-Kayak'!W63*SIN(RADIANS(Y$4))+Y$1,"") ->  | W38: =IF('Mini-Kayak'!W63<>"",('Mini-Kayak'!V63*SIN(RADIANS(Y$4))+'Mini-Kayak'!W63*COS(RADIANS(Y$4))*Y$3)+Y$2,"") ->  | X38: =IF('Mini-Kayak'!X63<>"",'Mini-Kayak'!X63*COS(RADIANS(Y$4))-'Mini-Kayak'!Y63*SIN(RADIANS(Y$4))+Y$1,"") ->  | Y38: =IF('Mini-Kayak'!Y63<>"",('Mini-Kayak'!X63*SIN(RADIANS(Y$4))+'Mini-Kayak'!Y63*COS(RADIANS(Y$4))*Y$3)+Y$2,"") -> 
A39: 33 | B39: =IF('Mini-Kayak'!B64<>"",'Mini-Kayak'!B64*COS(RADIANS(E$4))-'Mini-Kayak'!C64*SIN(RADIANS(E$4))+E$1,"") ->  | C39: =IF('Mini-Kayak'!C64<>"",('Mini-Kayak'!B64*SIN(RADIANS(E$4))+'Mini-Kayak'!C64*COS(RADIANS(E$4))*E$3)+E$2,"") ->  | D39: =IF('Mini-Kayak'!D64<>"",'Mini-Kayak'!D64*COS(RADIANS(E$4))-'Mini-Kayak'!E64*SIN(RADIANS(E$4))+E$1,"") ->  | E39: =IF('Mini-Kayak'!E64<>"",('Mini-Kayak'!D64*SIN(RADIANS(E$4))+'Mini-Kayak'!E64*COS(RADIANS(E$4))*E$3)+E$2,"") ->  | G39: =IF('Mini-Kayak'!G64<>"",'Mini-Kayak'!G64*COS(RADIANS(J$4))-'Mini-Kayak'!H64*SIN(RADIANS(J$4))+J$1,"") ->  | H39: =IF('Mini-Kayak'!H64<>"",('Mini-Kayak'!G64*SIN(RADIANS(J$4))+'Mini-Kayak'!H64*COS(RADIANS(J$4))*J$3)+J$2,"") ->  | I39: =IF('Mini-Kayak'!I64<>"",'Mini-Kayak'!I64*COS(RADIANS(J$4))-'Mini-Kayak'!J64*SIN(RADIANS(J$4))+J$1,"") ->  | J39: =IF('Mini-Kayak'!J64<>"",('Mini-Kayak'!I64*SIN(RADIANS(J$4))+'Mini-Kayak'!J64*COS(RADIANS(J$4))*J$3)+J$2,"") ->  | L39: =IF('Mini-Kayak'!L64<>"",'Mini-Kayak'!L64*COS(RADIANS(O$4))-'Mini-Kayak'!M64*SIN(RADIANS(O$4))+O$1,"") ->  | M39: =IF('Mini-Kayak'!M64<>"",('Mini-Kayak'!L64*SIN(RADIANS(O$4))+'Mini-Kayak'!M64*COS(RADIANS(O$4))*O$3)+O$2,"") ->  | N39: =IF('Mini-Kayak'!N64<>"",'Mini-Kayak'!N64*COS(RADIANS(O$4))-'Mini-Kayak'!O64*SIN(RADIANS(O$4))+O$1,"") ->  | O39: =IF('Mini-Kayak'!O64<>"",('Mini-Kayak'!N64*SIN(RADIANS(O$4))+'Mini-Kayak'!O64*COS(RADIANS(O$4))*O$3)+O$2,"") ->  | Q39: =IF('Mini-Kayak'!L64<>"",'Mini-Kayak'!L64*COS(RADIANS(T$4))-'Mini-Kayak'!M64*SIN(RADIANS(T$4))+T$1,"") ->  | R39: =IF('Mini-Kayak'!M64<>"",('Mini-Kayak'!L64*SIN(RADIANS(T$4))+'Mini-Kayak'!M64*COS(RADIANS(T$4))*T$3)+T$2,"") ->  | S39: =IF('Mini-Kayak'!N64<>"",'Mini-Kayak'!N64*COS(RADIANS(T$4))-'Mini-Kayak'!O64*SIN(RADIANS(T$4))+T$1,"") ->  | T39: =IF('Mini-Kayak'!O64<>"",MAX(('Mini-Kayak'!N64*SIN(RADIANS(T$4))+'Mini-Kayak'!O64*COS(RADIANS(T$4))*T$3)+T$2,M39+3),"") ->  | V39: =IF('Mini-Kayak'!V64<>"",'Mini-Kayak'!V64*COS(RADIANS(Y$4))-'Mini-Kayak'!W64*SIN(RADIANS(Y$4))+Y$1,"") ->  | W39: =IF('Mini-Kayak'!W64<>"",('Mini-Kayak'!V64*SIN(RADIANS(Y$4))+'Mini-Kayak'!W64*COS(RADIANS(Y$4))*Y$3)+Y$2,"") ->  | X39: =IF('Mini-Kayak'!X64<>"",'Mini-Kayak'!X64*COS(RADIANS(Y$4))-'Mini-Kayak'!Y64*SIN(RADIANS(Y$4))+Y$1,"") ->  | Y39: =IF('Mini-Kayak'!Y64<>"",('Mini-Kayak'!X64*SIN(RADIANS(Y$4))+'Mini-Kayak'!Y64*COS(RADIANS(Y$4))*Y$3)+Y$2,"") -> 
A40: 34 | B40: =IF('Mini-Kayak'!B65<>"",'Mini-Kayak'!B65*COS(RADIANS(E$4))-'Mini-Kayak'!C65*SIN(RADIANS(E$4))+E$1,"") ->  | C40: =IF('Mini-Kayak'!C65<>"",('Mini-Kayak'!B65*SIN(RADIANS(E$4))+'Mini-Kayak'!C65*COS(RADIANS(E$4))*E$3)+E$2,"") ->  | D40: =IF('Mini-Kayak'!D65<>"",'Mini-Kayak'!D65*COS(RADIANS(E$4))-'Mini-Kayak'!E65*SIN(RADIANS(E$4))+E$1,"") ->  | E40: =IF('Mini-Kayak'!E65<>"",('Mini-Kayak'!D65*SIN(RADIANS(E$4))+'Mini-Kayak'!E65*COS(RADIANS(E$4))*E$3)+E$2,"") ->  | G40: =IF('Mini-Kayak'!G65<>"",'Mini-Kayak'!G65*COS(RADIANS(J$4))-'Mini-Kayak'!H65*SIN(RADIANS(J$4))+J$1,"") ->  | H40: =IF('Mini-Kayak'!H65<>"",('Mini-Kayak'!G65*SIN(RADIANS(J$4))+'Mini-Kayak'!H65*COS(RADIANS(J$4))*J$3)+J$2,"") ->  | I40: =IF('Mini-Kayak'!I65<>"",'Mini-Kayak'!I65*COS(RADIANS(J$4))-'Mini-Kayak'!J65*SIN(RADIANS(J$4))+J$1,"") ->  | J40: =IF('Mini-Kayak'!J65<>"",('Mini-Kayak'!I65*SIN(RADIANS(J$4))+'Mini-Kayak'!J65*COS(RADIANS(J$4))*J$3)+J$2,"") ->  | L40: =IF('Mini-Kayak'!L65<>"",'Mini-Kayak'!L65*COS(RADIANS(O$4))-'Mini-Kayak'!M65*SIN(RADIANS(O$4))+O$1,"") ->  | M40: =IF('Mini-Kayak'!M65<>"",('Mini-Kayak'!L65*SIN(RADIANS(O$4))+'Mini-Kayak'!M65*COS(RADIANS(O$4))*O$3)+O$2,"") ->  | N40: =IF('Mini-Kayak'!N65<>"",'Mini-Kayak'!N65*COS(RADIANS(O$4))-'Mini-Kayak'!O65*SIN(RADIANS(O$4))+O$1,"") ->  | O40: =IF('Mini-Kayak'!O65<>"",('Mini-Kayak'!N65*SIN(RADIANS(O$4))+'Mini-Kayak'!O65*COS(RADIANS(O$4))*O$3)+O$2,"") ->  | Q40: =IF('Mini-Kayak'!L65<>"",'Mini-Kayak'!L65*COS(RADIANS(T$4))-'Mini-Kayak'!M65*SIN(RADIANS(T$4))+T$1,"") ->  | R40: =IF('Mini-Kayak'!M65<>"",('Mini-Kayak'!L65*SIN(RADIANS(T$4))+'Mini-Kayak'!M65*COS(RADIANS(T$4))*T$3)+T$2,"") ->  | S40: =IF('Mini-Kayak'!N65<>"",'Mini-Kayak'!N65*COS(RADIANS(T$4))-'Mini-Kayak'!O65*SIN(RADIANS(T$4))+T$1,"") ->  | T40: =IF('Mini-Kayak'!O65<>"",MAX(('Mini-Kayak'!N65*SIN(RADIANS(T$4))+'Mini-Kayak'!O65*COS(RADIANS(T$4))*T$3)+T$2,M40+3),"") ->  | V40: =IF('Mini-Kayak'!V65<>"",'Mini-Kayak'!V65*COS(RADIANS(Y$4))-'Mini-Kayak'!W65*SIN(RADIANS(Y$4))+Y$1,"") ->  | W40: =IF('Mini-Kayak'!W65<>"",('Mini-Kayak'!V65*SIN(RADIANS(Y$4))+'Mini-Kayak'!W65*COS(RADIANS(Y$4))*Y$3)+Y$2,"") ->  | X40: =IF('Mini-Kayak'!X65<>"",'Mini-Kayak'!X65*COS(RADIANS(Y$4))-'Mini-Kayak'!Y65*SIN(RADIANS(Y$4))+Y$1,"") ->  | Y40: =IF('Mini-Kayak'!Y65<>"",('Mini-Kayak'!X65*SIN(RADIANS(Y$4))+'Mini-Kayak'!Y65*COS(RADIANS(Y$4))*Y$3)+Y$2,"") -> 
A41: 35 | B41: =IF('Mini-Kayak'!B66<>"",'Mini-Kayak'!B66*COS(RADIANS(E$4))-'Mini-Kayak'!C66*SIN(RADIANS(E$4))+E$1,"") ->  | C41: =IF('Mini-Kayak'!C66<>"",('Mini-Kayak'!B66*SIN(RADIANS(E$4))+'Mini-Kayak'!C66*COS(RADIANS(E$4))*E$3)+E$2,"") ->  | D41: =IF('Mini-Kayak'!D66<>"",'Mini-Kayak'!D66*COS(RADIANS(E$4))-'Mini-Kayak'!E66*SIN(RADIANS(E$4))+E$1,"") ->  | E41: =IF('Mini-Kayak'!E66<>"",('Mini-Kayak'!D66*SIN(RADIANS(E$4))+'Mini-Kayak'!E66*COS(RADIANS(E$4))*E$3)+E$2,"") ->  | G41: =IF('Mini-Kayak'!G66<>"",'Mini-Kayak'!G66*COS(RADIANS(J$4))-'Mini-Kayak'!H66*SIN(RADIANS(J$4))+J$1,"") ->  | H41: =IF('Mini-Kayak'!H66<>"",('Mini-Kayak'!G66*SIN(RADIANS(J$4))+'Mini-Kayak'!H66*COS(RADIANS(J$4))*J$3)+J$2,"") ->  | I41: =IF('Mini-Kayak'!I66<>"",'Mini-Kayak'!I66*COS(RADIANS(J$4))-'Mini-Kayak'!J66*SIN(RADIANS(J$4))+J$1,"") ->  | J41: =IF('Mini-Kayak'!J66<>"",('Mini-Kayak'!I66*SIN(RADIANS(J$4))+'Mini-Kayak'!J66*COS(RADIANS(J$4))*J$3)+J$2,"") ->  | L41: =IF('Mini-Kayak'!L66<>"",'Mini-Kayak'!L66*COS(RADIANS(O$4))-'Mini-Kayak'!M66*SIN(RADIANS(O$4))+O$1,"") ->  | M41: =IF('Mini-Kayak'!M66<>"",('Mini-Kayak'!L66*SIN(RADIANS(O$4))+'Mini-Kayak'!M66*COS(RADIANS(O$4))*O$3)+O$2,"") ->  | N41: =IF('Mini-Kayak'!N66<>"",'Mini-Kayak'!N66*COS(RADIANS(O$4))-'Mini-Kayak'!O66*SIN(RADIANS(O$4))+O$1,"") ->  | O41: =IF('Mini-Kayak'!O66<>"",('Mini-Kayak'!N66*SIN(RADIANS(O$4))+'Mini-Kayak'!O66*COS(RADIANS(O$4))*O$3)+O$2,"") ->  | Q41: =IF('Mini-Kayak'!L66<>"",'Mini-Kayak'!L66*COS(RADIANS(T$4))-'Mini-Kayak'!M66*SIN(RADIANS(T$4))+T$1,"") ->  | R41: =IF('Mini-Kayak'!M66<>"",('Mini-Kayak'!L66*SIN(RADIANS(T$4))+'Mini-Kayak'!M66*COS(RADIANS(T$4))*T$3)+T$2,"") ->  | S41: =IF('Mini-Kayak'!N66<>"",'Mini-Kayak'!N66*COS(RADIANS(T$4))-'Mini-Kayak'!O66*SIN(RADIANS(T$4))+T$1,"") ->  | T41: =IF('Mini-Kayak'!O66<>"",MAX(('Mini-Kayak'!N66*SIN(RADIANS(T$4))+'Mini-Kayak'!O66*COS(RADIANS(T$4))*T$3)+T$2,M41+3),"") ->  | V41: =IF('Mini-Kayak'!V66<>"",'Mini-Kayak'!V66*COS(RADIANS(Y$4))-'Mini-Kayak'!W66*SIN(RADIANS(Y$4))+Y$1,"") ->  | W41: =IF('Mini-Kayak'!W66<>"",('Mini-Kayak'!V66*SIN(RADIANS(Y$4))+'Mini-Kayak'!W66*COS(RADIANS(Y$4))*Y$3)+Y$2,"") ->  | X41: =IF('Mini-Kayak'!X66<>"",'Mini-Kayak'!X66*COS(RADIANS(Y$4))-'Mini-Kayak'!Y66*SIN(RADIANS(Y$4))+Y$1,"") ->  | Y41: =IF('Mini-Kayak'!Y66<>"",('Mini-Kayak'!X66*SIN(RADIANS(Y$4))+'Mini-Kayak'!Y66*COS(RADIANS(Y$4))*Y$3)+Y$2,"") -> 
A42: 36 | B42: =IF('Mini-Kayak'!B67<>"",'Mini-Kayak'!B67*COS(RADIANS(E$4))-'Mini-Kayak'!C67*SIN(RADIANS(E$4))+E$1,"") ->  | C42: =IF('Mini-Kayak'!C67<>"",('Mini-Kayak'!B67*SIN(RADIANS(E$4))+'Mini-Kayak'!C67*COS(RADIANS(E$4))*E$3)+E$2,"") ->  | D42: =IF('Mini-Kayak'!D67<>"",'Mini-Kayak'!D67*COS(RADIANS(E$4))-'Mini-Kayak'!E67*SIN(RADIANS(E$4))+E$1,"") ->  | E42: =IF('Mini-Kayak'!E67<>"",('Mini-Kayak'!D67*SIN(RADIANS(E$4))+'Mini-Kayak'!E67*COS(RADIANS(E$4))*E$3)+E$2,"") ->  | G42: =IF('Mini-Kayak'!G67<>"",'Mini-Kayak'!G67*COS(RADIANS(J$4))-'Mini-Kayak'!H67*SIN(RADIANS(J$4))+J$1,"") ->  | H42: =IF('Mini-Kayak'!H67<>"",('Mini-Kayak'!G67*SIN(RADIANS(J$4))+'Mini-Kayak'!H67*COS(RADIANS(J$4))*J$3)+J$2,"") ->  | I42: =IF('Mini-Kayak'!I67<>"",'Mini-Kayak'!I67*COS(RADIANS(J$4))-'Mini-Kayak'!J67*SIN(RADIANS(J$4))+J$1,"") ->  | J42: =IF('Mini-Kayak'!J67<>"",('Mini-Kayak'!I67*SIN(RADIANS(J$4))+'Mini-Kayak'!J67*COS(RADIANS(J$4))*J$3)+J$2,"") ->  | L42: =IF('Mini-Kayak'!L67<>"",'Mini-Kayak'!L67*COS(RADIANS(O$4))-'Mini-Kayak'!M67*SIN(RADIANS(O$4))+O$1,"") ->  | M42: =IF('Mini-Kayak'!M67<>"",('Mini-Kayak'!L67*SIN(RADIANS(O$4))+'Mini-Kayak'!M67*COS(RADIANS(O$4))*O$3)+O$2,"") ->  | N42: =IF('Mini-Kayak'!N67<>"",'Mini-Kayak'!N67*COS(RADIANS(O$4))-'Mini-Kayak'!O67*SIN(RADIANS(O$4))+O$1,"") ->  | O42: =IF('Mini-Kayak'!O67<>"",('Mini-Kayak'!N67*SIN(RADIANS(O$4))+'Mini-Kayak'!O67*COS(RADIANS(O$4))*O$3)+O$2,"") ->  | Q42: =IF('Mini-Kayak'!L67<>"",'Mini-Kayak'!L67*COS(RADIANS(T$4))-'Mini-Kayak'!M67*SIN(RADIANS(T$4))+T$1,"") ->  | R42: =IF('Mini-Kayak'!M67<>"",('Mini-Kayak'!L67*SIN(RADIANS(T$4))+'Mini-Kayak'!M67*COS(RADIANS(T$4))*T$3)+T$2,"") ->  | S42: =IF('Mini-Kayak'!N67<>"",'Mini-Kayak'!N67*COS(RADIANS(T$4))-'Mini-Kayak'!O67*SIN(RADIANS(T$4))+T$1,"") ->  | T42: =IF('Mini-Kayak'!O67<>"",MAX(('Mini-Kayak'!N67*SIN(RADIANS(T$4))+'Mini-Kayak'!O67*COS(RADIANS(T$4))*T$3)+T$2,M42+3),"") ->  | V42: =IF('Mini-Kayak'!V67<>"",'Mini-Kayak'!V67*COS(RADIANS(Y$4))-'Mini-Kayak'!W67*SIN(RADIANS(Y$4))+Y$1,"") ->  | W42: =IF('Mini-Kayak'!W67<>"",('Mini-Kayak'!V67*SIN(RADIANS(Y$4))+'Mini-Kayak'!W67*COS(RADIANS(Y$4))*Y$3)+Y$2,"") ->  | X42: =IF('Mini-Kayak'!X67<>"",'Mini-Kayak'!X67*COS(RADIANS(Y$4))-'Mini-Kayak'!Y67*SIN(RADIANS(Y$4))+Y$1,"") ->  | Y42: =IF('Mini-Kayak'!Y67<>"",('Mini-Kayak'!X67*SIN(RADIANS(Y$4))+'Mini-Kayak'!Y67*COS(RADIANS(Y$4))*Y$3)+Y$2,"") -> 
A43: 37 | B43: =IF('Mini-Kayak'!B68<>"",'Mini-Kayak'!B68*COS(RADIANS(E$4))-'Mini-Kayak'!C68*SIN(RADIANS(E$4))+E$1,"") ->  | C43: =IF('Mini-Kayak'!C68<>"",('Mini-Kayak'!B68*SIN(RADIANS(E$4))+'Mini-Kayak'!C68*COS(RADIANS(E$4))*E$3)+E$2,"") ->  | D43: =IF('Mini-Kayak'!D68<>"",'Mini-Kayak'!D68*COS(RADIANS(E$4))-'Mini-Kayak'!E68*SIN(RADIANS(E$4))+E$1,"") ->  | E43: =IF('Mini-Kayak'!E68<>"",('Mini-Kayak'!D68*SIN(RADIANS(E$4))+'Mini-Kayak'!E68*COS(RADIANS(E$4))*E$3)+E$2,"") ->  | G43: =IF('Mini-Kayak'!G68<>"",'Mini-Kayak'!G68*COS(RADIANS(J$4))-'Mini-Kayak'!H68*SIN(RADIANS(J$4))+J$1,"") ->  | H43: =IF('Mini-Kayak'!H68<>"",('Mini-Kayak'!G68*SIN(RADIANS(J$4))+'Mini-Kayak'!H68*COS(RADIANS(J$4))*J$3)+J$2,"") ->  | I43: =IF('Mini-Kayak'!I68<>"",'Mini-Kayak'!I68*COS(RADIANS(J$4))-'Mini-Kayak'!J68*SIN(RADIANS(J$4))+J$1,"") ->  | J43: =IF('Mini-Kayak'!J68<>"",('Mini-Kayak'!I68*SIN(RADIANS(J$4))+'Mini-Kayak'!J68*COS(RADIANS(J$4))*J$3)+J$2,"") ->  | L43: =IF('Mini-Kayak'!L68<>"",'Mini-Kayak'!L68*COS(RADIANS(O$4))-'Mini-Kayak'!M68*SIN(RADIANS(O$4))+O$1,"") ->  | M43: =IF('Mini-Kayak'!M68<>"",('Mini-Kayak'!L68*SIN(RADIANS(O$4))+'Mini-Kayak'!M68*COS(RADIANS(O$4))*O$3)+O$2,"") ->  | N43: =IF('Mini-Kayak'!N68<>"",'Mini-Kayak'!N68*COS(RADIANS(O$4))-'Mini-Kayak'!O68*SIN(RADIANS(O$4))+O$1,"") ->  | O43: =IF('Mini-Kayak'!O68<>"",('Mini-Kayak'!N68*SIN(RADIANS(O$4))+'Mini-Kayak'!O68*COS(RADIANS(O$4))*O$3)+O$2,"") ->  | Q43: =IF('Mini-Kayak'!L68<>"",'Mini-Kayak'!L68*COS(RADIANS(T$4))-'Mini-Kayak'!M68*SIN(RADIANS(T$4))+T$1,"") ->  | R43: =IF('Mini-Kayak'!M68<>"",('Mini-Kayak'!L68*SIN(RADIANS(T$4))+'Mini-Kayak'!M68*COS(RADIANS(T$4))*T$3)+T$2,"") ->  | S43: =IF('Mini-Kayak'!N68<>"",'Mini-Kayak'!N68*COS(RADIANS(T$4))-'Mini-Kayak'!O68*SIN(RADIANS(T$4))+T$1,"") ->  | T43: =IF('Mini-Kayak'!O68<>"",MAX(('Mini-Kayak'!N68*SIN(RADIANS(T$4))+'Mini-Kayak'!O68*COS(RADIANS(T$4))*T$3)+T$2,M43+3),"") ->  | V43: =IF('Mini-Kayak'!V68<>"",'Mini-Kayak'!V68*COS(RADIANS(Y$4))-'Mini-Kayak'!W68*SIN(RADIANS(Y$4))+Y$1,"") ->  | W43: =IF('Mini-Kayak'!W68<>"",('Mini-Kayak'!V68*SIN(RADIANS(Y$4))+'Mini-Kayak'!W68*COS(RADIANS(Y$4))*Y$3)+Y$2,"") ->  | X43: =IF('Mini-Kayak'!X68<>"",'Mini-Kayak'!X68*COS(RADIANS(Y$4))-'Mini-Kayak'!Y68*SIN(RADIANS(Y$4))+Y$1,"") ->  | Y43: =IF('Mini-Kayak'!Y68<>"",('Mini-Kayak'!X68*SIN(RADIANS(Y$4))+'Mini-Kayak'!Y68*COS(RADIANS(Y$4))*Y$3)+Y$2,"") -> 
A44: 38 | B44: =IF('Mini-Kayak'!B69<>"",'Mini-Kayak'!B69*COS(RADIANS(E$4))-'Mini-Kayak'!C69*SIN(RADIANS(E$4))+E$1,"") ->  | C44: =IF('Mini-Kayak'!C69<>"",('Mini-Kayak'!B69*SIN(RADIANS(E$4))+'Mini-Kayak'!C69*COS(RADIANS(E$4))*E$3)+E$2,"") ->  | D44: =IF('Mini-Kayak'!D69<>"",'Mini-Kayak'!D69*COS(RADIANS(E$4))-'Mini-Kayak'!E69*SIN(RADIANS(E$4))+E$1,"") ->  | E44: =IF('Mini-Kayak'!E69<>"",('Mini-Kayak'!D69*SIN(RADIANS(E$4))+'Mini-Kayak'!E69*COS(RADIANS(E$4))*E$3)+E$2,"") ->  | G44: =IF('Mini-Kayak'!G69<>"",'Mini-Kayak'!G69*COS(RADIANS(J$4))-'Mini-Kayak'!H69*SIN(RADIANS(J$4))+J$1,"") ->  | H44: =IF('Mini-Kayak'!H69<>"",('Mini-Kayak'!G69*SIN(RADIANS(J$4))+'Mini-Kayak'!H69*COS(RADIANS(J$4))*J$3)+J$2,"") ->  | I44: =IF('Mini-Kayak'!I69<>"",'Mini-Kayak'!I69*COS(RADIANS(J$4))-'Mini-Kayak'!J69*SIN(RADIANS(J$4))+J$1,"") ->  | J44: =IF('Mini-Kayak'!J69<>"",('Mini-Kayak'!I69*SIN(RADIANS(J$4))+'Mini-Kayak'!J69*COS(RADIANS(J$4))*J$3)+J$2,"") ->  | L44: =IF('Mini-Kayak'!L69<>"",'Mini-Kayak'!L69*COS(RADIANS(O$4))-'Mini-Kayak'!M69*SIN(RADIANS(O$4))+O$1,"") ->  | M44: =IF('Mini-Kayak'!M69<>"",('Mini-Kayak'!L69*SIN(RADIANS(O$4))+'Mini-Kayak'!M69*COS(RADIANS(O$4))*O$3)+O$2,"") ->  | N44: =IF('Mini-Kayak'!N69<>"",'Mini-Kayak'!N69*COS(RADIANS(O$4))-'Mini-Kayak'!O69*SIN(RADIANS(O$4))+O$1,"") ->  | O44: =IF('Mini-Kayak'!O69<>"",('Mini-Kayak'!N69*SIN(RADIANS(O$4))+'Mini-Kayak'!O69*COS(RADIANS(O$4))*O$3)+O$2,"") ->  | Q44: =IF('Mini-Kayak'!L69<>"",'Mini-Kayak'!L69*COS(RADIANS(T$4))-'Mini-Kayak'!M69*SIN(RADIANS(T$4))+T$1,"") ->  | R44: =IF('Mini-Kayak'!M69<>"",('Mini-Kayak'!L69*SIN(RADIANS(T$4))+'Mini-Kayak'!M69*COS(RADIANS(T$4))*T$3)+T$2,"") ->  | S44: =IF('Mini-Kayak'!N69<>"",'Mini-Kayak'!N69*COS(RADIANS(T$4))-'Mini-Kayak'!O69*SIN(RADIANS(T$4))+T$1,"") ->  | T44: =IF('Mini-Kayak'!O69<>"",MAX(('Mini-Kayak'!N69*SIN(RADIANS(T$4))+'Mini-Kayak'!O69*COS(RADIANS(T$4))*T$3)+T$2,M44+3),"") ->  | V44: =IF('Mini-Kayak'!V69<>"",'Mini-Kayak'!V69*COS(RADIANS(Y$4))-'Mini-Kayak'!W69*SIN(RADIANS(Y$4))+Y$1,"") ->  | W44: =IF('Mini-Kayak'!W69<>"",('Mini-Kayak'!V69*SIN(RADIANS(Y$4))+'Mini-Kayak'!W69*COS(RADIANS(Y$4))*Y$3)+Y$2,"") ->  | X44: =IF('Mini-Kayak'!X69<>"",'Mini-Kayak'!X69*COS(RADIANS(Y$4))-'Mini-Kayak'!Y69*SIN(RADIANS(Y$4))+Y$1,"") ->  | Y44: =IF('Mini-Kayak'!Y69<>"",('Mini-Kayak'!X69*SIN(RADIANS(Y$4))+'Mini-Kayak'!Y69*COS(RADIANS(Y$4))*Y$3)+Y$2,"") -> 
A45: 39 | B45: =IF('Mini-Kayak'!B70<>"",'Mini-Kayak'!B70*COS(RADIANS(E$4))-'Mini-Kayak'!C70*SIN(RADIANS(E$4))+E$1,"") ->  | C45: =IF('Mini-Kayak'!C70<>"",('Mini-Kayak'!B70*SIN(RADIANS(E$4))+'Mini-Kayak'!C70*COS(RADIANS(E$4))*E$3)+E$2,"") ->  | D45: =IF('Mini-Kayak'!D70<>"",'Mini-Kayak'!D70*COS(RADIANS(E$4))-'Mini-Kayak'!E70*SIN(RADIANS(E$4))+E$1,"") ->  | E45: =IF('Mini-Kayak'!E70<>"",('Mini-Kayak'!D70*SIN(RADIANS(E$4))+'Mini-Kayak'!E70*COS(RADIANS(E$4))*E$3)+E$2,"") ->  | G45: =IF('Mini-Kayak'!G70<>"",'Mini-Kayak'!G70*COS(RADIANS(J$4))-'Mini-Kayak'!H70*SIN(RADIANS(J$4))+J$1,"") ->  | H45: =IF('Mini-Kayak'!H70<>"",('Mini-Kayak'!G70*SIN(RADIANS(J$4))+'Mini-Kayak'!H70*COS(RADIANS(J$4))*J$3)+J$2,"") ->  | I45: =IF('Mini-Kayak'!I70<>"",'Mini-Kayak'!I70*COS(RADIANS(J$4))-'Mini-Kayak'!J70*SIN(RADIANS(J$4))+J$1,"") ->  | J45: =IF('Mini-Kayak'!J70<>"",('Mini-Kayak'!I70*SIN(RADIANS(J$4))+'Mini-Kayak'!J70*COS(RADIANS(J$4))*J$3)+J$2,"") ->  | L45: =IF('Mini-Kayak'!L70<>"",'Mini-Kayak'!L70*COS(RADIANS(O$4))-'Mini-Kayak'!M70*SIN(RADIANS(O$4))+O$1,"") ->  | M45: =IF('Mini-Kayak'!M70<>"",('Mini-Kayak'!L70*SIN(RADIANS(O$4))+'Mini-Kayak'!M70*COS(RADIANS(O$4))*O$3)+O$2,"") ->  | N45: =IF('Mini-Kayak'!N70<>"",'Mini-Kayak'!N70*COS(RADIANS(O$4))-'Mini-Kayak'!O70*SIN(RADIANS(O$4))+O$1,"") ->  | O45: =IF('Mini-Kayak'!O70<>"",('Mini-Kayak'!N70*SIN(RADIANS(O$4))+'Mini-Kayak'!O70*COS(RADIANS(O$4))*O$3)+O$2,"") ->  | Q45: =IF('Mini-Kayak'!L70<>"",'Mini-Kayak'!L70*COS(RADIANS(T$4))-'Mini-Kayak'!M70*SIN(RADIANS(T$4))+T$1,"") ->  | R45: =IF('Mini-Kayak'!M70<>"",('Mini-Kayak'!L70*SIN(RADIANS(T$4))+'Mini-Kayak'!M70*COS(RADIANS(T$4))*T$3)+T$2,"") ->  | S45: =IF('Mini-Kayak'!N70<>"",'Mini-Kayak'!N70*COS(RADIANS(T$4))-'Mini-Kayak'!O70*SIN(RADIANS(T$4))+T$1,"") ->  | T45: =IF('Mini-Kayak'!O70<>"",MAX(('Mini-Kayak'!N70*SIN(RADIANS(T$4))+'Mini-Kayak'!O70*COS(RADIANS(T$4))*T$3)+T$2,M45+3),"") ->  | V45: =IF('Mini-Kayak'!V70<>"",'Mini-Kayak'!V70*COS(RADIANS(Y$4))-'Mini-Kayak'!W70*SIN(RADIANS(Y$4))+Y$1,"") ->  | W45: =IF('Mini-Kayak'!W70<>"",('Mini-Kayak'!V70*SIN(RADIANS(Y$4))+'Mini-Kayak'!W70*COS(RADIANS(Y$4))*Y$3)+Y$2,"") ->  | X45: =IF('Mini-Kayak'!X70<>"",'Mini-Kayak'!X70*COS(RADIANS(Y$4))-'Mini-Kayak'!Y70*SIN(RADIANS(Y$4))+Y$1,"") ->  | Y45: =IF('Mini-Kayak'!Y70<>"",('Mini-Kayak'!X70*SIN(RADIANS(Y$4))+'Mini-Kayak'!Y70*COS(RADIANS(Y$4))*Y$3)+Y$2,"") -> 
A46: 40 | B46: =IF('Mini-Kayak'!B71<>"",'Mini-Kayak'!B71*COS(RADIANS(E$4))-'Mini-Kayak'!C71*SIN(RADIANS(E$4))+E$1,"") ->  | C46: =IF('Mini-Kayak'!C71<>"",('Mini-Kayak'!B71*SIN(RADIANS(E$4))+'Mini-Kayak'!C71*COS(RADIANS(E$4))*E$3)+E$2,"") ->  | D46: =IF('Mini-Kayak'!D71<>"",'Mini-Kayak'!D71*COS(RADIANS(E$4))-'Mini-Kayak'!E71*SIN(RADIANS(E$4))+E$1,"") ->  | E46: =IF('Mini-Kayak'!E71<>"",('Mini-Kayak'!D71*SIN(RADIANS(E$4))+'Mini-Kayak'!E71*COS(RADIANS(E$4))*E$3)+E$2,"") ->  | G46: =IF('Mini-Kayak'!G71<>"",'Mini-Kayak'!G71*COS(RADIANS(J$4))-'Mini-Kayak'!H71*SIN(RADIANS(J$4))+J$1,"") ->  | H46: =IF('Mini-Kayak'!H71<>"",('Mini-Kayak'!G71*SIN(RADIANS(J$4))+'Mini-Kayak'!H71*COS(RADIANS(J$4))*J$3)+J$2,"") ->  | I46: =IF('Mini-Kayak'!I71<>"",'Mini-Kayak'!I71*COS(RADIANS(J$4))-'Mini-Kayak'!J71*SIN(RADIANS(J$4))+J$1,"") ->  | J46: =IF('Mini-Kayak'!J71<>"",('Mini-Kayak'!I71*SIN(RADIANS(J$4))+'Mini-Kayak'!J71*COS(RADIANS(J$4))*J$3)+J$2,"") ->  | L46: =IF('Mini-Kayak'!L71<>"",'Mini-Kayak'!L71*COS(RADIANS(O$4))-'Mini-Kayak'!M71*SIN(RADIANS(O$4))+O$1,"") ->  | M46: =IF('Mini-Kayak'!M71<>"",('Mini-Kayak'!L71*SIN(RADIANS(O$4))+'Mini-Kayak'!M71*COS(RADIANS(O$4))*O$3)+O$2,"") ->  | N46: =IF('Mini-Kayak'!N71<>"",'Mini-Kayak'!N71*COS(RADIANS(O$4))-'Mini-Kayak'!O71*SIN(RADIANS(O$4))+O$1,"") ->  | O46: =IF('Mini-Kayak'!O71<>"",('Mini-Kayak'!N71*SIN(RADIANS(O$4))+'Mini-Kayak'!O71*COS(RADIANS(O$4))*O$3)+O$2,"") ->  | Q46: =IF('Mini-Kayak'!L71<>"",'Mini-Kayak'!L71*COS(RADIANS(T$4))-'Mini-Kayak'!M71*SIN(RADIANS(T$4))+T$1,"") ->  | R46: =IF('Mini-Kayak'!M71<>"",('Mini-Kayak'!L71*SIN(RADIANS(T$4))+'Mini-Kayak'!M71*COS(RADIANS(T$4))*T$3)+T$2,"") ->  | S46: =IF('Mini-Kayak'!N71<>"",'Mini-Kayak'!N71*COS(RADIANS(T$4))-'Mini-Kayak'!O71*SIN(RADIANS(T$4))+T$1,"") ->  | T46: =IF('Mini-Kayak'!O71<>"",MAX(('Mini-Kayak'!N71*SIN(RADIANS(T$4))+'Mini-Kayak'!O71*COS(RADIANS(T$4))*T$3)+T$2,M46+3),"") ->  | V46: =IF('Mini-Kayak'!V71<>"",'Mini-Kayak'!V71*COS(RADIANS(Y$4))-'Mini-Kayak'!W71*SIN(RADIANS(Y$4))+Y$1,"") ->  | W46: =IF('Mini-Kayak'!W71<>"",('Mini-Kayak'!V71*SIN(RADIANS(Y$4))+'Mini-Kayak'!W71*COS(RADIANS(Y$4))*Y$3)+Y$2,"") ->  | X46: =IF('Mini-Kayak'!X71<>"",'Mini-Kayak'!X71*COS(RADIANS(Y$4))-'Mini-Kayak'!Y71*SIN(RADIANS(Y$4))+Y$1,"") ->  | Y46: =IF('Mini-Kayak'!Y71<>"",('Mini-Kayak'!X71*SIN(RADIANS(Y$4))+'Mini-Kayak'!Y71*COS(RADIANS(Y$4))*Y$3)+Y$2,"") -> 
A47: 41 | B47: =IF('Mini-Kayak'!B72<>"",'Mini-Kayak'!B72*COS(RADIANS(E$4))-'Mini-Kayak'!C72*SIN(RADIANS(E$4))+E$1,"") ->  | C47: =IF('Mini-Kayak'!C72<>"",('Mini-Kayak'!B72*SIN(RADIANS(E$4))+'Mini-Kayak'!C72*COS(RADIANS(E$4))*E$3)+E$2,"") ->  | D47: =IF('Mini-Kayak'!D72<>"",'Mini-Kayak'!D72*COS(RADIANS(E$4))-'Mini-Kayak'!E72*SIN(RADIANS(E$4))+E$1,"") ->  | E47: =IF('Mini-Kayak'!E72<>"",('Mini-Kayak'!D72*SIN(RADIANS(E$4))+'Mini-Kayak'!E72*COS(RADIANS(E$4))*E$3)+E$2,"") ->  | G47: =IF('Mini-Kayak'!G72<>"",'Mini-Kayak'!G72*COS(RADIANS(J$4))-'Mini-Kayak'!H72*SIN(RADIANS(J$4))+J$1,"") ->  | H47: =IF('Mini-Kayak'!H72<>"",('Mini-Kayak'!G72*SIN(RADIANS(J$4))+'Mini-Kayak'!H72*COS(RADIANS(J$4))*J$3)+J$2,"") ->  | I47: =IF('Mini-Kayak'!I72<>"",'Mini-Kayak'!I72*COS(RADIANS(J$4))-'Mini-Kayak'!J72*SIN(RADIANS(J$4))+J$1,"") ->  | J47: =IF('Mini-Kayak'!J72<>"",('Mini-Kayak'!I72*SIN(RADIANS(J$4))+'Mini-Kayak'!J72*COS(RADIANS(J$4))*J$3)+J$2,"") ->  | L47: =IF('Mini-Kayak'!L72<>"",'Mini-Kayak'!L72*COS(RADIANS(O$4))-'Mini-Kayak'!M72*SIN(RADIANS(O$4))+O$1,"") ->  | M47: =IF('Mini-Kayak'!M72<>"",('Mini-Kayak'!L72*SIN(RADIANS(O$4))+'Mini-Kayak'!M72*COS(RADIANS(O$4))*O$3)+O$2,"") ->  | N47: =IF('Mini-Kayak'!N72<>"",'Mini-Kayak'!N72*COS(RADIANS(O$4))-'Mini-Kayak'!O72*SIN(RADIANS(O$4))+O$1,"") ->  | O47: =IF('Mini-Kayak'!O72<>"",('Mini-Kayak'!N72*SIN(RADIANS(O$4))+'Mini-Kayak'!O72*COS(RADIANS(O$4))*O$3)+O$2,"") ->  | Q47: =IF('Mini-Kayak'!L72<>"",'Mini-Kayak'!L72*COS(RADIANS(T$4))-'Mini-Kayak'!M72*SIN(RADIANS(T$4))+T$1,"") ->  | R47: =IF('Mini-Kayak'!M72<>"",('Mini-Kayak'!L72*SIN(RADIANS(T$4))+'Mini-Kayak'!M72*COS(RADIANS(T$4))*T$3)+T$2,"") ->  | S47: =IF('Mini-Kayak'!N72<>"",'Mini-Kayak'!N72*COS(RADIANS(T$4))-'Mini-Kayak'!O72*SIN(RADIANS(T$4))+T$1,"") ->  | T47: =IF('Mini-Kayak'!O72<>"",MAX(('Mini-Kayak'!N72*SIN(RADIANS(T$4))+'Mini-Kayak'!O72*COS(RADIANS(T$4))*T$3)+T$2,M47+3),"") ->  | V47: =IF('Mini-Kayak'!V72<>"",'Mini-Kayak'!V72*COS(RADIANS(Y$4))-'Mini-Kayak'!W72*SIN(RADIANS(Y$4))+Y$1,"") ->  | W47: =IF('Mini-Kayak'!W72<>"",('Mini-Kayak'!V72*SIN(RADIANS(Y$4))+'Mini-Kayak'!W72*COS(RADIANS(Y$4))*Y$3)+Y$2,"") ->  | X47: =IF('Mini-Kayak'!X72<>"",'Mini-Kayak'!X72*COS(RADIANS(Y$4))-'Mini-Kayak'!Y72*SIN(RADIANS(Y$4))+Y$1,"") ->  | Y47: =IF('Mini-Kayak'!Y72<>"",('Mini-Kayak'!X72*SIN(RADIANS(Y$4))+'Mini-Kayak'!Y72*COS(RADIANS(Y$4))*Y$3)+Y$2,"") -> 
A48: 42 | B48: =IF('Mini-Kayak'!B73<>"",'Mini-Kayak'!B73*COS(RADIANS(E$4))-'Mini-Kayak'!C73*SIN(RADIANS(E$4))+E$1,"") ->  | C48: =IF('Mini-Kayak'!C73<>"",('Mini-Kayak'!B73*SIN(RADIANS(E$4))+'Mini-Kayak'!C73*COS(RADIANS(E$4))*E$3)+E$2,"") ->  | D48: =IF('Mini-Kayak'!D73<>"",'Mini-Kayak'!D73*COS(RADIANS(E$4))-'Mini-Kayak'!E73*SIN(RADIANS(E$4))+E$1,"") ->  | E48: =IF('Mini-Kayak'!E73<>"",('Mini-Kayak'!D73*SIN(RADIANS(E$4))+'Mini-Kayak'!E73*COS(RADIANS(E$4))*E$3)+E$2,"") ->  | G48: =IF('Mini-Kayak'!G73<>"",'Mini-Kayak'!G73*COS(RADIANS(J$4))-'Mini-Kayak'!H73*SIN(RADIANS(J$4))+J$1,"") ->  | H48: =IF('Mini-Kayak'!H73<>"",('Mini-Kayak'!G73*SIN(RADIANS(J$4))+'Mini-Kayak'!H73*COS(RADIANS(J$4))*J$3)+J$2,"") ->  | I48: =IF('Mini-Kayak'!I73<>"",'Mini-Kayak'!I73*COS(RADIANS(J$4))-'Mini-Kayak'!J73*SIN(RADIANS(J$4))+J$1,"") ->  | J48: =IF('Mini-Kayak'!J73<>"",('Mini-Kayak'!I73*SIN(RADIANS(J$4))+'Mini-Kayak'!J73*COS(RADIANS(J$4))*J$3)+J$2,"") ->  | L48: =IF('Mini-Kayak'!L73<>"",'Mini-Kayak'!L73*COS(RADIANS(O$4))-'Mini-Kayak'!M73*SIN(RADIANS(O$4))+O$1,"") ->  | M48: =IF('Mini-Kayak'!M73<>"",('Mini-Kayak'!L73*SIN(RADIANS(O$4))+'Mini-Kayak'!M73*COS(RADIANS(O$4))*O$3)+O$2,"") ->  | N48: =IF('Mini-Kayak'!N73<>"",'Mini-Kayak'!N73*COS(RADIANS(O$4))-'Mini-Kayak'!O73*SIN(RADIANS(O$4))+O$1,"") ->  | O48: =IF('Mini-Kayak'!O73<>"",('Mini-Kayak'!N73*SIN(RADIANS(O$4))+'Mini-Kayak'!O73*COS(RADIANS(O$4))*O$3)+O$2,"") ->  | Q48: =IF('Mini-Kayak'!L73<>"",'Mini-Kayak'!L73*COS(RADIANS(T$4))-'Mini-Kayak'!M73*SIN(RADIANS(T$4))+T$1,"") ->  | R48: =IF('Mini-Kayak'!M73<>"",('Mini-Kayak'!L73*SIN(RADIANS(T$4))+'Mini-Kayak'!M73*COS(RADIANS(T$4))*T$3)+T$2,"") ->  | S48: =IF('Mini-Kayak'!N73<>"",'Mini-Kayak'!N73*COS(RADIANS(T$4))-'Mini-Kayak'!O73*SIN(RADIANS(T$4))+T$1,"") ->  | T48: =IF('Mini-Kayak'!O73<>"",MAX(('Mini-Kayak'!N73*SIN(RADIANS(T$4))+'Mini-Kayak'!O73*COS(RADIANS(T$4))*T$3)+T$2,M48+3),"") ->  | V48: =IF('Mini-Kayak'!V73<>"",'Mini-Kayak'!V73*COS(RADIANS(Y$4))-'Mini-Kayak'!W73*SIN(RADIANS(Y$4))+Y$1,"") ->  | W48: =IF('Mini-Kayak'!W73<>"",('Mini-Kayak'!V73*SIN(RADIANS(Y$4))+'Mini-Kayak'!W73*COS(RADIANS(Y$4))*Y$3)+Y$2,"") ->  | X48: =IF('Mini-Kayak'!X73<>"",'Mini-Kayak'!X73*COS(RADIANS(Y$4))-'Mini-Kayak'!Y73*SIN(RADIANS(Y$4))+Y$1,"") ->  | Y48: =IF('Mini-Kayak'!Y73<>"",('Mini-Kayak'!X73*SIN(RADIANS(Y$4))+'Mini-Kayak'!Y73*COS(RADIANS(Y$4))*Y$3)+Y$2,"") -> 
A49: 43 | B49: =IF('Mini-Kayak'!B74<>"",'Mini-Kayak'!B74*COS(RADIANS(E$4))-'Mini-Kayak'!C74*SIN(RADIANS(E$4))+E$1,"") ->  | C49: =IF('Mini-Kayak'!C74<>"",('Mini-Kayak'!B74*SIN(RADIANS(E$4))+'Mini-Kayak'!C74*COS(RADIANS(E$4))*E$3)+E$2,"") ->  | D49: =IF('Mini-Kayak'!D74<>"",'Mini-Kayak'!D74*COS(RADIANS(E$4))-'Mini-Kayak'!E74*SIN(RADIANS(E$4))+E$1,"") ->  | E49: =IF('Mini-Kayak'!E74<>"",('Mini-Kayak'!D74*SIN(RADIANS(E$4))+'Mini-Kayak'!E74*COS(RADIANS(E$4))*E$3)+E$2,"") ->  | G49: =IF('Mini-Kayak'!G74<>"",'Mini-Kayak'!G74*COS(RADIANS(J$4))-'Mini-Kayak'!H74*SIN(RADIANS(J$4))+J$1,"") ->  | H49: =IF('Mini-Kayak'!H74<>"",('Mini-Kayak'!G74*SIN(RADIANS(J$4))+'Mini-Kayak'!H74*COS(RADIANS(J$4))*J$3)+J$2,"") ->  | I49: =IF('Mini-Kayak'!I74<>"",'Mini-Kayak'!I74*COS(RADIANS(J$4))-'Mini-Kayak'!J74*SIN(RADIANS(J$4))+J$1,"") ->  | J49: =IF('Mini-Kayak'!J74<>"",('Mini-Kayak'!I74*SIN(RADIANS(J$4))+'Mini-Kayak'!J74*COS(RADIANS(J$4))*J$3)+J$2,"") ->  | L49: =IF('Mini-Kayak'!L74<>"",'Mini-Kayak'!L74*COS(RADIANS(O$4))-'Mini-Kayak'!M74*SIN(RADIANS(O$4))+O$1,"") ->  | M49: =IF('Mini-Kayak'!M74<>"",('Mini-Kayak'!L74*SIN(RADIANS(O$4))+'Mini-Kayak'!M74*COS(RADIANS(O$4))*O$3)+O$2,"") ->  | N49: =IF('Mini-Kayak'!N74<>"",'Mini-Kayak'!N74*COS(RADIANS(O$4))-'Mini-Kayak'!O74*SIN(RADIANS(O$4))+O$1,"") ->  | O49: =IF('Mini-Kayak'!O74<>"",('Mini-Kayak'!N74*SIN(RADIANS(O$4))+'Mini-Kayak'!O74*COS(RADIANS(O$4))*O$3)+O$2,"") ->  | Q49: =IF('Mini-Kayak'!L74<>"",'Mini-Kayak'!L74*COS(RADIANS(T$4))-'Mini-Kayak'!M74*SIN(RADIANS(T$4))+T$1,"") ->  | R49: =IF('Mini-Kayak'!M74<>"",('Mini-Kayak'!L74*SIN(RADIANS(T$4))+'Mini-Kayak'!M74*COS(RADIANS(T$4))*T$3)+T$2,"") ->  | S49: =IF('Mini-Kayak'!N74<>"",'Mini-Kayak'!N74*COS(RADIANS(T$4))-'Mini-Kayak'!O74*SIN(RADIANS(T$4))+T$1,"") ->  | T49: =IF('Mini-Kayak'!O74<>"",MAX(('Mini-Kayak'!N74*SIN(RADIANS(T$4))+'Mini-Kayak'!O74*COS(RADIANS(T$4))*T$3)+T$2,M49+3),"") ->  | V49: =IF('Mini-Kayak'!V74<>"",'Mini-Kayak'!V74*COS(RADIANS(Y$4))-'Mini-Kayak'!W74*SIN(RADIANS(Y$4))+Y$1,"") ->  | W49: =IF('Mini-Kayak'!W74<>"",('Mini-Kayak'!V74*SIN(RADIANS(Y$4))+'Mini-Kayak'!W74*COS(RADIANS(Y$4))*Y$3)+Y$2,"") ->  | X49: =IF('Mini-Kayak'!X74<>"",'Mini-Kayak'!X74*COS(RADIANS(Y$4))-'Mini-Kayak'!Y74*SIN(RADIANS(Y$4))+Y$1,"") ->  | Y49: =IF('Mini-Kayak'!Y74<>"",('Mini-Kayak'!X74*SIN(RADIANS(Y$4))+'Mini-Kayak'!Y74*COS(RADIANS(Y$4))*Y$3)+Y$2,"") -> 
A50: 44 | B50: =IF('Mini-Kayak'!B75<>"",'Mini-Kayak'!B75*COS(RADIANS(E$4))-'Mini-Kayak'!C75*SIN(RADIANS(E$4))+E$1,"") ->  | C50: =IF('Mini-Kayak'!C75<>"",('Mini-Kayak'!B75*SIN(RADIANS(E$4))+'Mini-Kayak'!C75*COS(RADIANS(E$4))*E$3)+E$2,"") ->  | D50: =IF('Mini-Kayak'!D75<>"",'Mini-Kayak'!D75*COS(RADIANS(E$4))-'Mini-Kayak'!E75*SIN(RADIANS(E$4))+E$1,"") ->  | E50: =IF('Mini-Kayak'!E75<>"",('Mini-Kayak'!D75*SIN(RADIANS(E$4))+'Mini-Kayak'!E75*COS(RADIANS(E$4))*E$3)+E$2,"") ->  | G50: =IF('Mini-Kayak'!G75<>"",'Mini-Kayak'!G75*COS(RADIANS(J$4))-'Mini-Kayak'!H75*SIN(RADIANS(J$4))+J$1,"") ->  | H50: =IF('Mini-Kayak'!H75<>"",('Mini-Kayak'!G75*SIN(RADIANS(J$4))+'Mini-Kayak'!H75*COS(RADIANS(J$4))*J$3)+J$2,"") ->  | I50: =IF('Mini-Kayak'!I75<>"",'Mini-Kayak'!I75*COS(RADIANS(J$4))-'Mini-Kayak'!J75*SIN(RADIANS(J$4))+J$1,"") ->  | J50: =IF('Mini-Kayak'!J75<>"",('Mini-Kayak'!I75*SIN(RADIANS(J$4))+'Mini-Kayak'!J75*COS(RADIANS(J$4))*J$3)+J$2,"") ->  | L50: =IF('Mini-Kayak'!L75<>"",'Mini-Kayak'!L75*COS(RADIANS(O$4))-'Mini-Kayak'!M75*SIN(RADIANS(O$4))+O$1,"") ->  | M50: =IF('Mini-Kayak'!M75<>"",('Mini-Kayak'!L75*SIN(RADIANS(O$4))+'Mini-Kayak'!M75*COS(RADIANS(O$4))*O$3)+O$2,"") ->  | N50: =IF('Mini-Kayak'!N75<>"",'Mini-Kayak'!N75*COS(RADIANS(O$4))-'Mini-Kayak'!O75*SIN(RADIANS(O$4))+O$1,"") ->  | O50: =IF('Mini-Kayak'!O75<>"",('Mini-Kayak'!N75*SIN(RADIANS(O$4))+'Mini-Kayak'!O75*COS(RADIANS(O$4))*O$3)+O$2,"") ->  | Q50: =IF('Mini-Kayak'!L75<>"",'Mini-Kayak'!L75*COS(RADIANS(T$4))-'Mini-Kayak'!M75*SIN(RADIANS(T$4))+T$1,"") ->  | R50: =IF('Mini-Kayak'!M75<>"",('Mini-Kayak'!L75*SIN(RADIANS(T$4))+'Mini-Kayak'!M75*COS(RADIANS(T$4))*T$3)+T$2,"") ->  | S50: =IF('Mini-Kayak'!N75<>"",'Mini-Kayak'!N75*COS(RADIANS(T$4))-'Mini-Kayak'!O75*SIN(RADIANS(T$4))+T$1,"") ->  | T50: =IF('Mini-Kayak'!O75<>"",MAX(('Mini-Kayak'!N75*SIN(RADIANS(T$4))+'Mini-Kayak'!O75*COS(RADIANS(T$4))*T$3)+T$2,M50+3),"") ->  | V50: =IF('Mini-Kayak'!V75<>"",'Mini-Kayak'!V75*COS(RADIANS(Y$4))-'Mini-Kayak'!W75*SIN(RADIANS(Y$4))+Y$1,"") ->  | W50: =IF('Mini-Kayak'!W75<>"",('Mini-Kayak'!V75*SIN(RADIANS(Y$4))+'Mini-Kayak'!W75*COS(RADIANS(Y$4))*Y$3)+Y$2,"") ->  | X50: =IF('Mini-Kayak'!X75<>"",'Mini-Kayak'!X75*COS(RADIANS(Y$4))-'Mini-Kayak'!Y75*SIN(RADIANS(Y$4))+Y$1,"") ->  | Y50: =IF('Mini-Kayak'!Y75<>"",('Mini-Kayak'!X75*SIN(RADIANS(Y$4))+'Mini-Kayak'!Y75*COS(RADIANS(Y$4))*Y$3)+Y$2,"") -> 
A51: 45 | B51: =IF('Mini-Kayak'!B76<>"",'Mini-Kayak'!B76*COS(RADIANS(E$4))-'Mini-Kayak'!C76*SIN(RADIANS(E$4))+E$1,"") ->  | C51: =IF('Mini-Kayak'!C76<>"",('Mini-Kayak'!B76*SIN(RADIANS(E$4))+'Mini-Kayak'!C76*COS(RADIANS(E$4))*E$3)+E$2,"") ->  | D51: =IF('Mini-Kayak'!D76<>"",'Mini-Kayak'!D76*COS(RADIANS(E$4))-'Mini-Kayak'!E76*SIN(RADIANS(E$4))+E$1,"") ->  | E51: =IF('Mini-Kayak'!E76<>"",('Mini-Kayak'!D76*SIN(RADIANS(E$4))+'Mini-Kayak'!E76*COS(RADIANS(E$4))*E$3)+E$2,"") ->  | G51: =IF('Mini-Kayak'!G76<>"",'Mini-Kayak'!G76*COS(RADIANS(J$4))-'Mini-Kayak'!H76*SIN(RADIANS(J$4))+J$1,"") ->  | H51: =IF('Mini-Kayak'!H76<>"",('Mini-Kayak'!G76*SIN(RADIANS(J$4))+'Mini-Kayak'!H76*COS(RADIANS(J$4))*J$3)+J$2,"") ->  | I51: =IF('Mini-Kayak'!I76<>"",'Mini-Kayak'!I76*COS(RADIANS(J$4))-'Mini-Kayak'!J76*SIN(RADIANS(J$4))+J$1,"") ->  | J51: =IF('Mini-Kayak'!J76<>"",('Mini-Kayak'!I76*SIN(RADIANS(J$4))+'Mini-Kayak'!J76*COS(RADIANS(J$4))*J$3)+J$2,"") ->  | L51: =IF('Mini-Kayak'!L76<>"",'Mini-Kayak'!L76*COS(RADIANS(O$4))-'Mini-Kayak'!M76*SIN(RADIANS(O$4))+O$1,"") ->  | M51: =IF('Mini-Kayak'!M76<>"",('Mini-Kayak'!L76*SIN(RADIANS(O$4))+'Mini-Kayak'!M76*COS(RADIANS(O$4))*O$3)+O$2,"") ->  | N51: =IF('Mini-Kayak'!N76<>"",'Mini-Kayak'!N76*COS(RADIANS(O$4))-'Mini-Kayak'!O76*SIN(RADIANS(O$4))+O$1,"") ->  | O51: =IF('Mini-Kayak'!O76<>"",('Mini-Kayak'!N76*SIN(RADIANS(O$4))+'Mini-Kayak'!O76*COS(RADIANS(O$4))*O$3)+O$2,"") ->  | Q51: =IF('Mini-Kayak'!L76<>"",'Mini-Kayak'!L76*COS(RADIANS(T$4))-'Mini-Kayak'!M76*SIN(RADIANS(T$4))+T$1,"") ->  | R51: =IF('Mini-Kayak'!M76<>"",('Mini-Kayak'!L76*SIN(RADIANS(T$4))+'Mini-Kayak'!M76*COS(RADIANS(T$4))*T$3)+T$2,"") ->  | S51: =IF('Mini-Kayak'!N76<>"",'Mini-Kayak'!N76*COS(RADIANS(T$4))-'Mini-Kayak'!O76*SIN(RADIANS(T$4))+T$1,"") ->  | T51: =IF('Mini-Kayak'!O76<>"",MAX(('Mini-Kayak'!N76*SIN(RADIANS(T$4))+'Mini-Kayak'!O76*COS(RADIANS(T$4))*T$3)+T$2,M51+3),"") ->  | V51: =IF('Mini-Kayak'!V76<>"",'Mini-Kayak'!V76*COS(RADIANS(Y$4))-'Mini-Kayak'!W76*SIN(RADIANS(Y$4))+Y$1,"") ->  | W51: =IF('Mini-Kayak'!W76<>"",('Mini-Kayak'!V76*SIN(RADIANS(Y$4))+'Mini-Kayak'!W76*COS(RADIANS(Y$4))*Y$3)+Y$2,"") ->  | X51: =IF('Mini-Kayak'!X76<>"",'Mini-Kayak'!X76*COS(RADIANS(Y$4))-'Mini-Kayak'!Y76*SIN(RADIANS(Y$4))+Y$1,"") ->  | Y51: =IF('Mini-Kayak'!Y76<>"",('Mini-Kayak'!X76*SIN(RADIANS(Y$4))+'Mini-Kayak'!Y76*COS(RADIANS(Y$4))*Y$3)+Y$2,"") -> 
A52: 46 | B52: =IF('Mini-Kayak'!B77<>"",'Mini-Kayak'!B77*COS(RADIANS(E$4))-'Mini-Kayak'!C77*SIN(RADIANS(E$4))+E$1,"") ->  | C52: =IF('Mini-Kayak'!C77<>"",('Mini-Kayak'!B77*SIN(RADIANS(E$4))+'Mini-Kayak'!C77*COS(RADIANS(E$4))*E$3)+E$2,"") ->  | D52: =IF('Mini-Kayak'!D77<>"",'Mini-Kayak'!D77*COS(RADIANS(E$4))-'Mini-Kayak'!E77*SIN(RADIANS(E$4))+E$1,"") ->  | E52: =IF('Mini-Kayak'!E77<>"",('Mini-Kayak'!D77*SIN(RADIANS(E$4))+'Mini-Kayak'!E77*COS(RADIANS(E$4))*E$3)+E$2,"") ->  | G52: =IF('Mini-Kayak'!G77<>"",'Mini-Kayak'!G77*COS(RADIANS(J$4))-'Mini-Kayak'!H77*SIN(RADIANS(J$4))+J$1,"") ->  | H52: =IF('Mini-Kayak'!H77<>"",('Mini-Kayak'!G77*SIN(RADIANS(J$4))+'Mini-Kayak'!H77*COS(RADIANS(J$4))*J$3)+J$2,"") ->  | I52: =IF('Mini-Kayak'!I77<>"",'Mini-Kayak'!I77*COS(RADIANS(J$4))-'Mini-Kayak'!J77*SIN(RADIANS(J$4))+J$1,"") ->  | J52: =IF('Mini-Kayak'!J77<>"",('Mini-Kayak'!I77*SIN(RADIANS(J$4))+'Mini-Kayak'!J77*COS(RADIANS(J$4))*J$3)+J$2,"") ->  | L52: =IF('Mini-Kayak'!L77<>"",'Mini-Kayak'!L77*COS(RADIANS(O$4))-'Mini-Kayak'!M77*SIN(RADIANS(O$4))+O$1,"") ->  | M52: =IF('Mini-Kayak'!M77<>"",('Mini-Kayak'!L77*SIN(RADIANS(O$4))+'Mini-Kayak'!M77*COS(RADIANS(O$4))*O$3)+O$2,"") ->  | N52: =IF('Mini-Kayak'!N77<>"",'Mini-Kayak'!N77*COS(RADIANS(O$4))-'Mini-Kayak'!O77*SIN(RADIANS(O$4))+O$1,"") ->  | O52: =IF('Mini-Kayak'!O77<>"",('Mini-Kayak'!N77*SIN(RADIANS(O$4))+'Mini-Kayak'!O77*COS(RADIANS(O$4))*O$3)+O$2,"") ->  | Q52: =IF('Mini-Kayak'!L77<>"",'Mini-Kayak'!L77*COS(RADIANS(T$4))-'Mini-Kayak'!M77*SIN(RADIANS(T$4))+T$1,"") ->  | R52: =IF('Mini-Kayak'!M77<>"",('Mini-Kayak'!L77*SIN(RADIANS(T$4))+'Mini-Kayak'!M77*COS(RADIANS(T$4))*T$3)+T$2,"") ->  | S52: =IF('Mini-Kayak'!N77<>"",'Mini-Kayak'!N77*COS(RADIANS(T$4))-'Mini-Kayak'!O77*SIN(RADIANS(T$4))+T$1,"") ->  | T52: =IF('Mini-Kayak'!O77<>"",MAX(('Mini-Kayak'!N77*SIN(RADIANS(T$4))+'Mini-Kayak'!O77*COS(RADIANS(T$4))*T$3)+T$2,M52+3),"") ->  | V52: =IF('Mini-Kayak'!V77<>"",'Mini-Kayak'!V77*COS(RADIANS(Y$4))-'Mini-Kayak'!W77*SIN(RADIANS(Y$4))+Y$1,"") ->  | W52: =IF('Mini-Kayak'!W77<>"",('Mini-Kayak'!V77*SIN(RADIANS(Y$4))+'Mini-Kayak'!W77*COS(RADIANS(Y$4))*Y$3)+Y$2,"") ->  | X52: =IF('Mini-Kayak'!X77<>"",'Mini-Kayak'!X77*COS(RADIANS(Y$4))-'Mini-Kayak'!Y77*SIN(RADIANS(Y$4))+Y$1,"") ->  | Y52: =IF('Mini-Kayak'!Y77<>"",('Mini-Kayak'!X77*SIN(RADIANS(Y$4))+'Mini-Kayak'!Y77*COS(RADIANS(Y$4))*Y$3)+Y$2,"") -> 
A53: 47 | B53: =IF('Mini-Kayak'!B78<>"",'Mini-Kayak'!B78*COS(RADIANS(E$4))-'Mini-Kayak'!C78*SIN(RADIANS(E$4))+E$1,"") ->  | C53: =IF('Mini-Kayak'!C78<>"",('Mini-Kayak'!B78*SIN(RADIANS(E$4))+'Mini-Kayak'!C78*COS(RADIANS(E$4))*E$3)+E$2,"") ->  | D53: =IF('Mini-Kayak'!D78<>"",'Mini-Kayak'!D78*COS(RADIANS(E$4))-'Mini-Kayak'!E78*SIN(RADIANS(E$4))+E$1,"") ->  | E53: =IF('Mini-Kayak'!E78<>"",('Mini-Kayak'!D78*SIN(RADIANS(E$4))+'Mini-Kayak'!E78*COS(RADIANS(E$4))*E$3)+E$2,"") ->  | G53: =IF('Mini-Kayak'!G78<>"",'Mini-Kayak'!G78*COS(RADIANS(J$4))-'Mini-Kayak'!H78*SIN(RADIANS(J$4))+J$1,"") ->  | H53: =IF('Mini-Kayak'!H78<>"",('Mini-Kayak'!G78*SIN(RADIANS(J$4))+'Mini-Kayak'!H78*COS(RADIANS(J$4))*J$3)+J$2,"") ->  | I53: =IF('Mini-Kayak'!I78<>"",'Mini-Kayak'!I78*COS(RADIANS(J$4))-'Mini-Kayak'!J78*SIN(RADIANS(J$4))+J$1,"") ->  | J53: =IF('Mini-Kayak'!J78<>"",('Mini-Kayak'!I78*SIN(RADIANS(J$4))+'Mini-Kayak'!J78*COS(RADIANS(J$4))*J$3)+J$2,"") ->  | L53: =IF('Mini-Kayak'!L78<>"",'Mini-Kayak'!L78*COS(RADIANS(O$4))-'Mini-Kayak'!M78*SIN(RADIANS(O$4))+O$1,"") ->  | M53: =IF('Mini-Kayak'!M78<>"",('Mini-Kayak'!L78*SIN(RADIANS(O$4))+'Mini-Kayak'!M78*COS(RADIANS(O$4))*O$3)+O$2,"") ->  | N53: =IF('Mini-Kayak'!N78<>"",'Mini-Kayak'!N78*COS(RADIANS(O$4))-'Mini-Kayak'!O78*SIN(RADIANS(O$4))+O$1,"") ->  | O53: =IF('Mini-Kayak'!O78<>"",('Mini-Kayak'!N78*SIN(RADIANS(O$4))+'Mini-Kayak'!O78*COS(RADIANS(O$4))*O$3)+O$2,"") ->  | Q53: =IF('Mini-Kayak'!L78<>"",'Mini-Kayak'!L78*COS(RADIANS(T$4))-'Mini-Kayak'!M78*SIN(RADIANS(T$4))+T$1,"") ->  | R53: =IF('Mini-Kayak'!M78<>"",('Mini-Kayak'!L78*SIN(RADIANS(T$4))+'Mini-Kayak'!M78*COS(RADIANS(T$4))*T$3)+T$2,"") ->  | S53: =IF('Mini-Kayak'!N78<>"",'Mini-Kayak'!N78*COS(RADIANS(T$4))-'Mini-Kayak'!O78*SIN(RADIANS(T$4))+T$1,"") ->  | T53: =IF('Mini-Kayak'!O78<>"",MAX(('Mini-Kayak'!N78*SIN(RADIANS(T$4))+'Mini-Kayak'!O78*COS(RADIANS(T$4))*T$3)+T$2,M53+3),"") ->  | V53: =IF('Mini-Kayak'!V78<>"",'Mini-Kayak'!V78*COS(RADIANS(Y$4))-'Mini-Kayak'!W78*SIN(RADIANS(Y$4))+Y$1,"") ->  | W53: =IF('Mini-Kayak'!W78<>"",('Mini-Kayak'!V78*SIN(RADIANS(Y$4))+'Mini-Kayak'!W78*COS(RADIANS(Y$4))*Y$3)+Y$2,"") ->  | X53: =IF('Mini-Kayak'!X78<>"",'Mini-Kayak'!X78*COS(RADIANS(Y$4))-'Mini-Kayak'!Y78*SIN(RADIANS(Y$4))+Y$1,"") ->  | Y53: =IF('Mini-Kayak'!Y78<>"",('Mini-Kayak'!X78*SIN(RADIANS(Y$4))+'Mini-Kayak'!Y78*COS(RADIANS(Y$4))*Y$3)+Y$2,"") -> 
A54: 48 | B54: =IF('Mini-Kayak'!B79<>"",'Mini-Kayak'!B79*COS(RADIANS(E$4))-'Mini-Kayak'!C79*SIN(RADIANS(E$4))+E$1,"") ->  | C54: =IF('Mini-Kayak'!C79<>"",('Mini-Kayak'!B79*SIN(RADIANS(E$4))+'Mini-Kayak'!C79*COS(RADIANS(E$4))*E$3)+E$2,"") ->  | D54: =IF('Mini-Kayak'!D79<>"",'Mini-Kayak'!D79*COS(RADIANS(E$4))-'Mini-Kayak'!E79*SIN(RADIANS(E$4))+E$1,"") ->  | E54: =IF('Mini-Kayak'!E79<>"",('Mini-Kayak'!D79*SIN(RADIANS(E$4))+'Mini-Kayak'!E79*COS(RADIANS(E$4))*E$3)+E$2,"") ->  | G54: =IF('Mini-Kayak'!G79<>"",'Mini-Kayak'!G79*COS(RADIANS(J$4))-'Mini-Kayak'!H79*SIN(RADIANS(J$4))+J$1,"") ->  | H54: =IF('Mini-Kayak'!H79<>"",('Mini-Kayak'!G79*SIN(RADIANS(J$4))+'Mini-Kayak'!H79*COS(RADIANS(J$4))*J$3)+J$2,"") ->  | I54: =IF('Mini-Kayak'!I79<>"",'Mini-Kayak'!I79*COS(RADIANS(J$4))-'Mini-Kayak'!J79*SIN(RADIANS(J$4))+J$1,"") ->  | J54: =IF('Mini-Kayak'!J79<>"",('Mini-Kayak'!I79*SIN(RADIANS(J$4))+'Mini-Kayak'!J79*COS(RADIANS(J$4))*J$3)+J$2,"") ->  | L54: =IF('Mini-Kayak'!L79<>"",'Mini-Kayak'!L79*COS(RADIANS(O$4))-'Mini-Kayak'!M79*SIN(RADIANS(O$4))+O$1,"") ->  | M54: =IF('Mini-Kayak'!M79<>"",('Mini-Kayak'!L79*SIN(RADIANS(O$4))+'Mini-Kayak'!M79*COS(RADIANS(O$4))*O$3)+O$2,"") ->  | N54: =IF('Mini-Kayak'!N79<>"",'Mini-Kayak'!N79*COS(RADIANS(O$4))-'Mini-Kayak'!O79*SIN(RADIANS(O$4))+O$1,"") ->  | O54: =IF('Mini-Kayak'!O79<>"",('Mini-Kayak'!N79*SIN(RADIANS(O$4))+'Mini-Kayak'!O79*COS(RADIANS(O$4))*O$3)+O$2,"") ->  | Q54: =IF('Mini-Kayak'!L79<>"",'Mini-Kayak'!L79*COS(RADIANS(T$4))-'Mini-Kayak'!M79*SIN(RADIANS(T$4))+T$1,"") ->  | R54: =IF('Mini-Kayak'!M79<>"",('Mini-Kayak'!L79*SIN(RADIANS(T$4))+'Mini-Kayak'!M79*COS(RADIANS(T$4))*T$3)+T$2,"") ->  | S54: =IF('Mini-Kayak'!N79<>"",'Mini-Kayak'!N79*COS(RADIANS(T$4))-'Mini-Kayak'!O79*SIN(RADIANS(T$4))+T$1,"") ->  | T54: =IF('Mini-Kayak'!O79<>"",MAX(('Mini-Kayak'!N79*SIN(RADIANS(T$4))+'Mini-Kayak'!O79*COS(RADIANS(T$4))*T$3)+T$2,M54+3),"") ->  | V54: =IF('Mini-Kayak'!V79<>"",'Mini-Kayak'!V79*COS(RADIANS(Y$4))-'Mini-Kayak'!W79*SIN(RADIANS(Y$4))+Y$1,"") ->  | W54: =IF('Mini-Kayak'!W79<>"",('Mini-Kayak'!V79*SIN(RADIANS(Y$4))+'Mini-Kayak'!W79*COS(RADIANS(Y$4))*Y$3)+Y$2,"") ->  | X54: =IF('Mini-Kayak'!X79<>"",'Mini-Kayak'!X79*COS(RADIANS(Y$4))-'Mini-Kayak'!Y79*SIN(RADIANS(Y$4))+Y$1,"") ->  | Y54: =IF('Mini-Kayak'!Y79<>"",('Mini-Kayak'!X79*SIN(RADIANS(Y$4))+'Mini-Kayak'!Y79*COS(RADIANS(Y$4))*Y$3)+Y$2,"") -> 
A55: 49 | B55: =IF('Mini-Kayak'!B80<>"",'Mini-Kayak'!B80*COS(RADIANS(E$4))-'Mini-Kayak'!C80*SIN(RADIANS(E$4))+E$1,"") ->  | C55: =IF('Mini-Kayak'!C80<>"",('Mini-Kayak'!B80*SIN(RADIANS(E$4))+'Mini-Kayak'!C80*COS(RADIANS(E$4))*E$3)+E$2,"") ->  | D55: =IF('Mini-Kayak'!D80<>"",'Mini-Kayak'!D80*COS(RADIANS(E$4))-'Mini-Kayak'!E80*SIN(RADIANS(E$4))+E$1,"") ->  | E55: =IF('Mini-Kayak'!E80<>"",('Mini-Kayak'!D80*SIN(RADIANS(E$4))+'Mini-Kayak'!E80*COS(RADIANS(E$4))*E$3)+E$2,"") ->  | G55: =IF('Mini-Kayak'!G80<>"",'Mini-Kayak'!G80*COS(RADIANS(J$4))-'Mini-Kayak'!H80*SIN(RADIANS(J$4))+J$1,"") ->  | H55: =IF('Mini-Kayak'!H80<>"",('Mini-Kayak'!G80*SIN(RADIANS(J$4))+'Mini-Kayak'!H80*COS(RADIANS(J$4))*J$3)+J$2,"") ->  | I55: =IF('Mini-Kayak'!I80<>"",'Mini-Kayak'!I80*COS(RADIANS(J$4))-'Mini-Kayak'!J80*SIN(RADIANS(J$4))+J$1,"") ->  | J55: =IF('Mini-Kayak'!J80<>"",('Mini-Kayak'!I80*SIN(RADIANS(J$4))+'Mini-Kayak'!J80*COS(RADIANS(J$4))*J$3)+J$2,"") ->  | L55: =IF('Mini-Kayak'!L80<>"",'Mini-Kayak'!L80*COS(RADIANS(O$4))-'Mini-Kayak'!M80*SIN(RADIANS(O$4))+O$1,"") ->  | M55: =IF('Mini-Kayak'!M80<>"",('Mini-Kayak'!L80*SIN(RADIANS(O$4))+'Mini-Kayak'!M80*COS(RADIANS(O$4))*O$3)+O$2,"") ->  | N55: =IF('Mini-Kayak'!N80<>"",'Mini-Kayak'!N80*COS(RADIANS(O$4))-'Mini-Kayak'!O80*SIN(RADIANS(O$4))+O$1,"") ->  | O55: =IF('Mini-Kayak'!O80<>"",('Mini-Kayak'!N80*SIN(RADIANS(O$4))+'Mini-Kayak'!O80*COS(RADIANS(O$4))*O$3)+O$2,"") ->  | Q55: =IF('Mini-Kayak'!L80<>"",'Mini-Kayak'!L80*COS(RADIANS(T$4))-'Mini-Kayak'!M80*SIN(RADIANS(T$4))+T$1,"") ->  | R55: =IF('Mini-Kayak'!M80<>"",('Mini-Kayak'!L80*SIN(RADIANS(T$4))+'Mini-Kayak'!M80*COS(RADIANS(T$4))*T$3)+T$2,"") ->  | S55: =IF('Mini-Kayak'!N80<>"",'Mini-Kayak'!N80*COS(RADIANS(T$4))-'Mini-Kayak'!O80*SIN(RADIANS(T$4))+T$1,"") ->  | T55: =IF('Mini-Kayak'!O80<>"",MAX(('Mini-Kayak'!N80*SIN(RADIANS(T$4))+'Mini-Kayak'!O80*COS(RADIANS(T$4))*T$3)+T$2,M55+3),"") ->  | V55: =IF('Mini-Kayak'!V80<>"",'Mini-Kayak'!V80*COS(RADIANS(Y$4))-'Mini-Kayak'!W80*SIN(RADIANS(Y$4))+Y$1,"") ->  | W55: =IF('Mini-Kayak'!W80<>"",('Mini-Kayak'!V80*SIN(RADIANS(Y$4))+'Mini-Kayak'!W80*COS(RADIANS(Y$4))*Y$3)+Y$2,"") ->  | X55: =IF('Mini-Kayak'!X80<>"",'Mini-Kayak'!X80*COS(RADIANS(Y$4))-'Mini-Kayak'!Y80*SIN(RADIANS(Y$4))+Y$1,"") ->  | Y55: =IF('Mini-Kayak'!Y80<>"",('Mini-Kayak'!X80*SIN(RADIANS(Y$4))+'Mini-Kayak'!Y80*COS(RADIANS(Y$4))*Y$3)+Y$2,"") -> 
A56: 50 | B56: =IF('Mini-Kayak'!B81<>"",'Mini-Kayak'!B81*COS(RADIANS(E$4))-'Mini-Kayak'!C81*SIN(RADIANS(E$4))+E$1,"") ->  | C56: =IF('Mini-Kayak'!C81<>"",('Mini-Kayak'!B81*SIN(RADIANS(E$4))+'Mini-Kayak'!C81*COS(RADIANS(E$4))*E$3)+E$2,"") ->  | D56: =IF('Mini-Kayak'!D81<>"",'Mini-Kayak'!D81*COS(RADIANS(E$4))-'Mini-Kayak'!E81*SIN(RADIANS(E$4))+E$1,"") ->  | E56: =IF('Mini-Kayak'!E81<>"",('Mini-Kayak'!D81*SIN(RADIANS(E$4))+'Mini-Kayak'!E81*COS(RADIANS(E$4))*E$3)+E$2,"") ->  | G56: =IF('Mini-Kayak'!G81<>"",'Mini-Kayak'!G81*COS(RADIANS(J$4))-'Mini-Kayak'!H81*SIN(RADIANS(J$4))+J$1,"") ->  | H56: =IF('Mini-Kayak'!H81<>"",('Mini-Kayak'!G81*SIN(RADIANS(J$4))+'Mini-Kayak'!H81*COS(RADIANS(J$4))*J$3)+J$2,"") ->  | I56: =IF('Mini-Kayak'!I81<>"",'Mini-Kayak'!I81*COS(RADIANS(J$4))-'Mini-Kayak'!J81*SIN(RADIANS(J$4))+J$1,"") ->  | J56: =IF('Mini-Kayak'!J81<>"",('Mini-Kayak'!I81*SIN(RADIANS(J$4))+'Mini-Kayak'!J81*COS(RADIANS(J$4))*J$3)+J$2,"") ->  | L56: =IF('Mini-Kayak'!L81<>"",'Mini-Kayak'!L81*COS(RADIANS(O$4))-'Mini-Kayak'!M81*SIN(RADIANS(O$4))+O$1,"") ->  | M56: =IF('Mini-Kayak'!M81<>"",('Mini-Kayak'!L81*SIN(RADIANS(O$4))+'Mini-Kayak'!M81*COS(RADIANS(O$4))*O$3)+O$2,"") ->  | N56: =IF('Mini-Kayak'!N81<>"",'Mini-Kayak'!N81*COS(RADIANS(O$4))-'Mini-Kayak'!O81*SIN(RADIANS(O$4))+O$1,"") ->  | O56: =IF('Mini-Kayak'!O81<>"",('Mini-Kayak'!N81*SIN(RADIANS(O$4))+'Mini-Kayak'!O81*COS(RADIANS(O$4))*O$3)+O$2,"") ->  | Q56: =IF('Mini-Kayak'!L81<>"",'Mini-Kayak'!L81*COS(RADIANS(T$4))-'Mini-Kayak'!M81*SIN(RADIANS(T$4))+T$1,"") ->  | R56: =IF('Mini-Kayak'!M81<>"",('Mini-Kayak'!L81*SIN(RADIANS(T$4))+'Mini-Kayak'!M81*COS(RADIANS(T$4))*T$3)+T$2,"") ->  | S56: =IF('Mini-Kayak'!N81<>"",'Mini-Kayak'!N81*COS(RADIANS(T$4))-'Mini-Kayak'!O81*SIN(RADIANS(T$4))+T$1,"") ->  | T56: =IF('Mini-Kayak'!O81<>"",MAX(('Mini-Kayak'!N81*SIN(RADIANS(T$4))+'Mini-Kayak'!O81*COS(RADIANS(T$4))*T$3)+T$2,M56+3),"") ->  | V56: =IF('Mini-Kayak'!V81<>"",'Mini-Kayak'!V81*COS(RADIANS(Y$4))-'Mini-Kayak'!W81*SIN(RADIANS(Y$4))+Y$1,"") ->  | W56: =IF('Mini-Kayak'!W81<>"",('Mini-Kayak'!V81*SIN(RADIANS(Y$4))+'Mini-Kayak'!W81*COS(RADIANS(Y$4))*Y$3)+Y$2,"") ->  | X56: =IF('Mini-Kayak'!X81<>"",'Mini-Kayak'!X81*COS(RADIANS(Y$4))-'Mini-Kayak'!Y81*SIN(RADIANS(Y$4))+Y$1,"") ->  | Y56: =IF('Mini-Kayak'!Y81<>"",('Mini-Kayak'!X81*SIN(RADIANS(Y$4))+'Mini-Kayak'!Y81*COS(RADIANS(Y$4))*Y$3)+Y$2,"") -> 
A57: 51 | B57: =IF('Mini-Kayak'!B82<>"",'Mini-Kayak'!B82*COS(RADIANS(E$4))-'Mini-Kayak'!C82*SIN(RADIANS(E$4))+E$1,"") ->  | C57: =IF('Mini-Kayak'!C82<>"",('Mini-Kayak'!B82*SIN(RADIANS(E$4))+'Mini-Kayak'!C82*COS(RADIANS(E$4))*E$3)+E$2,"") ->  | D57: =IF('Mini-Kayak'!D82<>"",'Mini-Kayak'!D82*COS(RADIANS(E$4))-'Mini-Kayak'!E82*SIN(RADIANS(E$4))+E$1,"") ->  | E57: =IF('Mini-Kayak'!E82<>"",('Mini-Kayak'!D82*SIN(RADIANS(E$4))+'Mini-Kayak'!E82*COS(RADIANS(E$4))*E$3)+E$2,"") ->  | G57: =IF('Mini-Kayak'!G82<>"",'Mini-Kayak'!G82*COS(RADIANS(J$4))-'Mini-Kayak'!H82*SIN(RADIANS(J$4))+J$1,"") ->  | H57: =IF('Mini-Kayak'!H82<>"",('Mini-Kayak'!G82*SIN(RADIANS(J$4))+'Mini-Kayak'!H82*COS(RADIANS(J$4))*J$3)+J$2,"") ->  | I57: =IF('Mini-Kayak'!I82<>"",'Mini-Kayak'!I82*COS(RADIANS(J$4))-'Mini-Kayak'!J82*SIN(RADIANS(J$4))+J$1,"") ->  | J57: =IF('Mini-Kayak'!J82<>"",('Mini-Kayak'!I82*SIN(RADIANS(J$4))+'Mini-Kayak'!J82*COS(RADIANS(J$4))*J$3)+J$2,"") ->  | L57: =IF('Mini-Kayak'!L82<>"",'Mini-Kayak'!L82*COS(RADIANS(O$4))-'Mini-Kayak'!M82*SIN(RADIANS(O$4))+O$1,"") ->  | M57: =IF('Mini-Kayak'!M82<>"",('Mini-Kayak'!L82*SIN(RADIANS(O$4))+'Mini-Kayak'!M82*COS(RADIANS(O$4))*O$3)+O$2,"") ->  | N57: =IF('Mini-Kayak'!N82<>"",'Mini-Kayak'!N82*COS(RADIANS(O$4))-'Mini-Kayak'!O82*SIN(RADIANS(O$4))+O$1,"") ->  | O57: =IF('Mini-Kayak'!O82<>"",('Mini-Kayak'!N82*SIN(RADIANS(O$4))+'Mini-Kayak'!O82*COS(RADIANS(O$4))*O$3)+O$2,"") ->  | Q57: =IF('Mini-Kayak'!L82<>"",'Mini-Kayak'!L82*COS(RADIANS(T$4))-'Mini-Kayak'!M82*SIN(RADIANS(T$4))+T$1,"") ->  | R57: =IF('Mini-Kayak'!M82<>"",('Mini-Kayak'!L82*SIN(RADIANS(T$4))+'Mini-Kayak'!M82*COS(RADIANS(T$4))*T$3)+T$2,"") ->  | S57: =IF('Mini-Kayak'!N82<>"",'Mini-Kayak'!N82*COS(RADIANS(T$4))-'Mini-Kayak'!O82*SIN(RADIANS(T$4))+T$1,"") ->  | T57: =IF('Mini-Kayak'!O82<>"",MAX(('Mini-Kayak'!N82*SIN(RADIANS(T$4))+'Mini-Kayak'!O82*COS(RADIANS(T$4))*T$3)+T$2,M57+3),"") ->  | V57: =IF('Mini-Kayak'!V82<>"",'Mini-Kayak'!V82*COS(RADIANS(Y$4))-'Mini-Kayak'!W82*SIN(RADIANS(Y$4))+Y$1,"") ->  | W57: =IF('Mini-Kayak'!W82<>"",('Mini-Kayak'!V82*SIN(RADIANS(Y$4))+'Mini-Kayak'!W82*COS(RADIANS(Y$4))*Y$3)+Y$2,"") ->  | X57: =IF('Mini-Kayak'!X82<>"",'Mini-Kayak'!X82*COS(RADIANS(Y$4))-'Mini-Kayak'!Y82*SIN(RADIANS(Y$4))+Y$1,"") ->  | Y57: =IF('Mini-Kayak'!Y82<>"",('Mini-Kayak'!X82*SIN(RADIANS(Y$4))+'Mini-Kayak'!Y82*COS(RADIANS(Y$4))*Y$3)+Y$2,"") -> 
A58: 52 | B58: =IF('Mini-Kayak'!B83<>"",'Mini-Kayak'!B83*COS(RADIANS(E$4))-'Mini-Kayak'!C83*SIN(RADIANS(E$4))+E$1,"") ->  | C58: =IF('Mini-Kayak'!C83<>"",('Mini-Kayak'!B83*SIN(RADIANS(E$4))+'Mini-Kayak'!C83*COS(RADIANS(E$4))*E$3)+E$2,"") ->  | D58: =IF('Mini-Kayak'!D83<>"",'Mini-Kayak'!D83*COS(RADIANS(E$4))-'Mini-Kayak'!E83*SIN(RADIANS(E$4))+E$1,"") ->  | E58: =IF('Mini-Kayak'!E83<>"",('Mini-Kayak'!D83*SIN(RADIANS(E$4))+'Mini-Kayak'!E83*COS(RADIANS(E$4))*E$3)+E$2,"") ->  | G58: =IF('Mini-Kayak'!G83<>"",'Mini-Kayak'!G83*COS(RADIANS(J$4))-'Mini-Kayak'!H83*SIN(RADIANS(J$4))+J$1,"") ->  | H58: =IF('Mini-Kayak'!H83<>"",('Mini-Kayak'!G83*SIN(RADIANS(J$4))+'Mini-Kayak'!H83*COS(RADIANS(J$4))*J$3)+J$2,"") ->  | I58: =IF('Mini-Kayak'!I83<>"",'Mini-Kayak'!I83*COS(RADIANS(J$4))-'Mini-Kayak'!J83*SIN(RADIANS(J$4))+J$1,"") ->  | J58: =IF('Mini-Kayak'!J83<>"",('Mini-Kayak'!I83*SIN(RADIANS(J$4))+'Mini-Kayak'!J83*COS(RADIANS(J$4))*J$3)+J$2,"") ->  | L58: =IF('Mini-Kayak'!L83<>"",'Mini-Kayak'!L83*COS(RADIANS(O$4))-'Mini-Kayak'!M83*SIN(RADIANS(O$4))+O$1,"") ->  | M58: =IF('Mini-Kayak'!M83<>"",('Mini-Kayak'!L83*SIN(RADIANS(O$4))+'Mini-Kayak'!M83*COS(RADIANS(O$4))*O$3)+O$2,"") ->  | N58: =IF('Mini-Kayak'!N83<>"",'Mini-Kayak'!N83*COS(RADIANS(O$4))-'Mini-Kayak'!O83*SIN(RADIANS(O$4))+O$1,"") ->  | O58: =IF('Mini-Kayak'!O83<>"",('Mini-Kayak'!N83*SIN(RADIANS(O$4))+'Mini-Kayak'!O83*COS(RADIANS(O$4))*O$3)+O$2,"") ->  | Q58: =IF('Mini-Kayak'!L83<>"",'Mini-Kayak'!L83*COS(RADIANS(T$4))-'Mini-Kayak'!M83*SIN(RADIANS(T$4))+T$1,"") ->  | R58: =IF('Mini-Kayak'!M83<>"",('Mini-Kayak'!L83*SIN(RADIANS(T$4))+'Mini-Kayak'!M83*COS(RADIANS(T$4))*T$3)+T$2,"") ->  | S58: =IF('Mini-Kayak'!N83<>"",'Mini-Kayak'!N83*COS(RADIANS(T$4))-'Mini-Kayak'!O83*SIN(RADIANS(T$4))+T$1,"") ->  | T58: =IF('Mini-Kayak'!O83<>"",MAX(('Mini-Kayak'!N83*SIN(RADIANS(T$4))+'Mini-Kayak'!O83*COS(RADIANS(T$4))*T$3)+T$2,M58+3),"") ->  | V58: =IF('Mini-Kayak'!V83<>"",'Mini-Kayak'!V83*COS(RADIANS(Y$4))-'Mini-Kayak'!W83*SIN(RADIANS(Y$4))+Y$1,"") ->  | W58: =IF('Mini-Kayak'!W83<>"",('Mini-Kayak'!V83*SIN(RADIANS(Y$4))+'Mini-Kayak'!W83*COS(RADIANS(Y$4))*Y$3)+Y$2,"") ->  | X58: =IF('Mini-Kayak'!X83<>"",'Mini-Kayak'!X83*COS(RADIANS(Y$4))-'Mini-Kayak'!Y83*SIN(RADIANS(Y$4))+Y$1,"") ->  | Y58: =IF('Mini-Kayak'!Y83<>"",('Mini-Kayak'!X83*SIN(RADIANS(Y$4))+'Mini-Kayak'!Y83*COS(RADIANS(Y$4))*Y$3)+Y$2,"") -> 
A59: 53 | B59: =IF('Mini-Kayak'!B84<>"",'Mini-Kayak'!B84*COS(RADIANS(E$4))-'Mini-Kayak'!C84*SIN(RADIANS(E$4))+E$1,"") ->  | C59: =IF('Mini-Kayak'!C84<>"",('Mini-Kayak'!B84*SIN(RADIANS(E$4))+'Mini-Kayak'!C84*COS(RADIANS(E$4))*E$3)+E$2,"") ->  | D59: =IF('Mini-Kayak'!D84<>"",'Mini-Kayak'!D84*COS(RADIANS(E$4))-'Mini-Kayak'!E84*SIN(RADIANS(E$4))+E$1,"") ->  | E59: =IF('Mini-Kayak'!E84<>"",('Mini-Kayak'!D84*SIN(RADIANS(E$4))+'Mini-Kayak'!E84*COS(RADIANS(E$4))*E$3)+E$2,"") ->  | G59: =IF('Mini-Kayak'!G84<>"",'Mini-Kayak'!G84*COS(RADIANS(J$4))-'Mini-Kayak'!H84*SIN(RADIANS(J$4))+J$1,"") ->  | H59: =IF('Mini-Kayak'!H84<>"",('Mini-Kayak'!G84*SIN(RADIANS(J$4))+'Mini-Kayak'!H84*COS(RADIANS(J$4))*J$3)+J$2,"") ->  | I59: =IF('Mini-Kayak'!I84<>"",'Mini-Kayak'!I84*COS(RADIANS(J$4))-'Mini-Kayak'!J84*SIN(RADIANS(J$4))+J$1,"") ->  | J59: =IF('Mini-Kayak'!J84<>"",('Mini-Kayak'!I84*SIN(RADIANS(J$4))+'Mini-Kayak'!J84*COS(RADIANS(J$4))*J$3)+J$2,"") ->  | L59: =IF('Mini-Kayak'!L84<>"",'Mini-Kayak'!L84*COS(RADIANS(O$4))-'Mini-Kayak'!M84*SIN(RADIANS(O$4))+O$1,"") ->  | M59: =IF('Mini-Kayak'!M84<>"",('Mini-Kayak'!L84*SIN(RADIANS(O$4))+'Mini-Kayak'!M84*COS(RADIANS(O$4))*O$3)+O$2,"") ->  | N59: =IF('Mini-Kayak'!N84<>"",'Mini-Kayak'!N84*COS(RADIANS(O$4))-'Mini-Kayak'!O84*SIN(RADIANS(O$4))+O$1,"") ->  | O59: =IF('Mini-Kayak'!O84<>"",('Mini-Kayak'!N84*SIN(RADIANS(O$4))+'Mini-Kayak'!O84*COS(RADIANS(O$4))*O$3)+O$2,"") ->  | Q59: =IF('Mini-Kayak'!L84<>"",'Mini-Kayak'!L84*COS(RADIANS(T$4))-'Mini-Kayak'!M84*SIN(RADIANS(T$4))+T$1,"") ->  | R59: =IF('Mini-Kayak'!M84<>"",('Mini-Kayak'!L84*SIN(RADIANS(T$4))+'Mini-Kayak'!M84*COS(RADIANS(T$4))*T$3)+T$2,"") ->  | S59: =IF('Mini-Kayak'!N84<>"",'Mini-Kayak'!N84*COS(RADIANS(T$4))-'Mini-Kayak'!O84*SIN(RADIANS(T$4))+T$1,"") ->  | T59: =IF('Mini-Kayak'!O84<>"",MAX(('Mini-Kayak'!N84*SIN(RADIANS(T$4))+'Mini-Kayak'!O84*COS(RADIANS(T$4))*T$3)+T$2,M59+3),"") ->  | V59: =IF('Mini-Kayak'!V84<>"",'Mini-Kayak'!V84*COS(RADIANS(Y$4))-'Mini-Kayak'!W84*SIN(RADIANS(Y$4))+Y$1,"") ->  | W59: =IF('Mini-Kayak'!W84<>"",('Mini-Kayak'!V84*SIN(RADIANS(Y$4))+'Mini-Kayak'!W84*COS(RADIANS(Y$4))*Y$3)+Y$2,"") ->  | X59: =IF('Mini-Kayak'!X84<>"",'Mini-Kayak'!X84*COS(RADIANS(Y$4))-'Mini-Kayak'!Y84*SIN(RADIANS(Y$4))+Y$1,"") ->  | Y59: =IF('Mini-Kayak'!Y84<>"",('Mini-Kayak'!X84*SIN(RADIANS(Y$4))+'Mini-Kayak'!Y84*COS(RADIANS(Y$4))*Y$3)+Y$2,"") -> 
A60: 54 | B60: =IF('Mini-Kayak'!B85<>"",'Mini-Kayak'!B85*COS(RADIANS(E$4))-'Mini-Kayak'!C85*SIN(RADIANS(E$4))+E$1,"") ->  | C60: =IF('Mini-Kayak'!C85<>"",('Mini-Kayak'!B85*SIN(RADIANS(E$4))+'Mini-Kayak'!C85*COS(RADIANS(E$4))*E$3)+E$2,"") ->  | D60: =IF('Mini-Kayak'!D85<>"",'Mini-Kayak'!D85*COS(RADIANS(E$4))-'Mini-Kayak'!E85*SIN(RADIANS(E$4))+E$1,"") ->  | E60: =IF('Mini-Kayak'!E85<>"",('Mini-Kayak'!D85*SIN(RADIANS(E$4))+'Mini-Kayak'!E85*COS(RADIANS(E$4))*E$3)+E$2,"") ->  | G60: =IF('Mini-Kayak'!G85<>"",'Mini-Kayak'!G85*COS(RADIANS(J$4))-'Mini-Kayak'!H85*SIN(RADIANS(J$4))+J$1,"") ->  | H60: =IF('Mini-Kayak'!H85<>"",('Mini-Kayak'!G85*SIN(RADIANS(J$4))+'Mini-Kayak'!H85*COS(RADIANS(J$4))*J$3)+J$2,"") ->  | I60: =IF('Mini-Kayak'!I85<>"",'Mini-Kayak'!I85*COS(RADIANS(J$4))-'Mini-Kayak'!J85*SIN(RADIANS(J$4))+J$1,"") ->  | J60: =IF('Mini-Kayak'!J85<>"",('Mini-Kayak'!I85*SIN(RADIANS(J$4))+'Mini-Kayak'!J85*COS(RADIANS(J$4))*J$3)+J$2,"") ->  | L60: =IF('Mini-Kayak'!L85<>"",'Mini-Kayak'!L85*COS(RADIANS(O$4))-'Mini-Kayak'!M85*SIN(RADIANS(O$4))+O$1,"") ->  | M60: =IF('Mini-Kayak'!M85<>"",('Mini-Kayak'!L85*SIN(RADIANS(O$4))+'Mini-Kayak'!M85*COS(RADIANS(O$4))*O$3)+O$2,"") ->  | N60: =IF('Mini-Kayak'!N85<>"",'Mini-Kayak'!N85*COS(RADIANS(O$4))-'Mini-Kayak'!O85*SIN(RADIANS(O$4))+O$1,"") ->  | O60: =IF('Mini-Kayak'!O85<>"",('Mini-Kayak'!N85*SIN(RADIANS(O$4))+'Mini-Kayak'!O85*COS(RADIANS(O$4))*O$3)+O$2,"") ->  | Q60: =IF('Mini-Kayak'!L85<>"",'Mini-Kayak'!L85*COS(RADIANS(T$4))-'Mini-Kayak'!M85*SIN(RADIANS(T$4))+T$1,"") ->  | R60: =IF('Mini-Kayak'!M85<>"",('Mini-Kayak'!L85*SIN(RADIANS(T$4))+'Mini-Kayak'!M85*COS(RADIANS(T$4))*T$3)+T$2,"") ->  | S60: =IF('Mini-Kayak'!N85<>"",'Mini-Kayak'!N85*COS(RADIANS(T$4))-'Mini-Kayak'!O85*SIN(RADIANS(T$4))+T$1,"") ->  | T60: =IF('Mini-Kayak'!O85<>"",MAX(('Mini-Kayak'!N85*SIN(RADIANS(T$4))+'Mini-Kayak'!O85*COS(RADIANS(T$4))*T$3)+T$2,M60+3),"") ->  | V60: =IF('Mini-Kayak'!V85<>"",'Mini-Kayak'!V85*COS(RADIANS(Y$4))-'Mini-Kayak'!W85*SIN(RADIANS(Y$4))+Y$1,"") ->  | W60: =IF('Mini-Kayak'!W85<>"",('Mini-Kayak'!V85*SIN(RADIANS(Y$4))+'Mini-Kayak'!W85*COS(RADIANS(Y$4))*Y$3)+Y$2,"") ->  | X60: =IF('Mini-Kayak'!X85<>"",'Mini-Kayak'!X85*COS(RADIANS(Y$4))-'Mini-Kayak'!Y85*SIN(RADIANS(Y$4))+Y$1,"") ->  | Y60: =IF('Mini-Kayak'!Y85<>"",('Mini-Kayak'!X85*SIN(RADIANS(Y$4))+'Mini-Kayak'!Y85*COS(RADIANS(Y$4))*Y$3)+Y$2,"") -> 
A61: 55 | B61: =IF('Mini-Kayak'!B86<>"",'Mini-Kayak'!B86*COS(RADIANS(E$4))-'Mini-Kayak'!C86*SIN(RADIANS(E$4))+E$1,"") ->  | C61: =IF('Mini-Kayak'!C86<>"",('Mini-Kayak'!B86*SIN(RADIANS(E$4))+'Mini-Kayak'!C86*COS(RADIANS(E$4))*E$3)+E$2,"") ->  | D61: =IF('Mini-Kayak'!D86<>"",'Mini-Kayak'!D86*COS(RADIANS(E$4))-'Mini-Kayak'!E86*SIN(RADIANS(E$4))+E$1,"") ->  | E61: =IF('Mini-Kayak'!E86<>"",('Mini-Kayak'!D86*SIN(RADIANS(E$4))+'Mini-Kayak'!E86*COS(RADIANS(E$4))*E$3)+E$2,"") ->  | G61: =IF('Mini-Kayak'!G86<>"",'Mini-Kayak'!G86*COS(RADIANS(J$4))-'Mini-Kayak'!H86*SIN(RADIANS(J$4))+J$1,"") ->  | H61: =IF('Mini-Kayak'!H86<>"",('Mini-Kayak'!G86*SIN(RADIANS(J$4))+'Mini-Kayak'!H86*COS(RADIANS(J$4))*J$3)+J$2,"") ->  | I61: =IF('Mini-Kayak'!I86<>"",'Mini-Kayak'!I86*COS(RADIANS(J$4))-'Mini-Kayak'!J86*SIN(RADIANS(J$4))+J$1,"") ->  | J61: =IF('Mini-Kayak'!J86<>"",('Mini-Kayak'!I86*SIN(RADIANS(J$4))+'Mini-Kayak'!J86*COS(RADIANS(J$4))*J$3)+J$2,"") ->  | L61: =IF('Mini-Kayak'!L86<>"",'Mini-Kayak'!L86*COS(RADIANS(O$4))-'Mini-Kayak'!M86*SIN(RADIANS(O$4))+O$1,"") ->  | M61: =IF('Mini-Kayak'!M86<>"",('Mini-Kayak'!L86*SIN(RADIANS(O$4))+'Mini-Kayak'!M86*COS(RADIANS(O$4))*O$3)+O$2,"") ->  | N61: =IF('Mini-Kayak'!N86<>"",'Mini-Kayak'!N86*COS(RADIANS(O$4))-'Mini-Kayak'!O86*SIN(RADIANS(O$4))+O$1,"") ->  | O61: =IF('Mini-Kayak'!O86<>"",('Mini-Kayak'!N86*SIN(RADIANS(O$4))+'Mini-Kayak'!O86*COS(RADIANS(O$4))*O$3)+O$2,"") ->  | Q61: =IF('Mini-Kayak'!L86<>"",'Mini-Kayak'!L86*COS(RADIANS(T$4))-'Mini-Kayak'!M86*SIN(RADIANS(T$4))+T$1,"") ->  | R61: =IF('Mini-Kayak'!M86<>"",('Mini-Kayak'!L86*SIN(RADIANS(T$4))+'Mini-Kayak'!M86*COS(RADIANS(T$4))*T$3)+T$2,"") ->  | S61: =IF('Mini-Kayak'!N86<>"",'Mini-Kayak'!N86*COS(RADIANS(T$4))-'Mini-Kayak'!O86*SIN(RADIANS(T$4))+T$1,"") ->  | T61: =IF('Mini-Kayak'!O86<>"",MAX(('Mini-Kayak'!N86*SIN(RADIANS(T$4))+'Mini-Kayak'!O86*COS(RADIANS(T$4))*T$3)+T$2,M61+3),"") ->  | V61: =IF('Mini-Kayak'!V86<>"",'Mini-Kayak'!V86*COS(RADIANS(Y$4))-'Mini-Kayak'!W86*SIN(RADIANS(Y$4))+Y$1,"") ->  | W61: =IF('Mini-Kayak'!W86<>"",('Mini-Kayak'!V86*SIN(RADIANS(Y$4))+'Mini-Kayak'!W86*COS(RADIANS(Y$4))*Y$3)+Y$2,"") ->  | X61: =IF('Mini-Kayak'!X86<>"",'Mini-Kayak'!X86*COS(RADIANS(Y$4))-'Mini-Kayak'!Y86*SIN(RADIANS(Y$4))+Y$1,"") ->  | Y61: =IF('Mini-Kayak'!Y86<>"",('Mini-Kayak'!X86*SIN(RADIANS(Y$4))+'Mini-Kayak'!Y86*COS(RADIANS(Y$4))*Y$3)+Y$2,"") -> 

Sheet Unfold Plot

Sheet Section
A1: Section | B1: 1203
A2: Y | B2: Z
A3: 0 | B3: -75
A4: 198 | B4: -49
A5: 224 | B5: 99
A6: 0 | B6: 153

Sheet Slice
A1: Slice | B1: 0
A2: X | B2: Y
A3: 117.9992532 | B3: 0.254
A4: 117.9992533 | B4: 0.254
A5: 117.9992532 | B5: 0.254
A6: 117.9992532 | B6: 0.254
A7: 117.9998869 | B7: 0.2542483466
A8: 118.0073574 | B8: 0.2540024078
A9: 118.0107704 | B9: 0.2560403682
A10: 118 | B10: 0.254
A11: 118 | B11: 0.254
A12: 197.7516404 | B12: 31.55722887
A13: 118 | B13: 0.2542914424
A14: 202.9858552 | B14: 33.39897199
A15: 293.6090209 | B15: 65.4386873
A16: 200 | B16: 32.39350997
A17: 306.9947022 | B17: 69.65976119
A18: 389.7139312 | B18: 95.41960149
A19: 300 | B19: 67.58102871
A20: 411.2003478 | B20: 101.3591998
A21: 485.7747556 | B21: 121.5063681
A22: 400 | B22: 98.46340447
A23: 514.7519858 | B23: 128.4390701
A24: 578.7919543 | B24: 143.2130265
A25: 500 | B25: 125.1703761
A26: 596.7439106 | B26: 147.1650585
A27: 599.2521296 | B27: 147.6942347
A28: 596 | B28: 147.0144069
A29: 619.3763163 | B29: 151.4126375
A30: 678.3850499 | B30: 162.6664629
A31: 600 | B31: 147.8458647
A32: 723.012665 | B32: 170.045652
A33: 775.1755861 | B33: 178.0054389
A34: 700 | B34: 166.6355858
A35: 826.1910126 | B35: 184.6397522
A36: 872.4033149 | B36: 189.9785796
A37: 800 | B37: 181.6775973
A38: 928.8390713 | B38: 195.3679394
A39: 970.1250574 | B39: 198.6489094
A40: 900 | B40: 193.0965395
A41: 1030.911033 | B41: 202.3955638
A42: 1068.383989 | B42: 204.0577654
A43: 1000 | B43: 201.0012385
A44: 1132.377132 | B44: 205.8758897
A45: 1167.218626 | B45: 206.2286632
A46: 1100 | B46: 205.4847782
A47: 1201.058302 | B47: 206.6208549
A48: 1202.139417 | B48: 206.6131828
A49: 1200 | B49: 206.6260456
A50: 1235.17208 | B50: 205.9588487
A51: 1268.316582 | B51: 205.1350872
A52: 1203.198 | B52: 206.6081675
A53: 1332.421237 | B53: 202.8095728
A54: 1368.16084 | B54: 200.7744022
A55: 1300 | B55: 204.4911064
A56: 1431.254903 | B56: 196.5096964
A57: 1469.623812 | B57: 193.1070751
A58: 1400 | B58: 199.1208648
A59: 1529.583428 | B59: 187.1695692
A60: 1571.627812 | B60: 182.1456985
A61: 1500 | B61: 190.5659006
A62: 1627.444212 | B62: 174.8884199
A63: 1674.143836 | B63: 167.9161832
A64: 1600 | B64: 178.8845691
A65: 1722.724055 | B65: 160.1803684
A66: 1770.139717 | B66: 151.7974128
A67: 1700 | B67: 164.1479491
A68: 1793.196153 | B68: 147.7402601
A69: 1798.028929 | B69: 146.8182256
A70: 1791.208 | B70: 148.1173029
A71: 1821.889918 | B71: 141.9428422
A72: 1880.581525 | B72: 129.8775036
A73: 1800 | B73: 146.4445078
A74: 1918.538789 | B74: 121.5316902
A75: 1984.416025 | B75: 106.2585477
A76: 1900 | B76: 125.8842351
A77: 2014.856064 | B77: 98.69089869
A78: 2088.576242 | B78: 79.76284048
A79: 2000 | B79: 102.601924
A80: 2110.893758 | B80: 73.58800157
A81: 2192.967809 | B81: 50.58585982
A82: 2100 | B82: 76.75894737
A83: 2206.722293 | B83: 46.40296874
A84: 2297.461676 | B84: 18.96637352
A85: 2200 | B85: 48.54244018
A86: 2301.39645 | B86: 17.68672178
A87: 2300 | B87: 18.16022698
A88: 2301.396477 | B88: 17.68671979
